Workbook

Sheet Main
B10: 2023-05-19
B12: Sheet No. | C12: Template Name | D12: Summary
B13: 1 | C13: Future Intra | D13: For Intraday trading in F&O segment
B14: 2 | C14: Cash Intra | D14: For Intraday trading in cash market segment
B15: 3 | C15: Mid-cap Intra | D15: For Intraday trading in Mid-cap stocks
B16: 4 | C16: Bulk Deals | D16: Reveals Bulk Deals carried on NSE & BSE
B17: 5 | C17: Call Tracker
K27: `

Sheet Future Intra
M5: Back to Main Page
A6: FOR INTRA DAY TRADING | L6: =Main!B10 -> 2023-05-19
A9: Sr.no | B9: Sector | C9: Scrip | D9: Expiry Date | E9: CLOSE RATE | F9: Pivot Point | G9: Supports | J9: Resistances
E10: Point | F10: Point | G10: S1 | H10: S2 | I10: S3 | J10: R1 | K10: R2 | L10: R3 | M10: HIGH | N10: LOW | O10: OI | P10: % Change in OI
A11: 1 | B11: Index | C11: NIFTY | D11: 2023-05-25 | E11: 18175.45 | F11: 18216.93 | G11: 18109.32 | H11: 18043.18 | I11: 17935.57 | J11: 18283.07 | K11: 18390.68 | L11: 18456.82 | M11: 18324.55 | N11: 18150.8 | O11: 12701000 | P11: 1.00%
A12: 2 | B12: Index | C12: BANKNIFTY | D12: 2023-05-25 | E12: 43775.45 | F12: 43848.65 | G12: 43639.45 | H12: 43503.45 | I12: 43294.25 | J12: 43984.65 | K12: 44193.85 | L12: 44329.85 | M12: 44057.85 | N12: 43712.65 | O12: 3136555 | P12: 3.38%
A13: 3 | B13: Index | C13: FINNIFTY | D13: 2023-05-30 | E13: 19385.40 | F13: 19412.32 | G13: 19333.08 | H13: 19280.77 | I13: 19201.53 | J13: 19464.63 | K13: 19543.87 | L13: 19596.18 | M13: 19491.55 | N13: 19360 | O13: 45040 | P13: 8.58%
A14: 4 | B14: Index | C14: MIDCPNIFTY | D14: 2023-05-31 | E14: 7514.45 | F14: 7519.35 | G14: 7509.55 | H14: 7504.65 | I14: 7494.85 | J14: 7524.25 | K14: 7534.05 | L14: 7538.95 | M14: 7529.15 | N14: 7514.45 | O14: 150 | P14: 0.00%
A15: 5 | B15: Chemical | C15: AARTIIND | D15: 2023-05-25 | E15: 495.70 | F15: 499.17 | G15: 491.48 | H15: 487.27 | I15: 479.58 | J15: 503.38 | K15: 511.07 | L15: 515.28 | M15: 506.85 | N15: 494.95 | O15: 6364550 | P15: 2.63%
A16: 6 | B16: Capital_Goods | C16: ABB | D16: 2023-05-25 | E16: 3899.75 | F16: 3910.53 | G16: 3881.27 | H16: 3862.78 | I16: 3833.52 | J16: 3929.02 | K16: 3958.28 | L16: 3976.77 | M16: 3939.8 | N16: 3892.05 | O16: 1494000 | P16: -1.74%
A17: 7 | B17: Pharma | C17: ABBOTINDIA | D17: 2023-05-25 | E17: 20967.15 | F17: 21089.77 | G17: 20778.38 | H17: 20589.62 | I17: 20278.23 | J17: 21278.53 | K17: 21589.92 | L17: 21778.68 | M17: 21401.15 | N17: 20901 | O17: 86560 | P17: -2.79%
A18: 8 | B18: Others | C18: ABCAPITAL | D18: 2023-05-25 | E18: 164.95 | F18: 165.68 | G18: 163.52 | H18: 162.08 | I18: 159.92 | J18: 167.12 | K18: 169.28 | L18: 170.72 | M18: 167.85 | N18: 164.25 | O18: 32616000 | P18: 1.33%
A19: 9 | B19: Textile | C19: ABFRL | D19: 2023-05-25 | E19: 193.90 | F19: 194.65 | G19: 191.30 | H19: 188.70 | I19: 185.35 | J19: 197.25 | K19: 200.60 | L19: 203.20 | M19: 198 | N19: 192.05 | O19: 33238400 | P19: -3.41%
A20: 10 | B20: Cement | C20: ACC | D20: 2023-05-25 | E20: 1714.00 | F20: 1732.63 | G20: 1690.47 | H20: 1666.93 | I20: 1624.77 | J20: 1756.17 | K20: 1798.33 | L20: 1821.87 | M20: 1774.8 | N20: 1709.1 | O20: 4330150 | P20: 4.24%
A21: 11 | B21: Others | C21: ADANIENT | D21: 2023-05-25 | E21: 1889.00 | F21: 1896.83 | G21: 1872.72 | H21: 1856.43 | I21: 1832.32 | J21: 1913.12 | K21: 1937.23 | L21: 1953.52 | M21: 1920.95 | N21: 1880.55 | O21: 9514150 | P21: -2.62%
A22: 12 | B22: Others | C22: ADANIPORTS | D22: 2023-05-25 | E22: 665.40 | F22: 672.42 | G22: 656.08 | H22: 646.77 | I22: 630.43 | J22: 681.73 | K22: 698.07 | L22: 707.38 | M22: 688.75 | N22: 663.1 | O22: 38233675 | P22: 1.46%
A23: 13 | B23: Pharma | C23: ALKEM | D23: 2023-05-25 | E23: 3336.75 | F23: 3345.23 | G23: 3305.47 | H23: 3274.18 | I23: 3234.42 | J23: 3376.52 | K23: 3416.28 | L23: 3447.57 | M23: 3385 | N23: 3313.95 | O23: 757000 | P23: 2.91%
A24: 14 | B24: Cement | C24: AMBUJACEM | D24: 2023-05-25 | E24: 398.60 | F24: 401.40 | G24: 393.85 | H24: 389.10 | I24: 381.55 | J24: 406.15 | K24: 413.70 | L24: 418.45 | M24: 408.95 | N24: 396.65 | O24: 61410600 | P24: -0.61%
A25: 15 | B25: Others | C25: APOLLOHOSP | D25: 2023-05-25 | E25: 4445.20 | F25: 4470.65 | G25: 4414.45 | H25: 4383.70 | I25: 4327.50 | J25: 4501.40 | K25: 4557.60 | L25: 4588.35 | M25: 4526.85 | N25: 4439.9 | O25: 1541625 | P25: 1.23%
A26: 16 | B26: Automobile | C26: APOLLOTYRE | D26: 2023-05-25 | E26: 368.80 | F26: 369.75 | G26: 366.60 | H26: 364.40 | I26: 361.25 | J26: 371.95 | K26: 375.10 | L26: 377.30 | M26: 372.9 | N26: 367.55 | O26: 14793100 | P26: -3.94%
A27: 17 | B27: Automobile | C27: ASHOKLEY | D27: 2023-05-25 | E27: 152.65 | F27: 153.20 | G27: 151.60 | H27: 150.55 | I27: 148.95 | J27: 154.25 | K27: 155.85 | L27: 156.90 | M27: 154.8 | N27: 152.15 | O27: 51850000 | P27: 2.37%
A28: 18 | B28: FMCG | C28: ASIANPAINT | D28: 2023-05-25 | E28: 3110.25 | F28: 3110.23 | G28: 3096.57 | H28: 3082.88 | I28: 3069.22 | J28: 3123.92 | K28: 3137.58 | L28: 3151.27 | M28: 3123.9 | N28: 3096.55 | O28: 5585800 | P28: -0.87%
A29: 19 | B29: Others | C29: ASTRAL | D29: 2023-05-25 | E29: 1689.60 | F29: 1697.52 | G29: 1666.28 | H29: 1642.97 | I29: 1611.73 | J29: 1720.83 | K29: 1752.07 | L29: 1775.38 | M29: 1728.75 | N29: 1674.2 | O29: 1524151 | P29: -3.15%
A30: 20 | B30: Others | C30: ATUL | D30: 2023-05-25 | E30: 6646.90 | F30: 6660.72 | G30: 6605.58 | H30: 6564.27 | I30: 6509.13 | J30: 6702.03 | K30: 6757.17 | L30: 6798.48 | M30: 6715.85 | N30: 6619.4 | O30: 255750 | P30: 3.58%
A31: 21 | B31: Banking | C31: AUBANK | D31: 2023-05-25 | E31: 743.15 | F31: 740.47 | G31: 729.38 | H31: 715.62 | I31: 704.53 | J31: 754.23 | K31: 765.32 | L31: 779.08 | M31: 751.55 | N31: 726.7 | O31: 13237000 | P31: 0.54%
A32: 22 | B32: Pharma | C32: AUROPHARMA | D32: 2023-05-25 | E32: 600.30 | F32: 606.32 | G32: 591.58 | H32: 582.87 | I32: 568.13 | J32: 615.03 | K32: 629.77 | L32: 638.48 | M32: 621.05 | N32: 597.6 | O32: 10613000 | P32: 4.77%
A33: 23 | B33: Banking | C33: AXISBANK | D33: 2023-05-25 | E33: 916.40 | F33: 919.88 | G33: 911.32 | H33: 906.23 | I33: 897.67 | J33: 924.97 | K33: 933.53 | L33: 938.62 | M33: 928.45 | N33: 914.8 | O33: 46648750 | P33: -2.07%
A34: 24 | B34: Automobile | C34: BAJAJ-AUTO | D34: 2023-05-25 | E34: 4522.95 | F34: 4536.55 | G34: 4504.10 | H34: 4485.25 | I34: 4452.80 | J34: 4555.40 | K34: 4587.85 | L34: 4606.70 | M34: 4569 | N34: 4517.7 | O34: 2634750 | P34: -0.56%
A35: 25 | B35: Finance | C35: BAJAJFINSV | D35: 2023-05-25 | E35: 1418.20 | F35: 1421.47 | G35: 1410.73 | H35: 1403.27 | I35: 1392.53 | J35: 1428.93 | K35: 1439.67 | L35: 1447.13 | M35: 1432.2 | N35: 1414 | O35: 8512500 | P35: 0.90%
A36: 26 | B36: Finance | C36: BAJFINANCE | D36: 2023-05-25 | E36: 6787.25 | F36: 6788.87 | G36: 6746.08 | H36: 6704.92 | I36: 6662.13 | J36: 6830.03 | K36: 6872.82 | L36: 6913.98 | M36: 6831.65 | N36: 6747.7 | O36: 3982875 | P36: 1.28%
A37: 27 | B37: Automobile | C37: BALKRISIND | D37: 2023-05-25 | E37: 2193.60 | F37: 2203.00 | G37: 2179.15 | H37: 2164.70 | I37: 2140.85 | J37: 2217.45 | K37: 2241.30 | L37: 2255.75 | M37: 2226.85 | N37: 2188.55 | O37: 1731600 | P37: -1.54%
A38: 28 | B38: Others | C38: BALRAMCHIN | D38: 2023-05-25 | E38: 383.65 | F38: 383.47 | G38: 380.23 | H38: 376.82 | I38: 373.58 | J38: 386.88 | K38: 390.12 | L38: 393.53 | M38: 386.7 | N38: 380.05 | O38: 8603200 | P38: -3.93%
A39: 29 | B39: Banking | C39: BANDHANBNK | D39: 2023-05-25 | E39: 244.90 | F39: 245.87 | G39: 242.83 | H39: 240.77 | I39: 237.73 | J39: 247.93 | K39: 250.97 | L39: 253.03 | M39: 248.9 | N39: 243.8 | O39: 44923100 | P39: -2.84%
A40: 30 | B40: Banking | C40: BANKBARODA | D40: 2023-05-25 | E40: 180.65 | F40: 182.85 | G40: 177.90 | H40: 175.15 | I40: 170.20 | J40: 185.60 | K40: 190.55 | L40: 193.30 | M40: 187.8 | N40: 180.1 | O40: 123470100 | P40: 0.88%
A41: 31 | B41: FMCG | C41: BATAINDIA | D41: 2023-05-25 | E41: 1526.95 | F41: 1530.32 | G41: 1514.63 | H41: 1502.32 | I41: 1486.63 | J41: 1542.63 | K41: 1558.32 | L41: 1570.63 | M41: 1546 | N41: 1518 | O41: 2093850 | P41: 1.15%
A42: 32 | B42: Capital_Goods | C42: BEL | D42: 2023-05-25 | E42: 107.70 | F42: 108.08 | G42: 106.92 | H42: 106.13 | I42: 104.97 | J42: 108.87 | K42: 110.03 | L42: 110.82 | M42: 109.25 | N42: 107.3 | O42: 78141300 | P42: 0.71%
A43: 33 | B43: FMCG | C43: BERGEPAINT | D43: 2023-05-25 | E43: 620.05 | F43: 620.55 | G43: 616.60 | H43: 613.15 | I43: 609.20 | J43: 624.00 | K43: 627.95 | L43: 631.40 | M43: 624.5 | N43: 617.1 | O43: 9359900 | P43: 1.25%
A44: 34 | B44: Automobile | C44: BHARATFORG | D44: 2023-05-25 | E44: 765.35 | F44: 771.18 | G44: 757.52 | H44: 749.68 | I44: 736.02 | J44: 779.02 | K44: 792.68 | L44: 800.52 | M44: 784.85 | N44: 763.35 | O44: 10658000 | P44: 2.91%
A45: 35 | B45: Telecom | C45: BHARTIARTL | D45: 2023-05-25 | E45: 799.55 | F45: 799.68 | G45: 795.47 | H45: 791.38 | I45: 787.17 | J45: 803.77 | K45: 807.98 | L45: 812.07 | M45: 803.9 | N45: 795.6 | O45: 36516100 | P45: 1.37%
A46: 36 | B46: Capital_Goods | C46: BHEL | D46: 2023-05-25 | E46: 81.65 | F46: 82.28 | G46: 80.87 | H46: 80.08 | I46: 78.67 | J46: 83.07 | K46: 84.48 | L46: 85.27 | M46: 83.7 | N46: 81.5 | O46: 102385500 | P46: -0.81%
A47: 37 | B47: Pharma | C47: BIOCON | D47: 2023-05-25 | E47: 244.85 | F47: 245.78 | G47: 243.42 | H47: 241.98 | I47: 239.62 | J47: 247.22 | K47: 249.58 | L47: 251.02 | M47: 248.15 | N47: 244.35 | O47: 22127100 | P47: -1.95%
A48: 38 | B48: Automobile | C48: BOSCHLTD | D48: 2023-05-25 | E48: 19025.90 | F48: 19117.73 | G48: 18885.47 | H48: 18745.03 | I48: 18512.77 | J48: 19258.17 | K48: 19490.43 | L48: 19630.87 | M48: 19350 | N48: 18977.3 | O48: 154450 | P48: 1.51%
A49: 39 | B49: Oil_Gas | C49: BPCL | D49: 2023-05-25 | E49: 361.00 | F49: 362.38 | G49: 358.87 | H49: 356.73 | I49: 353.22 | J49: 364.52 | K49: 368.03 | L49: 370.17 | M49: 365.9 | N49: 360.25 | O49: 19400400 | P49: 0.20%
A50: 40 | B50: FMCG | C50: BRITANNIA | D50: 2023-05-25 | E50: 4575.55 | F50: 4598.80 | G50: 4545.30 | H50: 4515.05 | I50: 4461.55 | J50: 4629.05 | K50: 4682.55 | L50: 4712.80 | M50: 4652.3 | N50: 4568.55 | O50: 1623400 | P50: -1.54%
A51: 41 | B51: Technology | C51: BSOFT | D51: 2023-05-25 | E51: 319.05 | F51: 322.22 | G51: 314.93 | H51: 310.82 | I51: 303.53 | J51: 326.33 | K51: 333.62 | L51: 337.73 | M51: 329.5 | N51: 318.1 | O51: 8556000 | P51: -0.05%
A52: 42 | B52: Banking | C52: CANBK | D52: 2023-05-25 | E52: 295.05 | F52: 298.17 | G52: 290.68 | H52: 286.32 | I52: 278.83 | J52: 302.53 | K52: 310.02 | L52: 314.38 | M52: 305.65 | N52: 293.8 | O52: 50244300 | P52: 3.84%
A53: 43 | B53: Finance | C53: CANFINHOME | D53: 2023-05-25 | E53: 676.80 | F53: 683.70 | G53: 667.55 | H53: 658.30 | I53: 642.15 | J53: 692.95 | K53: 709.10 | L53: 718.35 | M53: 699.85 | N53: 674.45 | O53: 4590300 | P53: 8.48%
A54: 44 | B54: Others | C54: CHAMBLFERT | D54: 2023-05-25 | E54: 294.25 | F54: 299.93 | G54: 286.87 | H54: 279.48 | I54: 266.42 | J54: 307.32 | K54: 320.38 | L54: 327.77 | M54: 313 | N54: 292.55 | O54: 7037000 | P54: 11.66%
A55: 45 | B55: Finance | C55: CHOLAFIN | D55: 2023-05-25 | E55: 1038.30 | F55: 1031.78 | G55: 1022.07 | H55: 1005.83 | I55: 996.12 | J55: 1048.02 | K55: 1057.73 | L55: 1073.97 | M55: 1041.5 | N55: 1015.55 | O55: 12105000 | P55: 4.90%
A56: 46 | B56: Pharma | C56: CIPLA | D56: 2023-05-25 | E56: 914.45 | F56: 918.65 | G56: 907.95 | H56: 901.45 | I56: 890.75 | J56: 925.15 | K56: 935.85 | L56: 942.35 | M56: 929.35 | N56: 912.15 | O56: 11436100 | P56: -0.12%
A57: 47 | B57: Others | C57: COALINDIA | D57: 2023-05-25 | E57: 239.55 | F57: 240.48 | G57: 238.17 | H57: 236.78 | I57: 234.47 | J57: 241.87 | K57: 244.18 | L57: 245.57 | M57: 242.8 | N57: 239.1 | O57: 37812600 | P57: 0.41%
A58: 48 | B58: Technology | C58: COFORGE | D58: 2023-05-25 | E58: 4202.30 | F58: 4216.97 | G58: 4180.33 | H58: 4158.37 | I58: 4121.73 | J58: 4238.93 | K58: 4275.57 | L58: 4297.53 | M58: 4253.6 | N58: 4195 | O58: 810150 | P58: -2.24%
A59: 49 | B59: FMCG | C59: COLPAL | D59: 2023-05-25 | E59: 1618.85 | F59: 1632.72 | G59: 1601.13 | H59: 1583.42 | I59: 1551.83 | J59: 1650.43 | K59: 1682.02 | L59: 1699.73 | M59: 1664.3 | N59: 1615 | O59: 2832900 | P59: -0.47%
A60: 50 | B60: Others | C60: CONCOR | D60: 2023-05-25 | E60: 630.80 | F60: 633.50 | G60: 625.10 | H60: 619.40 | I60: 611.00 | J60: 639.20 | K60: 647.60 | L60: 653.30 | M60: 641.9 | N60: 627.8 | O60: 6268000 | P60: -1.69%
A61: 51 | B61: Others | C61: COROMANDEL | D61: 2023-05-25 | E61: 938.45 | F61: 947.40 | G61: 910.60 | H61: 882.75 | I61: 845.95 | J61: 975.25 | K61: 1012.05 | L61: 1039.90 | M61: 984.2 | N61: 919.55 | O61: 1556100 | P61: 5.06%
A62: 52 | B62: Capital_Goods | C62: CROMPTON | D62: 2023-05-25 | E62: 254.60 | F62: 254.95 | G62: 253.35 | H62: 252.10 | I62: 250.50 | J62: 256.20 | K62: 257.80 | L62: 259.05 | M62: 256.55 | N62: 253.7 | O62: 14126400 | P62: -0.03%
A63: 53 | B63: Banking | C63: CUB | D63: 2023-05-25 | E63: 139.20 | F63: 140.38 | G63: 137.77 | H63: 136.33 | I63: 133.72 | J63: 141.82 | K63: 144.43 | L63: 145.87 | M63: 143 | N63: 138.95 | O63: 17425000 | P63: 4.72%
A64: 54 | B64: Capital_Goods | C64: CUMMINSIND | D64: 2023-05-25 | E64: 1644.45 | F64: 1656.28 | G64: 1629.57 | H64: 1614.68 | I64: 1587.97 | J64: 1671.17 | K64: 1697.88 | L64: 1712.77 | M64: 1683 | N64: 1641.4 | O64: 2530800 | P64: -0.21%
A65: 55 | B65: FMCG | C65: DABUR | D65: 2023-05-25 | E65: 523.60 | F65: 524.38 | G65: 522.22 | H65: 520.83 | I65: 518.67 | J65: 525.77 | K65: 527.93 | L65: 529.32 | M65: 526.55 | N65: 523 | O65: 13340000 | P65: -0.04%
A66: 56 | B66: Cement | C66: DALBHARAT | D66: 2023-05-25 | E66: 2060.70 | F66: 2076.87 | G66: 2038.83 | H66: 2016.97 | I66: 1978.93 | J66: 2098.73 | K66: 2136.77 | L66: 2158.63 | M66: 2114.9 | N66: 2055 | O66: 1686500 | P66: -3.35%
A67: 57 | B67: Chemical | C67: DEEPAKNTR | D67: 2023-05-25 | E67: 1961.95 | F67: 1976.00 | G67: 1944.15 | H67: 1926.35 | I67: 1894.50 | J67: 1993.80 | K67: 2025.65 | L67: 2043.45 | M67: 2007.85 | N67: 1958.2 | O67: 2229100 | P67: 7.45%
A68: 58 | B68: Others | C68: DELTACORP | D68: 2023-05-25 | E68: 222.60 | F68: 222.87 | G68: 218.73 | H68: 214.87 | I68: 210.73 | J68: 226.73 | K68: 230.87 | L68: 234.73 | M68: 227 | N68: 219 | O68: 18384800 | P68: -3.64%
A69: 59 | B69: Pharma | C69: DIVISLAB | D69: 2023-05-25 | E69: 3149.00 | F69: 3185.55 | G69: 3102.00 | H69: 3055.00 | I69: 2971.45 | J69: 3232.55 | K69: 3316.10 | L69: 3363.10 | M69: 3269.1 | N69: 3138.55 | O69: 4276300 | P69: 10.72%
A70: 60 | B70: Others | C70: DIXON | D70: 2023-05-25 | E70: 2983.55 | F70: 2999.52 | G70: 2949.63 | H70: 2915.72 | I70: 2865.83 | J70: 3033.43 | K70: 3083.32 | L70: 3117.23 | M70: 3049.4 | N70: 2965.6 | O70: 1040175 | P70: -3.71%
A71: 61 | B71: Realty | C71: DLF | D71: 2023-05-25 | E71: 460.70 | F71: 465.48 | G71: 454.27 | H71: 447.83 | I71: 436.62 | J71: 471.92 | K71: 483.13 | L71: 489.57 | M71: 476.7 | N71: 459.05 | O71: 34653300 | P71: -0.76%
A72: 62 | B72: Pharma | C72: DRREDDY | D72: 2023-05-25 | E72: 4424.85 | F72: 4448.07 | G72: 4387.73 | H72: 4350.62 | I72: 4290.28 | J72: 4485.18 | K72: 4545.52 | L72: 4582.63 | M72: 4508.4 | N72: 4410.95 | O72: 3669625 | P72: 0.48%
A73: 63 | B73: Automobile | C73: EICHERMOT | D73: 2023-05-25 | E73: 3571.90 | F73: 3593.08 | G73: 3543.82 | H73: 3515.73 | I73: 3466.47 | J73: 3621.17 | K73: 3670.43 | L73: 3698.52 | M73: 3642.35 | N73: 3565 | O73: 3608500 | P73: 3.23%
A74: 64 | B74: Automobile | C74: ESCORTS | D74: 2023-05-25 | E74: 2083.60 | F74: 2099.23 | G74: 2063.77 | H74: 2043.93 | I74: 2008.47 | J74: 2119.07 | K74: 2154.53 | L74: 2174.37 | M74: 2134.7 | N74: 2079.4 | O74: 1407725 | P74: -6.30%
A75: 65 | B75: Automobile | C75: EXIDEIND | D75: 2023-05-25 | E75: 205.65 | F75: 206.47 | G75: 204.28 | H75: 202.92 | I75: 200.73 | J75: 207.83 | K75: 210.02 | L75: 211.38 | M75: 208.65 | N75: 205.1 | O75: 26197200 | P75: -3.82%
A76: 66 | B76: Banking | C76: FEDERALBNK | D76: 2023-05-25 | E76: 126.80 | F76: 127.23 | G76: 126.17 | H76: 125.53 | I76: 124.47 | J76: 127.87 | K76: 128.93 | L76: 129.57 | M76: 128.3 | N76: 126.6 | O76: 96285000 | P76: -1.64%
A77: 67 | B77: Oil_Gas | C77: GAIL | D77: 2023-05-25 | E77: 106.40 | F77: 107.32 | G77: 103.83 | H77: 101.27 | I77: 97.78 | J77: 109.88 | K77: 113.37 | L77: 115.93 | M77: 110.8 | N77: 104.75 | O77: 72797400 | P77: 13.54%
A78: 68 | B78: Pharma | C78: GLENMARK | D78: 2023-05-25 | E78: 603.95 | F78: 606.00 | G78: 599.10 | H78: 594.25 | I78: 587.35 | J78: 610.85 | K78: 617.75 | L78: 622.60 | M78: 612.9 | N78: 601.15 | O78: 7004950 | P78: 0.39%
A79: 69 | B79: Infrastructure | C79: GMRINFRA | D79: 2023-05-25 | E79: 45.10 | F79: 45.28 | G79: 44.82 | H79: 44.53 | I79: 44.07 | J79: 45.57 | K79: 46.03 | L79: 46.32 | M79: 45.75 | N79: 45 | O79: 129622500 | P79: 1.96%
A80: 70 | B80: Others | C80: GNFC | D80: 2023-05-25 | E80: 597.90 | F80: 618.40 | G80: 571.45 | H80: 545.00 | I80: 498.05 | J80: 644.85 | K80: 691.80 | L80: 718.25 | M80: 665.35 | N80: 591.95 | O80: 6666400 | P80: -12.21%
A81: 71 | B81: FMCG | C81: GODREJCP | D81: 2023-05-25 | E81: 1009.10 | F81: 1012.90 | G81: 1003.90 | H81: 998.70 | I81: 989.70 | J81: 1018.10 | K81: 1027.10 | L81: 1032.30 | M81: 1021.9 | N81: 1007.7 | O81: 7548000 | P81: -2.91%
A82: 72 | B82: Realty | C82: GODREJPROP | D82: 2023-05-25 | E82: 1310.15 | F82: 1336.70 | G82: 1273.95 | H82: 1237.75 | I82: 1175.00 | J82: 1372.90 | K82: 1435.65 | L82: 1471.85 | M82: 1399.45 | N82: 1300.5 | O82: 4735675 | P82: 4.67%
A83: 73 | B83: Pharma | C83: GRANULES | D83: 2023-05-25 | E83: 278.00 | F83: 281.62 | G83: 273.48 | H83: 268.97 | I83: 260.83 | J83: 286.13 | K83: 294.27 | L83: 298.78 | M83: 289.75 | N83: 277.1 | O83: 8860000 | P83: 3.80%
A84: 74 | B84: Cement | C84: GRASIM | D84: 2023-05-25 | E84: 1707.25 | F84: 1713.63 | G84: 1692.72 | H84: 1678.18 | I84: 1657.27 | J84: 1728.17 | K84: 1749.08 | L84: 1763.62 | M84: 1734.55 | N84: 1699.1 | O84: 12554725 | P84: 1.16%
A85: 75 | B85: Oil_Gas | C85: GUJGASLTD | D85: 2023-05-25 | E85: 486.65 | F85: 488.98 | G85: 480.07 | H85: 473.48 | I85: 464.57 | J85: 495.57 | K85: 504.48 | L85: 511.07 | M85: 497.9 | N85: 482.4 | O85: 6451250 | P85: -1.62%
A86: 76 | B86: Others | C86: HAL | D86: 2023-05-25 | E86: 3085.35 | F86: 3099.63 | G86: 3055.77 | H86: 3026.18 | I86: 2982.32 | J86: 3129.22 | K86: 3173.08 | L86: 3202.67 | M86: 3143.5 | N86: 3070.05 | O86: 2763300 | P86: -1.32%
A87: 77 | B87: Capital_Goods | C87: HAVELLS | D87: 2023-05-25 | E87: 1266.20 | F87: 1269.85 | G87: 1260.30 | H87: 1254.40 | I87: 1244.85 | J87: 1275.75 | K87: 1285.30 | L87: 1291.20 | M87: 1279.4 | N87: 1263.95 | O87: 5292500 | P87: 0.53%
A88: 78 | B88: Technology | C88: HCLTECH | D88: 2023-05-25 | E88: 1079.55 | F88: 1079.82 | G88: 1074.73 | H88: 1069.92 | I88: 1064.83 | J88: 1084.63 | K88: 1089.72 | L88: 1094.53 | M88: 1084.9 | N88: 1075 | O88: 11180400 | P88: -1.13%
A89: 79 | B89: Finance | C89: HDFC | D89: 2023-05-25 | E89: 2721.00 | F89: 2723.98 | G89: 2711.52 | H89: 2702.03 | I89: 2689.57 | J89: 2733.47 | K89: 2745.93 | L89: 2755.42 | M89: 2736.45 | N89: 2714.5 | O89: 19819200 | P89: 3.09%
A90: 80 | B90: Finance | C90: HDFCAMC | D90: 2023-05-25 | E90: 1809.00 | F90: 1814.05 | G90: 1799.10 | H90: 1789.20 | I90: 1774.25 | J90: 1823.95 | K90: 1838.90 | L90: 1848.80 | M90: 1829 | N90: 1804.15 | O90: 2237400 | P90: 0.23%
A91: 81 | B91: Banking | C91: HDFCBANK | D91: 2023-05-25 | E91: 1646.60 | F91: 1647.83 | G91: 1640.97 | H91: 1635.33 | I91: 1628.47 | J91: 1653.47 | K91: 1660.33 | L91: 1665.97 | M91: 1654.7 | N91: 1642.2 | O91: 70513850 | P91: -0.77%
A92: 82 | B92: Finance | C92: HDFCLIFE | D92: 2023-05-25 | E92: 562.40 | F92: 564.12 | G92: 558.98 | H92: 555.57 | I92: 550.43 | J92: 567.53 | K92: 572.67 | L92: 576.08 | M92: 569.25 | N92: 560.7 | O92: 17772700 | P92: 0.39%
A93: 83 | B93: Automobile | C93: HEROMOTOCO | D93: 2023-05-25 | E93: 2733.15 | F93: 2739.37 | G93: 2720.78 | H93: 2708.42 | I93: 2689.83 | J93: 2751.73 | K93: 2770.32 | L93: 2782.68 | M93: 2757.95 | N93: 2727 | O93: 4129800 | P93: -2.00%
A94: 84 | B94: Metals | C94: HINDALCO | D94: 2023-05-25 | E94: 407.65 | F94: 409.37 | G94: 404.48 | H94: 401.32 | I94: 396.43 | J94: 412.53 | K94: 417.42 | L94: 420.58 | M94: 414.25 | N94: 406.2 | O94: 29570800 | P94: 0.92%
A95: 85 | B95: Metals | C95: HINDCOPPER | D95: 2023-05-25 | E95: 101.95 | F95: 102.53 | G95: 101.12 | H95: 100.28 | I95: 98.87 | J95: 103.37 | K95: 104.78 | L95: 105.62 | M95: 103.95 | N95: 101.7 | O95: 22737900 | P95: 3.07%
A96: 86 | B96: Oil_Gas | C96: HINDPETRO | D96: 2023-05-25 | E96: 254.45 | F96: 256.12 | G96: 251.98 | H96: 249.52 | I96: 245.38 | J96: 258.58 | K96: 262.72 | L96: 265.18 | M96: 260.25 | N96: 253.65 | O96: 19696500 | P96: -1.25%
A97: 87 | B97: FMCG | C97: HINDUNILVR | D97: 2023-05-25 | E97: 2632.80 | F97: 2644.48 | G97: 2617.42 | H97: 2602.03 | I97: 2574.97 | J97: 2659.87 | K97: 2686.93 | L97: 2702.32 | M97: 2671.55 | N97: 2629.1 | O97: 9648900 | P97: -1.55%
A98: 88 | B98: Finance | C98: IBULHSGFIN | D98: 2023-05-25 | E98: 111.60 | F98: 112.73 | G98: 109.87 | H98: 108.13 | I98: 105.27 | J98: 114.47 | K98: 117.33 | L98: 119.07 | M98: 115.6 | N98: 111 | O98: 53935700 | P98: 1.29%
A99: 89 | B99: Banking | C99: ICICIBANK | D99: 2023-05-25 | E99: 947.50 | F99: 947.27 | G99: 942.78 | H99: 938.07 | I99: 933.58 | J99: 951.98 | K99: 956.47 | L99: 961.18 | M99: 951.75 | N99: 942.55 | O99: 76773200 | P99: -0.37%
A100: 90 | B100: Finance | C100: ICICIGI | D100: 2023-05-25 | E100: 1097.40 | F100: 1103.87 | G100: 1088.73 | H100: 1080.07 | I100: 1064.93 | J100: 1112.53 | K100: 1127.67 | L100: 1136.33 | M100: 1119 | N100: 1095.2 | O100: 4708975 | P100: 2.22%
A101: 91 | B101: Finance | C101: ICICIPRULI | D101: 2023-05-25 | E101: 425.10 | F101: 428.07 | G101: 421.03 | H101: 416.97 | I101: 409.93 | J101: 432.13 | K101: 439.17 | L101: 443.23 | M101: 435.1 | N101: 424 | O101: 13839000 | P101: 1.57%
A102: 92 | B102: Telecom | C102: IDEA | D102: 2023-05-25 | E102: 7.05 | F102: 7.03 | G102: 6.97 | H102: 6.88 | I102: 6.82 | J102: 7.12 | K102: 7.18 | L102: 7.27 | M102: 7.1 | N102: 6.95 | O102: 636980000 | P102: 4.09%
A103: 93 | B103: Finance | C103: IDFC | D103: 2023-05-25 | E103: 91.00 | F103: 91.70 | G103: 90.05 | H103: 89.10 | I103: 87.45 | J103: 92.65 | K103: 94.30 | L103: 95.25 | M103: 93.35 | N103: 90.75 | O103: 183920000 | P103: 0.10%
A104: 94 | B104: Banking | C104: IDFCFIRSTB | D104: 2023-05-25 | E104: 66.50 | F104: 66.78 | G104: 65.97 | H104: 65.43 | I104: 64.62 | J104: 67.32 | K104: 68.13 | L104: 68.67 | M104: 67.6 | N104: 66.25 | O104: 234840000 | P104: 1.56%
A105: 95 | B105: Others | C105: IEX | D105: 2023-05-25 | E105: 159.10 | F105: 160.27 | G105: 157.33 | H105: 155.57 | I105: 152.63 | J105: 162.03 | K105: 164.97 | L105: 166.73 | M105: 163.2 | N105: 158.5 | O105: 39502500 | P105: -1.58%
A106: 96 | B106: Oil_Gas | C106: IGL | D106: 2023-05-25 | E106: 480.50 | F106: 484.32 | G106: 475.48 | H106: 470.47 | I106: 461.63 | J106: 489.33 | K106: 498.17 | L106: 503.18 | M106: 493.15 | N106: 479.3 | O106: 8038250 | P106: -4.56%
A107: 97 | B107: Infrastructure | C107: INDHOTEL | D107: 2023-05-25 | E107: 366.60 | F107: 368.27 | G107: 364.08 | H107: 361.57 | I107: 357.38 | J107: 370.78 | K107: 374.97 | L107: 377.48 | M107: 372.45 | N107: 365.75 | O107: 23498000 | P107: -1.66%
A108: 98 | B108: Cement | C108: INDIACEM | D108: 2023-05-25 | E108: 188.80 | F108: 190.97 | G108: 185.73 | H108: 182.67 | I108: 177.43 | J108: 194.03 | K108: 199.27 | L108: 202.33 | M108: 196.2 | N108: 187.9 | O108: 18003200 | P108: -2.14%
A109: 99 | B109: Others | C109: INDIAMART | D109: 2023-05-25 | E109: 5659.80 | F109: 5722.07 | G109: 5577.73 | H109: 5495.67 | I109: 5351.33 | J109: 5804.13 | K109: 5948.47 | L109: 6030.53 | M109: 5866.4 | N109: 5640 | O109: 358650 | P109: 4.59%
A110: 100 | B110: Others | C110: INDIGO | D110: 2023-05-25 | E110: 2264.15 | F110: 2284.03 | G110: 2234.57 | H110: 2204.98 | I110: 2155.52 | J110: 2313.62 | K110: 2363.08 | L110: 2392.67 | M110: 2333.5 | N110: 2254.45 | O110: 3372600 | P110: -2.35%
A111: 101 | B111: Banking | C111: INDUSINDBK | D111: 2023-05-25 | E111: 1239.45 | F111: 1238.33 | G111: 1231.72 | H111: 1223.98 | I111: 1217.37 | J111: 1246.07 | K111: 1252.68 | L111: 1260.42 | M111: 1244.95 | N111: 1230.6 | O111: 21409850 | P111: -2.02%
A112: 102 | B112: Telecom | C112: INDUSTOWER | D112: 2023-05-25 | E112: 147.50 | F112: 149.07 | G112: 145.48 | H112: 143.47 | I112: 139.88 | J112: 151.08 | K112: 154.67 | L112: 156.68 | M112: 152.65 | N112: 147.05 | O112: 34686400 | P112: 5.53%
A113: 103 | B113: Technology | C113: INFY | D113: 2023-05-25 | E113: 1249.60 | F113: 1252.67 | G113: 1242.53 | H113: 1235.47 | I113: 1225.33 | J113: 1259.73 | K113: 1269.87 | L113: 1276.93 | M113: 1262.8 | N113: 1245.6 | O113: 51239600 | P113: 0.63%
A114: 104 | B114: Technology | C114: INTELLECT | D114: 2023-05-25 | E114: 552.15 | F114: 552.13 | G114: 545.52 | H114: 538.88 | I114: 532.27 | J114: 558.77 | K114: 565.38 | L114: 572.02 | M114: 558.75 | N114: 545.5 | O114: 4621100 | P114: -0.67%
A115: 105 | B115: Oil_Gas | C115: IOC | D115: 2023-05-25 | E115: 86.00 | F115: 86.52 | G115: 85.28 | H115: 84.57 | I115: 83.33 | J115: 87.23 | K115: 88.47 | L115: 89.18 | M115: 87.75 | N115: 85.8 | O115: 78468000 | P115: -2.74%
A116: 106 | B116: Pharma | C116: IPCALAB | D116: 2023-05-25 | E116: 675.65 | F116: 678.70 | G116: 669.85 | H116: 664.05 | I116: 655.20 | J116: 684.50 | K116: 693.35 | L116: 699.15 | M116: 687.55 | N116: 672.9 | O116: 4148950 | P116: 1.77%
A117: 107 | B117: Others | C117: IRCTC | D117: 2023-05-25 | E117: 615.10 | F117: 618.78 | G117: 609.72 | H117: 604.33 | I117: 595.27 | J117: 624.17 | K117: 633.23 | L117: 638.62 | M117: 627.85 | N117: 613.4 | O117: 14148750 | P117: 0.24%
A118: 108 | B118: FMCG | C118: ITC | D118: 2023-05-25 | E118: 420.95 | F118: 424.17 | G118: 416.08 | H118: 411.22 | I118: 403.13 | J118: 429.03 | K118: 437.12 | L118: 441.98 | M118: 432.25 | N118: 419.3 | O118: 80912000 | P118: 12.88%
A119: 109 | B119: Metals | C119: JINDALSTEL | D119: 2023-05-25 | E119: 524.90 | F119: 529.15 | G119: 518.55 | H119: 512.20 | I119: 501.60 | J119: 535.50 | K119: 546.10 | L119: 552.45 | M119: 539.75 | N119: 522.8 | O119: 21911250 | P119: 2.42%
A120: 110 | B120: Cement | C120: JKCEMENT | D120: 2023-05-25 | E120: 3016.50 | F120: 3032.15 | G120: 2993.00 | H120: 2969.50 | I120: 2930.35 | J120: 3055.65 | K120: 3094.80 | L120: 3118.30 | M120: 3071.3 | N120: 3008.65 | O120: 397750 | P120: 0.82%
A121: 111 | B121: Metals | C121: JSWSTEEL | D121: 2023-05-25 | E121: 693.85 | F121: 698.60 | G121: 686.80 | H121: 679.75 | I121: 667.95 | J121: 705.65 | K121: 717.45 | L121: 724.50 | M121: 710.4 | N121: 691.55 | O121: 25905150 | P121: 2.70%
A122: 112 | B122: Others | C122: JUBLFOOD | D122: 2023-05-25 | E122: 470.75 | F122: 469.95 | G122: 456.35 | H122: 441.95 | I122: 428.35 | J122: 484.35 | K122: 497.95 | L122: 512.35 | M122: 483.55 | N122: 455.55 | O122: 18242500 | P122: -1.64%
A123: 113 | B123: Banking | C123: KOTAKBANK | D123: 2023-05-25 | E123: 1925.40 | F123: 1922.35 | G123: 1914.30 | H123: 1903.20 | I123: 1895.15 | J123: 1933.45 | K123: 1941.50 | L123: 1952.60 | M123: 1930.4 | N123: 1911.25 | O123: 28628400 | P123: -0.95%
A124: 114 | B124: Finance | C124: L&TFH | D124: 2023-05-25 | E124: 99.45 | F124: 100.33 | G124: 98.27 | H124: 97.08 | I124: 95.02 | J124: 101.52 | K124: 103.58 | L124: 104.77 | M124: 102.4 | N124: 99.15 | O124: 88035260 | P124: 8.86%
A125: 115 | B125: Others | C125: LALPATHLAB | D125: 2023-05-25 | E125: 1974.90 | F125: 1984.53 | G125: 1956.47 | H125: 1938.03 | I125: 1909.97 | J125: 2002.97 | K125: 2031.03 | L125: 2049.47 | M125: 2012.6 | N125: 1966.1 | O125: 976700 | P125: 3.98%
A126: 116 | B126: Pharma | C126: LAURUSLABS | D126: 2023-05-25 | E126: 310.80 | F126: 312.35 | G126: 308.00 | H126: 305.20 | I126: 300.85 | J126: 315.15 | K126: 319.50 | L126: 322.30 | M126: 316.7 | N126: 309.55 | O126: 13926100 | P126: -1.36%
A127: 117 | B127: Finance | C127: LICHSGFIN | D127: 2023-05-25 | E127: 366.05 | F127: 367.98 | G127: 360.92 | H127: 355.78 | I127: 348.72 | J127: 373.12 | K127: 380.18 | L127: 385.32 | M127: 375.05 | N127: 362.85 | O127: 21790000 | P127: -10.67%
A128: 118 | B128: Capital_Goods | C128: LT | D128: 2023-05-25 | E128: 2191.70 | F128: 2204.85 | G128: 2171.85 | H128: 2152.00 | I128: 2119.00 | J128: 2224.70 | K128: 2257.70 | L128: 2277.55 | M128: 2237.85 | N128: 2185 | O128: 15101100 | P128: 0.06%
A129: 119 | B129: Technology | C129: LTIM | D129: 2023-05-25 | E129: 4718.80 | F129: 4736.10 | G129: 4695.25 | H129: 4671.70 | I129: 4630.85 | J129: 4759.65 | K129: 4800.50 | L129: 4824.05 | M129: 4776.95 | N129: 4712.55 | O129: 1419000 | P129: 1.61%
A130: 120 | B130: Technology | C130: LTTS | D130: 2023-05-25 | E130: 3834.85 | F130: 3842.58 | G130: 3815.22 | H130: 3795.58 | I130: 3768.22 | J130: 3862.22 | K130: 3889.58 | L130: 3909.22 | M130: 3869.95 | N130: 3822.95 | O130: 1237200 | P130: 1.09%
A131: 121 | B131: Pharma | C131: LUPIN | D131: 2023-05-25 | E131: 778.95 | F131: 778.50 | G131: 773.45 | H131: 767.95 | I131: 762.90 | J131: 784.00 | K131: 789.05 | L131: 794.55 | M131: 783.55 | N131: 773 | O131: 6644450 | P131: -1.93%
A132: 122 | B132: Automobile | C132: M&M | D132: 2023-05-25 | E132: 1245.90 | F132: 1253.15 | G132: 1236.40 | H132: 1226.90 | I132: 1210.15 | J132: 1262.65 | K132: 1279.40 | L132: 1288.90 | M132: 1269.9 | N132: 1243.65 | O132: 14146300 | P132: 1.04%
A133: 123 | B133: Finance | C133: M&MFIN | D133: 2023-05-25 | E133: 285.60 | F133: 286.98 | G133: 283.27 | H133: 280.93 | I133: 277.22 | J133: 289.32 | K133: 293.03 | L133: 295.37 | M133: 290.7 | N133: 284.65 | O133: 25240000 | P133: -0.63%
A134: 124 | B134: Finance | C134: MANAPPURAM | D134: 2023-05-25 | E134: 110.40 | F134: 110.87 | G134: 108.78 | H134: 107.17 | I134: 105.08 | J134: 112.48 | K134: 114.57 | L134: 116.18 | M134: 112.95 | N134: 109.25 | O134: 50106000 | P134: -1.91%
A135: 125 | B135: FMCG | C135: MARICO | D135: 2023-05-25 | E135: 533.00 | F135: 532.30 | G135: 526.85 | H135: 520.70 | I135: 515.25 | J135: 538.45 | K135: 543.90 | L135: 550.05 | M135: 537.75 | N135: 526.15 | O135: 10136400 | P135: -0.93%
A136: 126 | B136: Automobile | C136: MARUTI | D136: 2023-05-25 | E136: 9059.35 | F136: 9088.17 | G136: 9022.33 | H136: 8985.32 | I136: 8919.48 | J136: 9125.18 | K136: 9191.02 | L136: 9228.03 | M136: 9154 | N136: 9051.15 | O136: 1887800 | P136: -1.15%
A137: 127 | B137: FMCG | C137: MCDOWELL-N | D137: 2023-05-25 | E137: 799.00 | F137: 799.53 | G137: 792.12 | H137: 785.23 | I137: 777.82 | J137: 806.42 | K137: 813.83 | L137: 820.72 | M137: 806.95 | N137: 792.65 | O137: 13559650 | P137: 3.90%
A138: 128 | B138: Others | C138: MCX | D138: 2023-05-25 | E138: 1356.30 | F138: 1364.72 | G138: 1343.53 | H138: 1330.77 | I138: 1309.58 | J138: 1377.48 | K138: 1398.67 | L138: 1411.43 | M138: 1385.9 | N138: 1351.95 | O138: 1500400 | P138: -0.79%
A139: 129 | B139: Pharma | C139: METROPOLIS | D139: 2023-05-25 | E139: 1239.30 | F139: 1254.00 | G139: 1218.00 | H139: 1196.70 | I139: 1160.70 | J139: 1275.30 | K139: 1311.30 | L139: 1332.60 | M139: 1290 | N139: 1232.7 | O139: 1206800 | P139: -7.48%
A140: 130 | B140: Finance | C140: MFSL | D140: 2023-05-25 | E140: 672.80 | F140: 674.10 | G140: 668.50 | H140: 664.20 | I140: 658.60 | J140: 678.40 | K140: 684.00 | L140: 688.30 | M140: 679.7 | N140: 669.8 | O140: 4510350 | P140: 0.35%
A141: 131 | B141: Oil_Gas | C141: MGL | D141: 2023-05-25 | E141: 1044.25 | F141: 1053.35 | G141: 1033.75 | H141: 1023.25 | I141: 1003.65 | J141: 1063.85 | K141: 1083.45 | L141: 1093.95 | M141: 1072.95 | N141: 1042.85 | O141: 2388000 | P141: -0.40%
A142: 132 | B142: Automobile | C142: MOTHERSON | D142: 2023-05-25 | E142: 78.65 | F142: 78.93 | G142: 77.92 | H142: 77.18 | I142: 76.17 | J142: 79.67 | K142: 80.68 | L142: 81.42 | M142: 79.95 | N142: 78.2 | O142: 50984750 | P142: 0.34%
A143: 133 | B143: Technology | C143: MPHASIS | D143: 2023-05-25 | E143: 1851.10 | F143: 1856.07 | G143: 1838.68 | H143: 1826.27 | I143: 1808.88 | J143: 1868.48 | K143: 1885.87 | L143: 1898.28 | M143: 1873.45 | N143: 1843.65 | O143: 2585000 | P143: 2.93%
A144: 134 | B144: Automobile | C144: MRF | D144: 2023-05-25 | E144: 97223.70 | F144: 97600.15 | G144: 96702.30 | H144: 96180.90 | I144: 95283.05 | J144: 98121.55 | K144: 99019.40 | L144: 99540.80 | M144: 98498 | N144: 97078.75 | O144: 61120 | P144: -2.68%
A145: 135 | B145: Finance | C145: MUTHOOTFIN | D145: 2023-05-25 | E145: 1053.10 | F145: 1056.50 | G145: 1048.05 | H145: 1043.00 | I145: 1034.55 | J145: 1061.55 | K145: 1070.00 | L145: 1075.05 | M145: 1064.95 | N145: 1051.45 | O145: 6596700 | P145: 0.65%
A146: 136 | B146: Metals | C146: NATIONALUM | D146: 2023-05-25 | E146: 80.70 | F146: 81.12 | G146: 80.08 | H146: 79.47 | I146: 78.43 | J146: 81.73 | K146: 82.77 | L146: 83.38 | M146: 82.15 | N146: 80.5 | O146: 42840000 | P146: -0.47%
A147: 137 | B147: Others | C147: NAUKRI | D147: 2023-05-25 | E147: 3738.95 | F147: 3766.20 | G147: 3673.75 | H147: 3608.55 | I147: 3516.10 | J147: 3831.40 | K147: 3923.85 | L147: 3989.05 | M147: 3858.65 | N147: 3701 | O147: 1556350 | P147: 2.06%
A148: 138 | B148: Chemical | C148: NAVINFLUOR | D148: 2023-05-25 | E148: 4616.55 | F148: 4634.52 | G148: 4592.03 | H148: 4567.52 | I148: 4525.03 | J148: 4659.03 | K148: 4701.52 | L148: 4726.03 | M148: 4677 | N148: 4610 | O148: 603450 | P148: -1.42%
A149: 139 | B149: FMCG | C149: NESTLEIND | D149: 2023-05-25 | E149: 21713.25 | F149: 21776.88 | G149: 21611.37 | H149: 21509.48 | I149: 21343.97 | J149: 21878.77 | K149: 22044.28 | L149: 22146.17 | M149: 21942.4 | N149: 21675 | O149: 422880 | P149: 0.04%
A150: 140 | B150: Metals | C150: NMDC | D150: 2023-05-25 | E150: 104.95 | F150: 105.48 | G150: 104.07 | H150: 103.18 | I150: 101.77 | J150: 106.37 | K150: 107.78 | L150: 108.67 | M150: 106.9 | N150: 104.6 | O150: 56281500 | P150: 9.43%
A151: 141 | B151: Power | C151: NTPC | D151: 2023-05-25 | E151: 175.30 | F151: 175.93 | G151: 174.27 | H151: 173.23 | I151: 171.57 | J151: 176.97 | K151: 178.63 | L151: 179.67 | M151: 177.6 | N151: 174.9 | O151: 71558100 | P151: -1.16%
A152: 142 | B152: Realty | C152: OBEROIRLTY | D152: 2023-05-25 | E152: 889.45 | F152: 898.67 | G152: 877.93 | H152: 866.42 | I152: 845.68 | J152: 910.18 | K152: 930.92 | L152: 942.43 | M152: 919.4 | N152: 887.15 | O152: 6903400 | P152: 0.94%
A153: 143 | B153: Technology | C153: OFSS | D153: 2023-05-25 | E153: 3518.05 | F153: 3538.87 | G153: 3489.23 | H153: 3460.42 | I153: 3410.78 | J153: 3567.68 | K153: 3617.32 | L153: 3646.13 | M153: 3588.5 | N153: 3510.05 | O153: 242600 | P153: 4.12%
A154: 144 | B154: Oil_Gas | C154: ONGC | D154: 2023-05-25 | E154: 166.30 | F154: 166.80 | G154: 165.60 | H154: 164.90 | I154: 163.70 | J154: 167.50 | K154: 168.70 | L154: 169.40 | M154: 168 | N154: 166.1 | O154: 58027200 | P154: -1.89%
A155: 145 | B155: Textile | C155: PAGEIND | D155: 2023-05-25 | E155: 41790.10 | F155: 42083.28 | G155: 41336.82 | H155: 40883.53 | I155: 40137.07 | J155: 42536.57 | K155: 43283.03 | L155: 43736.32 | M155: 42829.75 | N155: 41630 | O155: 135240 | P155: 1.63%
A156: 146 | B156: Pharma | C156: PEL | D156: 2023-05-25 | E156: 749.90 | F156: 748.33 | G156: 740.57 | H156: 731.23 | I156: 723.47 | J156: 757.67 | K156: 765.43 | L156: 774.77 | M156: 756.1 | N156: 739 | O156: 9485500 | P156: 2.64%
A157: 147 | B157: Technology | C157: PERSISTENT | D157: 2023-05-25 | E157: 4736.20 | F157: 4767.88 | G157: 4698.12 | H157: 4660.03 | I157: 4590.27 | J157: 4805.97 | K157: 4875.73 | L157: 4913.82 | M157: 4837.65 | N157: 4729.8 | O157: 1133300 | P157: 0.64%
A158: 148 | B158: Oil_Gas | C158: PETRONET | D158: 2023-05-25 | E158: 227.15 | F158: 228.57 | G158: 224.83 | H158: 222.52 | I158: 218.78 | J158: 230.88 | K158: 234.62 | L158: 236.93 | M158: 232.3 | N158: 226.25 | O158: 13677000 | P158: -0.61%
A159: 149 | B159: Finance | C159: PFC | D159: 2023-05-25 | E159: 164.85 | F159: 166.00 | G159: 163.30 | H159: 161.75 | I159: 159.05 | J159: 167.55 | K159: 170.25 | L159: 171.80 | M159: 168.7 | N159: 164.45 | O159: 69768600 | P159: -0.19%
A160: 150 | B160: FMCG | C160: PIDILITIND | D160: 2023-05-25 | E160: 2549.90 | F160: 2554.22 | G160: 2537.58 | H160: 2525.27 | I160: 2508.63 | J160: 2566.53 | K160: 2583.17 | L160: 2595.48 | M160: 2570.85 | N160: 2541.9 | O160: 2206250 | P160: 1.92%
A161: 151 | B161: Chemical | C161: PIIND | D161: 2023-05-25 | E161: 3262.70 | F161: 3283.53 | G161: 3234.72 | H161: 3206.73 | I161: 3157.92 | J161: 3311.52 | K161: 3360.33 | L161: 3388.32 | M161: 3332.35 | N161: 3255.55 | O161: 2282750 | P161: 0.95%
A162: 152 | B162: Banking | C162: PNB | D162: 2023-05-25 | E162: 48.65 | F162: 48.92 | G162: 48.18 | H162: 47.72 | I162: 46.98 | J162: 49.38 | K162: 50.12 | L162: 50.58 | M162: 49.65 | N162: 48.45 | O162: 270384000 | P162: -3.09%
A163: 153 | B163: Others | C163: POLYCAB | D163: 2023-05-25 | E163: 3403.55 | F163: 3421.67 | G163: 3380.93 | H163: 3358.32 | I163: 3317.58 | J163: 3444.28 | K163: 3485.02 | L163: 3507.63 | M163: 3462.4 | N163: 3399.05 | O163: 1366200 | P163: -2.80%
A164: 154 | B164: Power | C164: POWERGRID | D164: 2023-05-25 | E164: 236.25 | F164: 237.35 | G164: 234.40 | H164: 232.55 | I164: 229.60 | J164: 239.20 | K164: 242.15 | L164: 244.00 | M164: 240.3 | N164: 235.5 | O164: 29205900 | P164: 1.69%
A165: 155 | B165: Media | C165: PVRINOX | D165: 2023-05-25 | E165: 1374.15 | F165: 1370.98 | G165: 1355.17 | H165: 1336.18 | I165: 1320.37 | J165: 1389.97 | K165: 1405.78 | L165: 1424.77 | M165: 1386.8 | N165: 1352 | O165: 3901502 | P165: -6.66%
A166: 156 | B166: Others | C166: RAIN | D166: 2023-05-25 | E166: 147.15 | F166: 148.42 | G166: 145.43 | H166: 143.72 | I166: 140.73 | J166: 150.13 | K166: 153.12 | L166: 154.83 | M166: 151.4 | N166: 146.7 | O166: 12869500 | P166: 1.83%
A167: 157 | B167: Cement | C167: RAMCOCEM | D167: 2023-05-25 | E167: 781.25 | F167: 779.77 | G167: 763.18 | H167: 745.12 | I167: 728.53 | J167: 797.83 | K167: 814.42 | L167: 832.48 | M167: 796.35 | N167: 761.7 | O167: 5089800 | P167: 20.34%
A168: 158 | B168: Banking | C168: RBLBANK | D168: 2023-05-25 | E168: 142.05 | F168: 143.52 | G168: 140.18 | H168: 138.32 | I168: 134.98 | J168: 145.38 | K168: 148.72 | L168: 150.58 | M168: 146.85 | N168: 141.65 | O168: 42795000 | P168: -0.72%
A169: 159 | B169: Power | C169: RECLTD | D169: 2023-05-25 | E169: 129.50 | F169: 130.92 | G169: 127.68 | H169: 125.87 | I169: 122.63 | J169: 132.73 | K169: 135.97 | L169: 137.78 | M169: 134.15 | N169: 129.1 | O169: 69304000 | P169: 2.25%
A170: 160 | B170: Oil_Gas | C170: RELIANCE | D170: 2023-05-25 | E170: 2439.25 | F170: 2443.72 | G170: 2428.53 | H170: 2417.82 | I170: 2402.63 | J170: 2454.43 | K170: 2469.62 | L170: 2480.33 | M170: 2458.9 | N170: 2433 | O170: 34256250 | P170: 0.99%
A171: 161 | B171: Metals | C171: SAIL | D171: 2023-05-25 | E171: 82.45 | F171: 82.80 | G171: 81.85 | H171: 81.25 | I171: 80.30 | J171: 83.40 | K171: 84.35 | L171: 84.95 | M171: 83.75 | N171: 82.2 | O171: 100880000 | P171: 0.18%
A172: 162 | B172: Banking | C172: SBICARD | D172: 2023-05-25 | E172: 880.60 | F172: 883.35 | G172: 875.70 | H172: 870.80 | I172: 863.15 | J172: 888.25 | K172: 895.90 | L172: 900.80 | M172: 891 | N172: 878.45 | O172: 8488800 | P172: 6.49%
A173: 163 | B173: Finance | C173: SBILIFE | D173: 2023-05-25 | E173: 1155.55 | F173: 1161.33 | G173: 1148.17 | H173: 1140.78 | I173: 1127.62 | J173: 1168.72 | K173: 1181.88 | L173: 1189.27 | M173: 1174.5 | N173: 1153.95 | O173: 6879750 | P173: 0.17%
A174: 164 | B174: Banking | C174: SBIN | D174: 2023-05-25 | E174: 574.75 | F174: 580.10 | G174: 566.70 | H174: 558.65 | I174: 545.25 | J174: 588.15 | K174: 601.55 | L174: 609.60 | M174: 593.5 | N174: 572.05 | O174: 79111500 | P174: 16.48%
A175: 165 | B175: Cement | C175: SHREECEM | D175: 2023-05-25 | E175: 23951.20 | F175: 24173.77 | G175: 23657.68 | H175: 23364.17 | I175: 22848.08 | J175: 24467.28 | K175: 24983.37 | L175: 25276.88 | M175: 24689.85 | N175: 23880.25 | O175: 337500 | P175: 7.02%
A176: 166 | B176: Capital_Goods | C176: SIEMENS | D176: 2023-05-25 | E176: 3841.20 | F176: 3860.95 | G176: 3812.00 | H176: 3782.80 | I176: 3733.85 | J176: 3890.15 | K176: 3939.10 | L176: 3968.30 | M176: 3909.9 | N176: 3831.75 | O176: 2164525 | P176: 0.45%
A177: 167 | B177: Textile | C177: SRF | D177: 2023-05-25 | E177: 2433.60 | F177: 2448.60 | G177: 2410.15 | H177: 2386.70 | I177: 2348.25 | J177: 2472.05 | K177: 2510.50 | L177: 2533.95 | M177: 2487.05 | N177: 2425.15 | O177: 2646750 | P177: 5.19%
A178: 168 | B178: Finance | C178: SHRIRAMFIN | D178: 2023-05-25 | E178: 1350.95 | F178: 1348.60 | G178: 1334.95 | H178: 1318.95 | I178: 1305.30 | J178: 1364.60 | K178: 1378.25 | L178: 1394.25 | M178: 1362.25 | N178: 1332.6 | O178: 4301400 | P178: -2.13%
A179: 169 | B179: Pharma | C179: SUNPHARMA | D179: 2023-05-25 | E179: 929.85 | F179: 931.92 | G179: 921.53 | H179: 913.22 | I179: 902.83 | J179: 940.23 | K179: 950.62 | L179: 958.93 | M179: 942.3 | N179: 923.6 | O179: 25129300 | P179: 1.33%
A180: 170 | B180: Media | C180: SUNTV | D180: 2023-05-25 | E180: 426.60 | F180: 431.65 | G180: 420.35 | H180: 414.10 | I180: 402.80 | J180: 437.90 | K180: 449.20 | L180: 455.45 | M180: 442.95 | N180: 425.4 | O180: 8464500 | P180: 2.14%
A181: 171 | B181: Pharma | C181: SYNGENE | D181: 2023-05-25 | E181: 698.90 | F181: 699.50 | G181: 693.95 | H181: 689.00 | I181: 683.45 | J181: 704.45 | K181: 710.00 | L181: 714.95 | M181: 705.05 | N181: 694.55 | O181: 2476000 | P181: 2.65%
A182: 172 | B182: Chemical | C182: TATACHEM | D182: 2023-05-25 | E182: 981.10 | F182: 983.50 | G182: 975.50 | H182: 969.90 | I182: 961.90 | J182: 989.10 | K182: 997.10 | L182: 1002.70 | M182: 991.5 | N182: 977.9 | O182: 5785000 | P182: 2.45%
A183: 173 | B183: Telecom | C183: TATACOMM | D183: 2023-05-25 | E183: 1222.15 | F183: 1229.00 | G183: 1212.85 | H183: 1203.55 | I183: 1187.40 | J183: 1238.30 | K183: 1254.45 | L183: 1263.75 | M183: 1245.15 | N183: 1219.7 | O183: 2940500 | P183: 5.21%
A184: 174 | B184: FMCG | C184: TATACONSUM | D184: 2023-05-25 | E184: 769.35 | F184: 771.80 | G184: 765.90 | H184: 762.45 | I184: 756.55 | J184: 775.25 | K184: 781.15 | L184: 784.60 | M184: 777.7 | N184: 768.35 | O184: 11688300 | P184: 0.82%
A185: 175 | B185: Automobile | C185: TATAMOTORS | D185: 2023-05-25 | E185: 509.55 | F185: 512.73 | G185: 504.82 | H185: 500.08 | I185: 492.17 | J185: 517.47 | K185: 525.38 | L185: 530.12 | M185: 520.65 | N185: 508 | O185: 60308850 | P185: 1.84%
A186: 176 | B186: Power | C186: TATAPOWER | D186: 2023-05-25 | E186: 204.95 | F186: 206.45 | G186: 203.10 | H186: 201.25 | I186: 197.90 | J186: 208.30 | K186: 211.65 | L186: 213.50 | M186: 209.8 | N186: 204.6 | O186: 95856750 | P186: 1.15%
A187: 177 | B187: Metals | C187: TATASTEEL | D187: 2023-05-25 | E187: 105.25 | F187: 105.88 | G187: 104.47 | H187: 103.68 | I187: 102.27 | J187: 106.67 | K187: 108.08 | L187: 108.87 | M187: 107.3 | N187: 105.1 | O187: 222057000 | P187: 2.87%
A188: 178 | B188: Technology | C188: TCS | D188: 2023-05-25 | E188: 3205.70 | F188: 3212.45 | G188: 3195.25 | H188: 3184.80 | I188: 3167.60 | J188: 3222.90 | K188: 3240.10 | L188: 3250.55 | M188: 3229.65 | N188: 3202 | O188: 11966850 | P188: 2.08%
A189: 179 | B189: Technology | C189: TECHM | D189: 2023-05-25 | E189: 1048.30 | F189: 1050.78 | G189: 1042.92 | H189: 1037.53 | I189: 1029.67 | J189: 1056.17 | K189: 1064.03 | L189: 1069.42 | M189: 1058.65 | N189: 1045.4 | O189: 10853400 | P189: 2.13%
A190: 180 | B190: FMCG | C190: TITAN | D190: 2023-05-25 | E190: 2728.75 | F190: 2743.77 | G190: 2709.03 | H190: 2689.32 | I190: 2654.58 | J190: 2763.48 | K190: 2798.22 | L190: 2817.93 | M190: 2778.5 | N190: 2724.05 | O190: 5268750 | P190: -0.17%
A191: 181 | B191: Pharma | C191: TORNTPHARM | D191: 2023-05-25 | E191: 1649.60 | F191: 1653.47 | G191: 1639.98 | H191: 1630.37 | I191: 1616.88 | J191: 1663.08 | K191: 1676.57 | L191: 1686.18 | M191: 1666.95 | N191: 1643.85 | O191: 1481500 | P191: 2.74%
A192: 182 | B192: Others | C192: TRENT | D192: 2023-05-25 | E192: 1488.85 | F192: 1497.62 | G192: 1477.33 | H192: 1465.82 | I192: 1445.53 | J192: 1509.13 | K192: 1529.42 | L192: 1540.93 | M192: 1517.9 | N192: 1486.1 | O192: 3247600 | P192: -0.23%
A193: 183 | B193: Automobile | C193: TVSMOTOR | D193: 2023-05-25 | E193: 1235.25 | F193: 1238.98 | G193: 1226.52 | H193: 1217.78 | I193: 1205.32 | J193: 1247.72 | K193: 1260.18 | L193: 1268.92 | M193: 1251.45 | N193: 1230.25 | O193: 7774200 | P193: 1.15%
A194: 184 | B194: FMCG | C194: UBL | D194: 2023-05-25 | E194: 1418.00 | F194: 1425.15 | G194: 1407.30 | H194: 1396.60 | I194: 1378.75 | J194: 1435.85 | K194: 1453.70 | L194: 1464.40 | M194: 1443 | N194: 1414.45 | O194: 2096400 | P194: 1.31%
A195: 185 | B195: Cement | C195: ULTRACEMCO | D195: 2023-05-25 | E195: 7616.00 | F195: 7664.33 | G195: 7556.72 | H195: 7497.43 | I195: 7389.82 | J195: 7723.62 | K195: 7831.23 | L195: 7890.52 | M195: 7771.95 | N195: 7605.05 | O195: 1898100 | P195: 0.14%
A196: 186 | B196: Chemical | C196: UPL | D196: 2023-05-25 | E196: 673.05 | F196: 675.90 | G196: 669.15 | H196: 665.25 | I196: 658.50 | J196: 679.80 | K196: 686.55 | L196: 690.45 | M196: 682.65 | N196: 672 | O196: 24592100 | P196: 2.22%
A197: 187 | B197: Metals | C197: VEDL | D197: 2023-05-25 | E197: 278.60 | F197: 280.55 | G197: 276.10 | H197: 273.60 | I197: 269.15 | J197: 283.05 | K197: 287.50 | L197: 290.00 | M197: 285 | N197: 278.05 | O197: 41616000 | P197: -1.16%
A198: 188 | B198: Capital_Goods | C198: VOLTAS | D198: 2023-05-25 | E198: 798.10 | F198: 801.57 | G198: 793.18 | H198: 788.27 | I198: 779.88 | J198: 806.48 | K198: 814.87 | L198: 819.78 | M198: 809.95 | N198: 796.65 | O198: 7485600 | P198: -0.22%
A199: 189 | B199: Capital_Goods | C199: WHIRLPOOL | D199: 2023-05-25 | E199: 1357.60 | F199: 1337.73 | G199: 1310.92 | H199: 1264.23 | I199: 1237.42 | J199: 1384.42 | K199: 1411.23 | L199: 1457.92 | M199: 1364.55 | N199: 1291.05 | O199: 625450 | P199: -6.29%
A200: 190 | B200: Technology | C200: WIPRO | D200: 2023-05-25 | E200: 383.30 | F200: 383.82 | G200: 382.03 | H200: 380.77 | I200: 378.98 | J200: 385.08 | K200: 386.87 | L200: 388.13 | M200: 385.6 | N200: 382.55 | O200: 29607000 | P200: -0.06%
A201: 191 | B201: Media | C201: ZEEL | D201: 2023-05-25 | E201: 185.10 | F201: 186.48 | G201: 183.47 | H201: 181.83 | I201: 178.82 | J201: 188.12 | K201: 191.13 | L201: 192.77 | M201: 189.5 | N201: 184.85 | O201: 84507000 | P201: 0.95%
A202: 192 | B202: Pharma | C202: ZYDUSLIFE | D202: 2023-05-25 | E202: 509.65 | F202: 513.47 | G202: 503.43 | H202: 497.22 | I202: 487.18 | J202: 519.68 | K202: 529.72 | L202: 535.93 | M202: 523.5 | N202: 507.25 | O202: 7461000 | P202: 4.20%
A203: 193
A204: 194
A221: Pivot Point: This is trigger point for intra day buy/sell based on the price range of the previous day
A222: As per the tool,the trader should take BUY position just above Pivot and keep the stop loss of pivot point and the first target would be Resistance 1(R1)
... 13 more rows

Sheet Cash Intra
M5: Back to Main Page
A6: FOR INTRA DAY TRADING | K6: =Main!B10 -> 2023-05-19
A8: Sr.no | C8: CLOSE RATE | D8: Pivot Point | E8: Supports | H8: Resistances
E9: S1 | F9: S2 | G9: S3 | H9: R1 | I9: R2 | J9: R3 | K9: HIGH | L9: LOW | M9: Total Trade Quanity in Lakhs
A10: 1 | B10: Nifty 50 | C10: 18129.95 | D10: 18177.33 | E10: 18057.47 | F10: 17984.98 | G10: 17865.12 | H10: 18249.82 | I10: 18369.68 | J10: 18442.17 | K10: 18297.20 | L10: 18104.85
A11: 2 | B11: Nifty Bank | C11: 43752.30 | D11: 43835.07 | E11: 43590.93 | F11: 43429.57 | G11: 43185.43 | H11: 43996.43 | I11: 44240.57 | J11: 44401.93 | K11: 44079.20 | L11: 43673.70
A12: 3 | B12: Nifty CPSE | C12: 3129.85 | D12: 3141.22 | E12: 3114.03 | F12: 3098.22 | G12: 3071.03 | H12: 3157.03 | I12: 3184.22 | J12: 3200.03 | K12: 3168.40 | L12: 3125.40
A13: 4 | B13: Nifty Infra | C13: 5348.05 | D13: 5371.45 | E13: 5318.20 | F13: 5288.35 | G13: 5235.10 | H13: 5401.30 | I13: 5454.55 | J13: 5484.40 | K13: 5424.70 | L13: 5341.60
A14: 5 | B14: Nifty IT | C14: 27892.55 | D14: 27963.00 | E14: 27788.30 | F14: 27684.05 | G14: 27509.35 | H14: 28067.25 | I14: 28241.95 | J14: 28346.20 | K14: 28137.70 | L14: 27858.75
A15: 6 | B15: Nifty PSE | C15: 4766.70 | D15: 4788.82 | E15: 4738.03 | F15: 4709.37 | G15: 4658.58 | H15: 4817.48 | I15: 4868.27 | J15: 4896.93 | K15: 4839.60 | L15: 4760.15
A16: 7 | B16: Nifty Midcap 50 | C16: 9176.55 | D16: 9209.92 | E16: 9132.63 | F16: 9088.72 | G16: 9011.43 | H16: 9253.83 | I16: 9331.12 | J16: 9375.03 | K16: 9287.20 | L16: 9166.00
A17: 8 | B17: ABB | C17: 3897.5 | D17: 3907.68 | E17: 3880.37 | F17: 3863.23 | G17: 3835.92 | H17: 3924.82 | I17: 3952.13 | J17: 3969.27 | K17: 3935 | L17: 3890.55 | M17: 1.41795
A18: 9 | B18: ACC | C18: 1712.45 | D18: 1731.95 | E18: 1684.95 | F18: 1657.45 | G18: 1610.45 | H18: 1759.45 | I18: 1806.45 | J18: 1833.95 | K18: 1778.95 | L18: 1704.45 | M18: 6.47641
A19: 10 | B19: AUBANK | C19: 747.6 | D19: 743.65 | E19: 732.40 | F19: 717.20 | G19: 705.95 | H19: 758.85 | I19: 770.10 | J19: 785.30 | K19: 754.9 | L19: 728.45 | M19: 34.22021
A20: 11 | B20: ABBOTINDIA | C20: 20970.55 | D20: 21085.50 | E20: 20817.05 | F20: 20663.55 | G20: 20395.10 | H20: 21239.00 | I20: 21507.45 | J20: 21660.95 | K20: 21353.95 | L20: 20932 | M20: 0.07346
A21: 12 | B21: ADANIENT | C21: 1890 | D21: 1897.07 | E21: 1870.13 | F21: 1850.27 | G21: 1823.33 | H21: 1916.93 | I21: 1943.87 | J21: 1963.73 | K21: 1924 | L21: 1877.2 | M21: 24.37396
A22: 13 | B22: ADANIGREEN | C22: 860.55 | D22: 865.98 | E22: 844.57 | F22: 828.58 | G22: 807.17 | H22: 881.97 | I22: 903.38 | J22: 919.37 | K22: 887.4 | L22: 850 | M22: 6.46071
A23: 14 | B23: ADANIPORTS | C23: 664.95 | D23: 671.98 | E23: 654.27 | F23: 643.58 | G23: 625.87 | H23: 682.67 | I23: 700.38 | J23: 711.07 | K23: 689.7 | L23: 661.3 | M23: 44.0541
A24: 15 | B24: ATGL | C24: 666.65 | D24: 672.00 | E24: 661.30 | F24: 655.95 | G24: 645.25 | H24: 677.35 | I24: 688.05 | J24: 693.40 | K24: 682.7 | L24: 666.65 | M24: 29.68685
A25: 16 | B25: ADANITRANS | C25: 751.6 | D25: 765.62 | E25: 736.48 | F25: 721.37 | G25: 692.23 | H25: 780.73 | I25: 809.87 | J25: 824.98 | K25: 794.75 | L25: 750.5 | M25: 23.61332
A26: 17 | B26: AWL | C26: 378 | D26: 381.07 | E26: 373.93 | F26: 369.87 | G26: 362.73 | H26: 385.13 | I26: 392.27 | J26: 396.33 | K26: 388.2 | L26: 377 | M26: 8.37536
A27: 18 | B27: ABCAPITAL | C27: 164.8 | D27: 165.63 | E27: 163.52 | F27: 162.23 | G27: 160.12 | H27: 166.92 | I27: 169.03 | J27: 170.32 | K27: 167.75 | L27: 164.35 | M27: 25.80037
A28: 19 | B28: ABFRL | C28: 193.7 | D28: 194.40 | E28: 191.30 | F28: 188.90 | G28: 185.80 | H28: 196.80 | I28: 199.90 | J28: 202.30 | K28: 197.5 | L28: 192 | M28: 38.52667
A29: 20 | B29: ALKEM | C29: 3326.3 | D29: 3343.83 | E29: 3295.62 | F29: 3264.93 | G29: 3216.72 | H29: 3374.52 | I29: 3422.73 | J29: 3453.42 | K29: 3392.05 | L29: 3313.15 | M29: 3.73242
A30: 21 | B30: AMBUJACEM | C30: 399.05 | D30: 401.12 | E30: 393.43 | F30: 387.82 | G30: 380.13 | H30: 406.73 | I30: 414.42 | J30: 420.03 | K30: 408.8 | L30: 395.5 | M30: 42.66534
A31: 22 | B31: APOLLOHOSP | C31: 4442 | D31: 4468.30 | E31: 4406.70 | F31: 4371.40 | G31: 4309.80 | H31: 4503.60 | I31: 4565.20 | J31: 4600.50 | K31: 4529.9 | L31: 4433 | M31: 1.67057
A32: 23 | B32: ASHOKLEY | C32: 152.7 | D32: 153.10 | E32: 151.70 | F32: 150.70 | G32: 149.30 | H32: 154.10 | I32: 155.50 | J32: 156.50 | K32: 154.5 | L32: 152.1 | M32: 50.6549
A33: 24 | B33: ASIANPAINT | C33: 3109.05 | D33: 3109.10 | E33: 3093.20 | F33: 3077.35 | G33: 3061.45 | H33: 3124.95 | I33: 3140.85 | J33: 3156.70 | K33: 3125 | L33: 3093.25 | M33: 4.98067
A34: 25 | B34: ASTRAL | C34: 1684.2 | D34: 1693.92 | E34: 1659.03 | F34: 1633.87 | G34: 1598.98 | H34: 1719.08 | I34: 1753.97 | J34: 1779.13 | K34: 1728.8 | L34: 1668.75 | M34: 7.29612
A35: 26 | B35: AUROPHARMA | C35: 599.8 | D35: 605.57 | E35: 590.58 | F35: 581.37 | G35: 566.38 | H35: 614.78 | I35: 629.77 | J35: 638.98 | K35: 620.55 | L35: 596.35 | M35: 11.71793
A36: 27 | B36: DMART | C36: 3368.55 | D36: 3390.55 | E36: 3330.00 | F36: 3291.45 | G36: 3230.90 | H36: 3429.10 | I36: 3489.65 | J36: 3528.20 | K36: 3451.1 | L36: 3352 | M36: 2.89248
A37: 28 | B37: AXISBANK | C37: 914.7 | D37: 918.93 | E37: 908.37 | F37: 902.03 | G37: 891.47 | H37: 925.27 | I37: 935.83 | J37: 942.17 | K37: 929.5 | L37: 912.6 | M37: 136.14127
A38: 29 | B38: BAJAJ-AUTO | C38: 4518.65 | D38: 4534.78 | E38: 4497.12 | F38: 4475.58 | G38: 4437.92 | H38: 4556.32 | I38: 4593.98 | J38: 4615.52 | K38: 4572.45 | L38: 4513.25 | M38: 1.94233
A39: 30 | B39: BAJFINANCE | C39: 6789.4 | D39: 6788.40 | E39: 6746.15 | F39: 6702.90 | G39: 6660.65 | H39: 6831.65 | I39: 6873.90 | J39: 6917.15 | K39: 6830.65 | L39: 6745.15 | M39: 11.06718
A40: 31 | B40: BAJAJFINSV | C40: 1415.45 | D40: 1419.17 | E40: 1408.33 | F40: 1401.22 | G40: 1390.38 | H40: 1426.28 | I40: 1437.12 | J40: 1444.23 | K40: 1430 | L40: 1412.05 | M40: 7.39262
A41: 32 | B41: BAJAJHLDNG | C41: 6328.75 | D41: 6375.00 | E41: 6240.05 | F41: 6151.35 | G41: 6016.40 | H41: 6463.70 | I41: 6598.65 | J41: 6687.35 | K41: 6509.95 | L41: 6286.3 | M41: 0.20865
A42: 33 | B42: BALKRISIND | C42: 2190.05 | D42: 2197.68 | E42: 2175.37 | F42: 2160.68 | G42: 2138.37 | H42: 2212.37 | I42: 2234.68 | J42: 2249.37 | K42: 2220 | L42: 2183 | M42: 0.84498
A43: 34 | B43: BANDHANBNK | C43: 244 | D43: 245.17 | E43: 242.03 | F43: 240.07 | G43: 236.93 | H43: 247.13 | I43: 250.27 | J43: 252.23 | K43: 248.3 | L43: 243.2 | M43: 72.80219
A44: 35 | B44: BANKBARODA | C44: 180.35 | D44: 182.58 | E44: 177.57 | F44: 174.78 | G44: 169.77 | H44: 185.37 | I44: 190.38 | J44: 193.17 | K44: 187.6 | L44: 179.8 | M44: 317.27394
A45: 36 | B45: BANKINDIA | C45: 76.35 | D45: 76.73 | E45: 75.62 | F45: 74.88 | G45: 73.77 | H45: 77.47 | I45: 78.58 | J45: 79.32 | K45: 77.85 | L45: 76 | M45: 44.64221
A46: 37 | B46: BATAINDIA | C46: 1525.55 | D46: 1529.18 | E46: 1513.92 | F46: 1502.28 | G46: 1487.02 | H46: 1540.82 | I46: 1556.08 | J46: 1567.72 | K46: 1544.45 | L46: 1517.55 | M46: 1.5732
A47: 38 | B47: BERGEPAINT | C47: 622.75 | D47: 622.27 | E47: 618.23 | F47: 613.72 | G47: 609.68 | H47: 626.78 | I47: 630.82 | J47: 635.33 | K47: 626.3 | L47: 617.75 | M47: 6.45528
A48: 39 | B48: BEL | C48: 107.8 | D48: 108.10 | E48: 106.95 | F48: 106.10 | G48: 104.95 | H48: 108.95 | I48: 110.10 | J48: 110.95 | K48: 109.25 | L48: 107.25 | M48: 72.20608
A49: 40 | B49: BHARATFORG | C49: 765.45 | D49: 770.60 | E49: 757.20 | F49: 748.95 | G49: 735.55 | H49: 778.85 | I49: 792.25 | J49: 800.50 | K49: 784 | L49: 762.35 | M49: 7.96524
A50: 41 | B50: BHEL | C50: 81.65 | D50: 82.25 | E50: 80.90 | F50: 80.15 | G50: 78.80 | H50: 83.00 | I50: 84.35 | J50: 85.10 | K50: 83.6 | L50: 81.5 | M50: 152.42495
A51: 42 | B51: BPCL | C51: 360.7 | D51: 362.27 | E51: 358.53 | F51: 356.37 | G51: 352.63 | H51: 364.43 | I51: 368.17 | J51: 370.33 | K51: 366 | L51: 360.1 | M51: 17.13445
A52: 43 | B52: BHARTIARTL | C52: 799.35 | D52: 799.00 | E52: 795.00 | F52: 790.65 | G52: 786.65 | H52: 803.35 | I52: 807.35 | J52: 811.70 | K52: 803 | L52: 794.65 | M52: 113.83252
A53: 44 | B53: BIOCON | C53: 245.05 | D53: 245.98 | E53: 243.47 | F53: 241.88 | G53: 239.37 | H53: 247.57 | I53: 250.08 | J53: 251.67 | K53: 248.5 | L53: 244.4 | M53: 19.11242
A54: 45 | B54: BOSCHLTD | C54: 19014.55 | D54: 19101.37 | E54: 18883.88 | F54: 18753.22 | G54: 18535.73 | H54: 19232.03 | I54: 19449.52 | J54: 19580.18 | K54: 19318.85 | L54: 18970.7 | M54: 0.13824
A55: 46 | B55: BRITANNIA | C55: 4564.35 | D55: 4592.62 | E55: 4529.73 | F55: 4495.12 | G55: 4432.23 | H55: 4627.23 | I55: 4690.12 | J55: 4724.73 | K55: 4655.5 | L55: 4558 | M55: 1.55214
A56: 47 | B56: CANBK | C56: 295.15 | D56: 298.22 | E56: 290.93 | F56: 286.72 | G56: 279.43 | H56: 302.43 | I56: 309.72 | J56: 313.93 | K56: 305.5 | L56: 294 | M56: 81.79149
A57: 48 | B57: CHOLAFIN | C57: 1042.3 | D57: 1034.45 | E57: 1018.95 | F57: 995.60 | G57: 980.10 | H57: 1057.80 | I57: 1073.30 | J57: 1096.65 | K57: 1049.95 | L57: 1011.1 | M57: 33.47392
A58: 49 | B58: CIPLA | C58: 914.5 | D58: 918.57 | E58: 907.48 | F58: 900.47 | G58: 889.38 | H58: 925.58 | I58: 936.67 | J58: 943.68 | K58: 929.65 | L58: 911.55 | M58: 18.81606
A59: 50 | B59: CLEAN | C59: 1506.35 | D59: 1525.75 | E59: 1477.10 | F59: 1447.85 | G59: 1399.20 | H59: 1555.00 | I59: 1603.65 | J59: 1632.90 | K59: 1574.4 | L59: 1496.5 | M59: 2.896
A60: 51 | B60: COALINDIA | C60: 239.6 | D60: 240.48 | E60: 238.07 | F60: 236.53 | G60: 234.12 | H60: 242.02 | I60: 244.43 | J60: 245.97 | K60: 242.9 | L60: 238.95 | M60: 35.12113
A61: 52 | B61: COFORGE | C61: 4206.15 | D61: 4212.22 | E61: 4169.43 | F61: 4132.72 | G61: 4089.93 | H61: 4248.93 | I61: 4291.72 | J61: 4328.43 | K61: 4255 | L61: 4175.5 | M61: 2.04276
A62: 53 | B62: COLPAL | C62: 1635.6 | D62: 1651.22 | E62: 1615.43 | F62: 1595.27 | G62: 1559.48 | H62: 1671.38 | I62: 1707.17 | J62: 1727.33 | K62: 1687 | L62: 1631.05 | M62: 3.88799
A63: 54 | B63: CONCOR | C63: 631.4 | D63: 634.32 | E63: 625.28 | F63: 619.17 | G63: 610.13 | H63: 640.43 | I63: 649.47 | J63: 655.58 | K63: 643.35 | L63: 628.2 | M63: 16.77962
A64: 55 | B64: COROMANDEL | C64: 943 | D64: 950.92 | E64: 912.83 | F64: 882.67 | G64: 844.58 | H64: 981.08 | I64: 1019.17 | J64: 1049.33 | K64: 989 | L64: 920.75 | M64: 13.85832
A65: 56 | B65: CROMPTON | C65: 253.85 | D65: 254.38 | E65: 252.77 | F65: 251.68 | G65: 250.07 | H65: 255.47 | I65: 257.08 | J65: 258.17 | K65: 256 | L65: 253.3 | M65: 12.78307
A66: 57 | B66: CUMMINSIND | C66: 1644.05 | D66: 1654.68 | E66: 1629.37 | F66: 1614.68 | G66: 1589.37 | H66: 1669.37 | I66: 1694.68 | J66: 1709.37 | K66: 1680 | L66: 1640 | M66: 5.94239
A67: 58 | B67: DLF | C67: 459.95 | D67: 464.77 | E67: 453.53 | F67: 447.12 | G67: 435.88 | H67: 471.18 | I67: 482.42 | J67: 488.83 | K67: 476 | L67: 458.35 | M67: 58.52119
A68: 59 | B68: DABUR | C68: 523.45 | D68: 524.30 | E68: 521.15 | F68: 518.85 | G68: 515.70 | H68: 526.60 | I68: 529.75 | J68: 532.05 | K68: 527.45 | L68: 522 | M68: 15.79098
A69: 60 | B69: DALBHARAT | C69: 2062.6 | D69: 2076.35 | E69: 2039.25 | F69: 2015.90 | G69: 1978.80 | H69: 2099.70 | I69: 2136.80 | J69: 2160.15 | K69: 2113.45 | L69: 2053 | M69: 2.24608
A70: 61 | B70: DEEPAKNTR | C70: 1966.5 | D70: 1977.70 | E70: 1949.25 | F70: 1932.00 | G70: 1903.55 | H70: 1994.95 | I70: 2023.40 | J70: 2040.65 | K70: 2006.15 | L70: 1960.45 | M70: 6.18375
A71: 62 | B71: DELHIVERY | C71: 365.6 | D71: 366.33 | E71: 361.62 | F71: 357.63 | G71: 352.92 | H71: 370.32 | I71: 375.03 | J71: 379.02 | K71: 371.05 | L71: 362.35 | M71: 3.60174
A72: 63 | B72: DIVISLAB | C72: 3153.5 | D72: 3194.15 | E72: 3103.35 | F72: 3053.20 | G72: 2962.40 | H72: 3244.30 | I72: 3335.10 | J72: 3385.25 | K72: 3284.95 | L72: 3144 | M72: 7.66236
A73: 64 | B73: DIXON | C73: 2983.7 | D73: 2996.58 | E73: 2953.17 | F73: 2922.63 | G73: 2879.22 | H73: 3027.12 | I73: 3070.53 | J73: 3101.07 | K73: 3040 | L73: 2966.05 | M73: 9.12471
A74: 65 | B74: LALPATHLAB | C74: 1976.15 | D74: 1990.50 | E74: 1956.00 | F74: 1935.85 | G74: 1901.35 | H74: 2010.65 | I74: 2045.15 | J74: 2065.30 | K74: 2025 | L74: 1970.35 | M74: 1.10558
A75: 66 | B75: DRREDDY | C75: 4423.1 | D75: 4443.40 | E75: 4384.60 | F75: 4346.10 | G75: 4287.30 | H75: 4481.90 | I75: 4540.70 | J75: 4579.20 | K75: 4502.2 | L75: 4404.9 | M75: 4.25447
A76: 67 | B76: EICHERMOT | C76: 3576.15 | D76: 3598.85 | E76: 3547.75 | F76: 3519.35 | G76: 3468.25 | H76: 3627.25 | I76: 3678.35 | J76: 3706.75 | K76: 3649.95 | L76: 3570.45 | M76: 12.35091
A77: 68 | B77: EMAMILTD | C77: 390 | D77: 389.88 | E77: 387.12 | F77: 384.23 | G77: 381.47 | H77: 392.77 | I77: 395.53 | J77: 398.42 | K77: 392.65 | L77: 387 | M77: 1.14274
A78: 69 | B78: ESCORTS | C78: 2084.05 | D78: 2098.47 | E78: 2060.63 | F78: 2037.22 | G78: 1999.38 | H78: 2121.88 | I78: 2159.72 | J78: 2183.13 | K78: 2136.3 | L78: 2075.05 | M78: 1.89723
A79: 70 | B79: NYKAA | C79: 125.75 | D79: 126.47 | E79: 124.33 | F79: 122.92 | G79: 120.78 | H79: 127.88 | I79: 130.02 | J79: 131.43 | K79: 128.6 | L79: 125.05 | M79: 26.34053
A80: 71 | B80: FEDERALBNK | C80: 126.75 | D80: 127.32 | E80: 125.88 | F80: 125.02 | G80: 123.58 | H80: 128.18 | I80: 129.62 | J80: 130.48 | K80: 128.75 | L80: 126.45 | M80: 110.1888
A81: 72 | B81: FORTIS | C81: 283.65 | D81: 282.88 | E81: 280.77 | F81: 277.88 | G81: 275.77 | H81: 285.77 | I81: 287.88 | J81: 290.77 | K81: 285 | L81: 280 | M81: 6.59087
A82: 73 | B82: GAIL | C82: 106.2 | D82: 107.28 | E82: 103.72 | F82: 101.23 | G82: 97.67 | H82: 109.77 | I82: 113.33 | J82: 115.82 | K82: 110.85 | L82: 104.8 | M82: 247.15468
A83: 74 | B83: GLAND | C83: 1331.95 | D83: 1342.30 | E83: 1304.70 | F83: 1277.45 | G83: 1239.85 | H83: 1369.55 | I83: 1407.15 | J83: 1434.40 | K83: 1379.9 | L83: 1315.05 | M83: 2.37928
A84: 75 | B84: GODREJCP | C84: 1008.8 | D84: 1012.43 | E84: 1002.37 | F84: 995.93 | G84: 985.87 | H84: 1018.87 | I84: 1028.93 | J84: 1035.37 | K84: 1022.5 | L84: 1006 | M84: 6.91877
A85: 76 | B85: GODREJPROP | C85: 1309.15 | D85: 1336.07 | E85: 1274.48 | F85: 1239.82 | G85: 1178.23 | H85: 1370.73 | I85: 1432.32 | J85: 1466.98 | K85: 1397.65 | L85: 1301.4 | M85: 13.36663
A86: 77 | B86: GRASIM | C86: 1705.7 | D86: 1711.82 | E86: 1690.63 | F86: 1675.57 | G86: 1654.38 | H86: 1726.88 | I86: 1748.07 | J86: 1763.13 | K86: 1733 | L86: 1696.75 | M86: 2.3175
A87: 78 | B87: GUJGASLTD | C87: 487 | D87: 488.75 | E87: 480.05 | F87: 473.10 | G87: 464.40 | H87: 495.70 | I87: 504.40 | J87: 511.35 | K87: 497.45 | L87: 481.8 | M87: 9.77594
A88: 79 | B88: GSPL | C88: 277.85 | D88: 280.83 | E88: 273.22 | F88: 268.58 | G88: 260.97 | H88: 285.47 | I88: 293.08 | J88: 297.72 | K88: 288.45 | L88: 276.2 | M88: 4.04875
A89: 80 | B89: HCLTECH | C89: 1079.9 | D89: 1079.30 | E89: 1073.60 | F89: 1067.30 | G89: 1061.60 | H89: 1085.60 | I89: 1091.30 | J89: 1097.60 | K89: 1085 | L89: 1073 | M89: 15.15743
A90: 81 | B90: HDFCAMC | C90: 1813.6 | D90: 1817.40 | E90: 1800.45 | F90: 1787.30 | G90: 1770.35 | H90: 1830.55 | I90: 1847.50 | J90: 1860.65 | K90: 1834.35 | L90: 1804.25 | M90: 1.63499
A91: 82 | B91: HDFCBANK | C91: 1645 | D91: 1646.32 | E91: 1638.68 | F91: 1632.37 | G91: 1624.73 | H91: 1652.63 | I91: 1660.27 | J91: 1666.58 | K91: 1653.95 | L91: 1640 | M91: 248.23471
A92: 83 | B92: HDFCLIFE | C92: 561.55 | D92: 563.22 | E92: 557.63 | F92: 553.72 | G92: 548.13 | H92: 567.13 | I92: 572.72 | J92: 576.63 | K92: 568.8 | L92: 559.3 | M92: 17.45334
A93: 84 | B93: HAVELLS | C93: 1264.4 | D93: 1267.40 | E93: 1258.05 | F93: 1251.70 | G93: 1242.35 | H93: 1273.75 | I93: 1283.10 | J93: 1289.45 | K93: 1276.75 | L93: 1261.05 | M93: 2.61779
A94: 85 | B94: HEROMOTOCO | C94: 2735.15 | D94: 2739.52 | E94: 2719.88 | F94: 2704.62 | G94: 2684.98 | H94: 2754.78 | I94: 2774.42 | J94: 2789.68 | K94: 2759.15 | L94: 2724.25 | M94: 6.1041
A95: 86 | B95: HINDALCO | C95: 406.5 | D95: 408.52 | E95: 403.63 | F95: 400.77 | G95: 395.88 | H95: 411.38 | I95: 416.27 | J95: 419.13 | K95: 413.4 | L95: 405.65 | M95: 40.78918
A96: 87 | B96: HAL | C96: 3093.9 | D96: 3103.50 | E96: 3057.40 | F96: 3020.90 | G96: 2974.80 | H96: 3140.00 | I96: 3186.10 | J96: 3222.60 | K96: 3149.6 | L96: 3067 | M96: 8.93471
A97: 88 | B97: HINDPETRO | C97: 254.4 | D97: 255.73 | E97: 251.87 | F97: 249.33 | G97: 245.47 | H97: 258.27 | I97: 262.13 | J97: 264.67 | K97: 259.6 | L97: 253.2 | M97: 14.40341
A98: 89 | B98: HINDUNILVR | C98: 2627.55 | D98: 2639.53 | E98: 2609.87 | F98: 2592.18 | G98: 2562.52 | H98: 2657.22 | I98: 2686.88 | J98: 2704.57 | K98: 2669.2 | L98: 2621.85 | M98: 14.34067
A99: 90 | B99: HINDZINC | C99: 310.3 | D99: 311.27 | E99: 309.03 | F99: 307.77 | G99: 305.53 | H99: 312.53 | I99: 314.77 | J99: 316.03 | K99: 313.5 | L99: 310 | M99: 3.03319
A100: 91 | B100: HONAUT | C100: 40206.65 | D100: 40188.62 | E100: 39118.43 | F100: 38030.22 | G100: 36960.03 | H100: 41276.83 | I100: 42347.02 | J100: 43435.23 | K100: 41258.8 | L100: 39100.4 | M100: 0.5744
A101: 92 | B101: HDFC | C101: 2716 | D101: 2718.48 | E101: 2704.62 | F101: 2693.23 | G101: 2679.37 | H101: 2729.87 | I101: 2743.73 | J101: 2755.12 | K101: 2732.35 | L101: 2707.1 | M101: 21.44878
A102: 93 | B102: ICICIBANK | C102: 946.5 | D102: 946.95 | E102: 941.65 | F102: 936.80 | G102: 931.50 | H102: 951.80 | I102: 957.10 | J102: 961.95 | K102: 952.25 | L102: 942.1 | M102: 215.50141
A103: 94 | B103: ICICIGI | C103: 1094.8 | D103: 1102.40 | E103: 1084.90 | F103: 1075.00 | G103: 1057.50 | H103: 1112.30 | I103: 1129.80 | J103: 1139.70 | K103: 1119.9 | L103: 1092.5 | M103: 3.07752
A104: 95 | B104: ICICIPRULI | C104: 424.25 | D104: 427.22 | E104: 420.03 | F104: 415.82 | G104: 408.63 | H104: 431.43 | I104: 438.62 | J104: 442.83 | K104: 434.4 | L104: 423 | M104: 11.90785
A105: 96 | B105: ISEC | C105: 491.75 | D105: 494.68 | E105: 485.92 | F105: 480.08 | G105: 471.32 | H105: 500.52 | I105: 509.28 | J105: 515.12 | K105: 503.45 | L105: 488.85 | M105: 1.12798
A106: 97 | B106: IDFCFIRSTB | C106: 66.7 | D106: 67.00 | E106: 66.20 | F106: 65.70 | G106: 64.90 | H106: 67.50 | I106: 68.30 | J106: 68.80 | K106: 67.8 | L106: 66.5 | M106: 284.49421
A107: 98 | B107: ITC | C107: 419.7 | D107: 423.42 | E107: 414.38 | F107: 409.07 | G107: 400.03 | H107: 428.73 | I107: 437.77 | J107: 443.08 | K107: 432.45 | L107: 418.1 | M107: 239.95166
A108: 99 | B108: INDIAMART | C108: 5640.7 | D108: 5706.13 | E108: 5550.42 | F108: 5460.13 | G108: 5304.42 | H108: 5796.42 | I108: 5952.13 | J108: 6042.42 | K108: 5861.85 | L108: 5615.85 | M108: 1.12964
A109: 100 | B109: INDIANB | C109: 287.1 | D109: 288.52 | E109: 283.98 | F109: 280.87 | G109: 276.33 | H109: 291.63 | I109: 296.17 | J109: 299.28 | K109: 293.05 | L109: 285.4 | M109: 13.10662
A110: 101 | B110: IEX | C110: 159.1 | D110: 160.15 | E110: 157.40 | F110: 155.70 | G110: 152.95 | H110: 161.85 | I110: 164.60 | J110: 166.30 | K110: 162.9 | L110: 158.45 | M110: 61.44795
A111: 102 | B111: INDHOTEL | C111: 366.6 | D111: 368.12 | E111: 363.73 | F111: 360.87 | G111: 356.48 | H111: 370.98 | I111: 375.37 | J111: 378.23 | K111: 372.5 | L111: 365.25 | M111: 44.62806
A112: 103 | B112: IOC | C112: 86 | D112: 86.52 | E112: 85.28 | F112: 84.57 | G112: 83.33 | H112: 87.23 | I112: 88.47 | J112: 89.18 | K112: 87.75 | L112: 85.8 | M112: 161.19484
A113: 104 | B113: IRCTC | C113: 614.85 | D113: 618.55 | E113: 609.30 | F113: 603.75 | G113: 594.50 | H113: 624.10 | I113: 633.35 | J113: 638.90 | K113: 627.8 | L113: 613 | M113: 7.23251
A114: 105 | B114: IGL | C114: 479.75 | D114: 483.40 | E114: 474.85 | F114: 469.95 | G114: 461.40 | H114: 488.30 | I114: 496.85 | J114: 501.75 | K114: 491.95 | L114: 478.5 | M114: 11.3137
A115: 106 | B115: INDUSTOWER | C115: 147.5 | D115: 149.02 | E115: 145.48 | F115: 143.47 | G115: 139.93 | H115: 151.03 | I115: 154.57 | J115: 156.58 | K115: 152.55 | L115: 147 | M115: 57.23714
A116: 107 | B116: INDUSINDBK | C116: 1238.9 | D116: 1239.20 | E116: 1230.40 | F116: 1221.90 | G116: 1213.10 | H116: 1247.70 | I116: 1256.50 | J116: 1265.00 | K116: 1248 | L116: 1230.7 | M116: 24.89971
A117: 108 | B117: NAUKRI | C117: 3743.15 | D117: 3772.03 | E117: 3674.07 | F117: 3604.98 | G117: 3507.02 | H117: 3841.12 | I117: 3939.08 | J117: 4008.17 | K117: 3870 | L117: 3702.95 | M117: 3.29601
A118: 109 | B118: INFY | C118: 1246 | D118: 1249.37 | E118: 1239.08 | F118: 1232.17 | G118: 1221.88 | H118: 1256.28 | I118: 1266.57 | J118: 1273.48 | K118: 1259.65 | L118: 1242.45 | M118: 69.48732
A119: 110 | B119: INDIGO | C119: 2264.65 | D119: 2284.30 | E119: 2235.65 | F119: 2206.65 | G119: 2158.00 | H119: 2313.30 | I119: 2361.95 | J119: 2390.95 | K119: 2332.95 | L119: 2255.3 | M119: 8.27802
A120: 111 | B120: IPCALAB | C120: 675.15 | D120: 677.83 | E120: 667.92 | F120: 660.68 | G120: 650.77 | H120: 685.07 | I120: 694.98 | J120: 702.22 | K120: 687.75 | L120: 670.6 | M120: 5.47219
A121: 112 | B121: JSWENERGY | C121: 246.75 | D121: 247.55 | E121: 244.25 | F121: 241.75 | G121: 238.45 | H121: 250.05 | I121: 253.35 | J121: 255.85 | K121: 250.85 | L121: 245.05 | M121: 5.60835
A122: 113 | B122: JSWSTEEL | C122: 692.05 | D122: 696.93 | E122: 684.37 | F122: 676.68 | G122: 664.12 | H122: 704.62 | I122: 717.18 | J122: 724.87 | K122: 709.5 | L122: 689.25 | M122: 36.67407
A123: 114 | B123: JINDALSTEL | C123: 523.85 | D123: 528.22 | E123: 517.18 | F123: 510.52 | G123: 499.48 | H123: 534.88 | I123: 545.92 | J123: 552.58 | K123: 539.25 | L123: 521.55 | M123: 40.00851
A124: 115 | B124: JUBLFOOD | C124: 474.7 | D124: 471.73 | E124: 458.57 | F124: 442.43 | G124: 429.27 | H124: 487.87 | I124: 501.03 | J124: 517.17 | K124: 484.9 | L124: 455.6 | M124: 89.89464
A125: 116 | B125: KOTAKBANK | C125: 1927.4 | D125: 1924.08 | E125: 1914.52 | F125: 1901.63 | G125: 1892.07 | H125: 1936.97 | I125: 1946.53 | J125: 1959.42 | K125: 1933.65 | L125: 1911.2 | M125: 41.45228
A126: 117 | B126: L&TFH | C126: 99.45 | D126: 100.23 | E126: 98.07 | F126: 96.68 | G126: 94.52 | H126: 101.62 | I126: 103.78 | J126: 105.17 | K126: 102.4 | L126: 98.85 | M126: 159.65978
A127: 118 | B127: LTTS | C127: 3844.4 | D127: 3849.13 | E127: 3820.32 | F127: 3796.23 | G127: 3767.42 | H127: 3873.22 | I127: 3902.03 | J127: 3926.12 | K127: 3877.95 | L127: 3825.05 | M127: 1.10674
A128: 119 | B128: LICHSGFIN | C128: 365.8 | D128: 367.85 | E128: 360.70 | F128: 355.60 | G128: 348.45 | H128: 372.95 | I128: 380.10 | J128: 385.20 | K128: 375 | L128: 362.75 | M128: 37.30009
A129: 120 | B129: LTIM | C129: 4712.8 | D129: 4730.48 | E129: 4683.32 | F129: 4653.83 | G129: 4606.67 | H129: 4759.97 | I129: 4807.13 | J129: 4836.62 | K129: 4777.65 | L129: 4701 | M129: 2.46516
A130: 121 | B130: LT | C130: 2188.2 | D130: 2200.92 | E130: 2168.28 | F130: 2148.37 | G130: 2115.73 | H130: 2220.83 | I130: 2253.47 | J130: 2273.38 | K130: 2233.55 | L130: 2181 | M130: 22.90757
A131: 122 | B131: LAURUSLABS | C131: 310.4 | D131: 312.27 | E131: 307.58 | F131: 304.77 | G131: 300.08 | H131: 315.08 | I131: 319.77 | J131: 322.58 | K131: 316.95 | L131: 309.45 | M131: 11.60609
A132: 123 | B132: LICI | C132: 568.15 | D132: 570.67 | E132: 564.48 | F132: 560.82 | G132: 554.63 | H132: 574.33 | I132: 580.52 | J132: 584.18 | K132: 576.85 | L132: 567 | M132: 9.64354
A133: 124 | B133: LINDEINDIA | C133: 3956.2 | D133: 3964.10 | E133: 3933.20 | F133: 3910.20 | G133: 3879.30 | H133: 3987.10 | I133: 4018.00 | J133: 4041.00 | K133: 3995 | L133: 3941.1 | M133: 0.11837
A134: 125 | B134: LUPIN | C134: 779.3 | D134: 777.75 | E134: 773.15 | F134: 767.00 | G134: 762.40 | H134: 783.90 | I134: 788.50 | J134: 794.65 | K134: 782.35 | L134: 771.6 | M134: 5.97261
A135: 126 | B135: MRF | C135: 97060.7 | D135: 97420.27 | E135: 96440.53 | F135: 95820.37 | G135: 94840.63 | H135: 98040.43 | I135: 99020.17 | J135: 99640.33 | K135: 98400 | L135: 96800.1 | M135: 0.08164
A136: 127 | B136: M&MFIN | C136: 285.1 | D136: 286.53 | E136: 282.67 | F136: 280.23 | G136: 276.37 | H136: 288.97 | I136: 292.83 | J136: 295.27 | K136: 290.4 | L136: 284.1 | M136: 22.00543
A137: 128 | B137: M&M | C137: 1245.5 | D137: 1252.23 | E137: 1234.52 | F137: 1223.53 | G137: 1205.82 | H137: 1263.22 | I137: 1280.93 | J137: 1291.92 | K137: 1269.95 | L137: 1241.25 | M137: 19.00447
A138: 129 | B138: MARICO | C138: 532.8 | D138: 531.35 | E138: 525.65 | F138: 518.50 | G138: 512.80 | H138: 538.50 | I138: 544.20 | J138: 551.35 | K138: 537.05 | L138: 524.2 | M138: 8.4613
A139: 130 | B139: MARUTI | C139: 9053.3 | D139: 9082.47 | E139: 9014.93 | F139: 8976.57 | G139: 8909.03 | H139: 9120.83 | I139: 9188.37 | J139: 9226.73 | K139: 9150 | L139: 9044.1 | M139: 2.72497
A140: 131 | B140: MFSL | C140: 673.2 | D140: 673.93 | E140: 668.72 | F140: 664.23 | G140: 659.02 | H140: 678.42 | I140: 683.63 | J140: 688.12 | K140: 679.15 | L140: 669.45 | M140: 2.0398
A141: 132 | B141: MAXHEALTH | C141: 534.2 | D141: 530.08 | E141: 524.17 | F141: 514.13 | G141: 508.22 | H141: 540.12 | I141: 546.03 | J141: 556.07 | K141: 536 | L141: 520.05 | M141: 47.51726
A142: 133 | B142: MSUMI | C142: 55.5 | D142: 55.52 | E142: 55.23 | F142: 54.97 | G142: 54.68 | H142: 55.78 | I142: 56.07 | J142: 56.33 | K142: 55.8 | L142: 55.25 | M142: 15.82571
A143: 134 | B143: MPHASIS | C143: 1862.2 | D143: 1864.05 | E143: 1848.15 | F143: 1834.10 | G143: 1818.20 | H143: 1878.10 | I143: 1894.00 | J143: 1908.05 | K143: 1879.95 | L143: 1850 | M143: 2.4499
A144: 135 | B144: MUTHOOTFIN | C144: 1050.4 | D144: 1053.70 | E144: 1045.40 | F144: 1040.40 | G144: 1032.10 | H144: 1058.70 | I144: 1067.00 | J144: 1072.00 | K144: 1062 | L144: 1048.7 | M144: 1.7043
A145: 136 | B145: NTPC | C145: 175.1 | D145: 175.82 | E145: 173.93 | F145: 172.77 | G145: 170.88 | H145: 176.98 | I145: 178.87 | J145: 180.03 | K145: 177.7 | L145: 174.65 | M145: 69.21939
A146: 137 | B146: NATIONALUM | C146: 80.85 | D146: 81.18 | E146: 80.22 | F146: 79.58 | G146: 78.62 | H146: 81.82 | I146: 82.78 | J146: 83.42 | K146: 82.15 | L146: 80.55 | M146: 41.13102
A147: 138 | B147: NAVINFLUOR | C147: 4619.9 | D147: 4636.10 | E147: 4587.65 | F147: 4555.40 | G147: 4506.95 | H147: 4668.35 | I147: 4716.80 | J147: 4749.05 | K147: 4684.55 | L147: 4603.85 | M147: 0.97729
A148: 139 | B148: NESTLEIND | C148: 21679.6 | D148: 21759.93 | E148: 21569.87 | F148: 21460.13 | G148: 21270.07 | H148: 21869.67 | I148: 22059.73 | J148: 22169.47 | K148: 21950 | L148: 21650.2 | M148: 0.51175
A149: 140 | B149: NAM-INDIA | C149: 235.95 | D149: 236.82 | E149: 234.63 | F149: 233.32 | G149: 231.13 | H149: 238.13 | I149: 240.32 | J149: 241.63 | K149: 239 | L149: 235.5 | M149: 1.19217
A150: 141 | B150: OBEROIRLTY | C150: 890.05 | D150: 898.50 | E150: 880.00 | F150: 869.95 | G150: 851.45 | H150: 908.55 | I150: 927.05 | J150: 937.10 | K150: 917 | L150: 888.45 | M150: 11.25395
A151: 142 | B151: ONGC | C151: 166.35 | D151: 166.93 | E151: 165.42 | F151: 164.48 | G151: 162.97 | H151: 167.87 | I151: 169.38 | J151: 170.32 | K151: 168.45 | L151: 166 | M151: 74.3309
A152: 143 | B152: OIL | C152: 268 | D152: 269.37 | E152: 264.73 | F152: 261.47 | G152: 256.83 | H152: 272.63 | I152: 277.27 | J152: 280.53 | K152: 274 | L152: 266.1 | M152: 29.82903
A153: 144 | B153: PAYTM | C153: 708.55 | D153: 713.73 | E153: 699.82 | F153: 691.08 | G153: 677.17 | H153: 722.47 | I153: 736.38 | J153: 745.12 | K153: 727.65 | L153: 705 | M153: 17.68086
A154: 145 | B154: OFSS | C154: 3508.35 | D154: 3530.10 | E154: 3479.25 | F154: 3450.15 | G154: 3399.30 | H154: 3559.20 | I154: 3610.05 | J154: 3639.15 | K154: 3580.95 | L154: 3501 | M154: 0.48639
A155: 146 | B155: POLICYBZR | C155: 633.8 | D155: 635.35 | E155: 626.60 | F155: 619.40 | G155: 610.65 | H155: 642.55 | I155: 651.30 | J155: 658.50 | K155: 644.1 | L155: 628.15 | M155: 14.87041
A156: 147 | B156: PIIND | C156: 3256.15 | D156: 3279.38 | E156: 3218.17 | F156: 3180.18 | G156: 3118.97 | H156: 3317.37 | I156: 3378.58 | J156: 3416.57 | K156: 3340.6 | L156: 3241.4 | M156: 2.11081
A157: 148 | B157: PAGEIND | C157: 41739.2 | D157: 41988.82 | E157: 41273.93 | F157: 40808.67 | G157: 40093.78 | H157: 42454.08 | I157: 43168.97 | J157: 43634.23 | K157: 42703.7 | L157: 41523.55 | M157: 0.18748
A158: 149 | B158: PATANJALI | C158: 959.8 | D158: 951.98 | E158: 939.02 | F158: 918.23 | G158: 905.27 | H158: 972.77 | I158: 985.73 | J158: 1006.52 | K158: 964.95 | L158: 931.2 | M158: 2.17721
A159: 150 | B159: PERSISTENT | C159: 4748.25 | D159: 4779.25 | E159: 4704.30 | F159: 4660.35 | G159: 4585.40 | H159: 4823.20 | I159: 4898.15 | J159: 4942.10 | K159: 4854.2 | L159: 4735.3 | M159: 1.80362
A160: 151 | B160: PETRONET | C160: 226.85 | D160: 228.33 | E160: 224.42 | F160: 221.98 | G160: 218.07 | H160: 230.77 | I160: 234.68 | J160: 237.12 | K160: 232.25 | L160: 225.9 | M160: 14.75714
A161: 152 | B161: PIDILITIND | C161: 2552.25 | D161: 2555.18 | E161: 2539.17 | F161: 2526.08 | G161: 2510.07 | H161: 2568.27 | I161: 2584.28 | J161: 2597.37 | K161: 2571.2 | L161: 2542.1 | M161: 3.94341
A162: 153 | B162: POLYCAB | C162: 3405.4 | D162: 3424.63 | E162: 3380.77 | F162: 3356.13 | G162: 3312.27 | H162: 3449.27 | I162: 3493.13 | J162: 3517.77 | K162: 3468.5 | L162: 3400 | M162: 1.68884
A163: 154 | B163: POONAWALLA | C163: 336 | D163: 336.38 | E163: 329.87 | F163: 323.73 | G163: 317.22 | H163: 342.52 | I163: 349.03 | J163: 355.17 | K163: 342.9 | L163: 330.25 | M163: 61.68031
A164: 155 | B164: PFC | C164: 164.85 | D164: 165.87 | E164: 163.13 | F164: 161.42 | G164: 158.68 | H164: 167.58 | I164: 170.32 | J164: 172.03 | K164: 168.6 | L164: 164.15 | M164: 95.09302
A165: 156 | B165: POWERGRID | C165: 235.65 | D165: 237.08 | E165: 233.17 | F165: 230.68 | G165: 226.77 | H165: 239.57 | I165: 243.48 | J165: 245.97 | K165: 241 | L165: 234.6 | M165: 108.73293
A166: 157 | B166: PRESTIGE | C166: 479.2 | D166: 482.78 | E166: 471.72 | F166: 464.23 | G166: 453.17 | H166: 490.27 | I166: 501.33 | J166: 508.82 | K166: 493.85 | L166: 475.3 | M166: 3.48228
A167: 158 | B167: PGHH | C167: 13778.3 | D167: 13881.38 | E167: 13633.07 | F167: 13487.83 | G167: 13239.52 | H167: 14026.62 | I167: 14274.93 | J167: 14420.17 | K167: 14129.7 | L167: 13736.15 | M167: 0.03088
A168: 159 | B168: PNB | C168: 48.45 | D168: 48.83 | E168: 47.97 | F168: 47.48 | G168: 46.62 | H168: 49.32 | I168: 50.18 | J168: 50.67 | K168: 49.7 | L168: 48.35 | M168: 323.14683
A169: 160 | B169: RECLTD | C169: 129.5 | D169: 130.97 | E169: 127.58 | F169: 125.67 | G169: 122.28 | H169: 132.88 | I169: 136.27 | J169: 138.18 | K169: 134.35 | L169: 129.05 | M169: 113.51018
A170: 161 | B170: RELIANCE | C170: 2434.05 | D170: 2439.40 | E170: 2421.80 | F170: 2409.55 | G170: 2391.95 | H170: 2451.65 | I170: 2469.25 | J170: 2481.50 | K170: 2457 | L170: 2427.15 | M170: 48.57531
A171: 162 | B171: SBICARD | C171: 886.6 | D171: 887.32 | E171: 880.23 | F171: 873.87 | G171: 866.78 | H171: 893.68 | I171: 900.77 | J171: 907.13 | K171: 894.4 | L171: 880.95 | M171: 13.53307
A172: 163 | B172: SBILIFE | C172: 1152.7 | D172: 1158.68 | E172: 1144.52 | F172: 1136.33 | G172: 1122.17 | H172: 1166.87 | I172: 1181.03 | J172: 1189.22 | K172: 1172.85 | L172: 1150.5 | M172: 11.33501
A173: 164 | B173: SRF | C173: 2428.6 | D173: 2447.83 | E173: 2405.67 | F173: 2382.73 | G173: 2340.57 | H173: 2470.77 | I173: 2512.93 | J173: 2535.87 | K173: 2490 | L173: 2424.9 | M173: 3.21325
A174: 165 | B174: MOTHERSON | C174: 78.65 | D174: 78.92 | E174: 77.93 | F174: 77.22 | G174: 76.23 | H174: 79.63 | I174: 80.62 | J174: 81.33 | K174: 79.9 | L174: 78.2 | M174: 151.26952
A175: 166 | B175: SHREECEM | C175: 23984.3 | D175: 24184.75 | E175: 23699.55 | F175: 23414.80 | G175: 22929.60 | H175: 24469.50 | I175: 24954.70 | J175: 25239.45 | K175: 24669.95 | L175: 23900 | M175: 0.17375
A176: 167 | B176: SHRIRAMFIN | C176: 1346.1 | D176: 1344.18 | E176: 1331.37 | F176: 1316.63 | G176: 1303.82 | H176: 1358.92 | I176: 1371.73 | J176: 1386.47 | K176: 1357 | L176: 1329.45 | M176: 6.37838
A177: 168 | B177: SIEMENS | C177: 3832.25 | D177: 3857.78 | E177: 3796.57 | F177: 3760.88 | G177: 3699.67 | H177: 3893.47 | I177: 3954.68 | J177: 3990.37 | K177: 3919 | L177: 3822.1 | M177: 4.03526
A178: 169 | B178: SONACOMS | C178: 521.55 | D178: 526.40 | E178: 515.15 | F178: 508.75 | G178: 497.50 | H178: 532.80 | I178: 544.05 | J178: 550.45 | K178: 537.65 | L178: 520 | M178: 26.51993
A179: 170 | B179: SBIN | C179: 574.2 | D179: 579.83 | E179: 565.77 | F179: 557.33 | G179: 543.27 | H179: 588.27 | I179: 602.33 | J179: 610.77 | K179: 593.9 | L179: 571.4 | M179: 456.5662
A180: 171 | B180: SAIL | C180: 82.5 | D180: 82.82 | E180: 81.93 | F180: 81.37 | G180: 80.48 | H180: 83.38 | I180: 84.27 | J180: 84.83 | K180: 83.7 | L180: 82.25 | M180: 82.3489
A181: 172 | B181: SUNPHARMA | C181: 929.65 | D181: 931.70 | E181: 920.40 | F181: 911.15 | G181: 899.85 | H181: 940.95 | I181: 952.25 | J181: 961.50 | K181: 943 | L181: 922.45 | M181: 30.14019
A182: 173 | B182: SUNTV | C182: 426.45 | D182: 431.62 | E182: 420.43 | F182: 414.42 | G182: 403.23 | H182: 437.63 | I182: 448.82 | J182: 454.83 | K182: 442.8 | L182: 425.6 | M182: 5.07468
A183: 174 | B183: SYNGENE | C183: 699.15 | D183: 700.10 | E183: 691.20 | F183: 683.25 | G183: 674.35 | H183: 708.05 | I183: 716.95 | J183: 724.90 | K183: 709 | L183: 692.15 | M183: 6.29443
A184: 175 | B184: TVSMOTOR | C184: 1240.55 | D184: 1238.02 | E184: 1222.53 | F184: 1204.52 | G184: 1189.03 | H184: 1256.03 | I184: 1271.52 | J184: 1289.53 | K184: 1253.5 | L184: 1220 | M184: 5.16649
A185: 176 | B185: TATACHEM | C185: 984.65 | D185: 985.73 | E185: 978.97 | F185: 973.28 | G185: 966.52 | H185: 991.42 | I185: 998.18 | J185: 1003.87 | K185: 992.5 | L185: 980.05 | M185: 6.835
A186: 177 | B186: TATACOMM | C186: 1221.2 | D186: 1227.58 | E186: 1210.62 | F186: 1200.03 | G186: 1183.07 | H186: 1238.17 | I186: 1255.13 | J186: 1265.72 | K186: 1244.55 | L186: 1217 | M186: 1.8019
A187: 178 | B187: TCS | C187: 3199.85 | D187: 3207.93 | E187: 3186.92 | F187: 3173.98 | G187: 3152.97 | H187: 3220.87 | I187: 3241.88 | J187: 3254.82 | K187: 3228.95 | L187: 3195 | M187: 13.69364
A188: 179 | B188: TATACONSUM | C188: 776.3 | D188: 779.10 | E188: 772.20 | F188: 768.10 | G188: 761.20 | H188: 783.20 | I188: 790.10 | J188: 794.20 | K188: 786 | L188: 775 | M188: 10.04449
A189: 180 | B189: TATAELXSI | C189: 6995.6 | D189: 7037.20 | E189: 6899.40 | F189: 6803.20 | G189: 6665.40 | H189: 7133.40 | I189: 7271.20 | J189: 7367.40 | K189: 7175 | L189: 6941 | M189: 1.15117
A190: 181 | B190: TATAMOTORS | C190: 508.45 | D190: 512.15 | E190: 503.40 | F190: 498.35 | G190: 489.60 | H190: 517.20 | I190: 525.95 | J190: 531.00 | K190: 520.9 | L190: 507.1 | M190: 122.93322
A191: 182 | B191: TATAPOWER | C191: 204.6 | D191: 206.13 | E191: 202.57 | F191: 200.53 | G191: 196.97 | H191: 208.17 | I191: 211.73 | J191: 213.77 | K191: 209.7 | L191: 204.1 | M191: 82.48339
A192: 183 | B192: TATASTEEL | C192: 105.2 | D192: 105.82 | E192: 104.48 | F192: 103.77 | G192: 102.43 | H192: 106.53 | I192: 107.87 | J192: 108.58 | K192: 107.15 | L192: 105.1 | M192: 242.08481
A193: 184 | B193: TTML | C193: 61.35 | D193: 61.67 | E193: 60.68 | F193: 60.02 | G193: 59.03 | H193: 62.33 | I193: 63.32 | J193: 63.98 | K193: 62.65 | L193: 61 | M193: 9.93548
A194: 185 | B194: TECHM | C194: 1048.7 | D194: 1051.23 | E194: 1042.52 | F194: 1036.33 | G194: 1027.62 | H194: 1057.42 | I194: 1066.13 | J194: 1072.32 | K194: 1059.95 | L194: 1045.05 | M194: 9.09923
A195: 186 | B195: RAMCOCEM | C195: 781.6 | D195: 781.38 | E195: 763.52 | F195: 745.43 | G195: 727.57 | H195: 799.47 | I195: 817.33 | J195: 835.42 | K195: 799.25 | L195: 763.3 | M195: 9.36356
A196: 187 | B196: TITAN | C196: 2721.85 | D196: 2739.98 | E196: 2697.97 | F196: 2674.08 | G196: 2632.07 | H196: 2763.87 | I196: 2805.88 | J196: 2829.77 | K196: 2782 | L196: 2716.1 | M196: 6.12441
A197: 188 | B197: TORNTPHARM | C197: 1650.05 | D197: 1652.37 | E197: 1639.18 | F197: 1628.32 | G197: 1615.13 | H197: 1663.23 | I197: 1676.42 | J197: 1687.28 | K197: 1665.55 | L197: 1641.5 | M197: 2.47687
A198: 189 | B198: TORNTPOWER | C198: 535.15 | D198: 535.72 | E198: 531.43 | F198: 527.72 | G198: 523.43 | H198: 539.43 | I198: 543.72 | J198: 547.43 | K198: 540 | L198: 532 | M198: 1.14854
A199: 190 | B199: TRENT | C199: 1490.7 | D199: 1498.17 | E199: 1478.58 | F199: 1466.47 | G199: 1446.88 | H199: 1510.28 | I199: 1529.87 | J199: 1541.98 | K199: 1517.75 | L199: 1486.05 | M199: 2.459
A200: 191 | B200: TRIDENT | C200: 34.15 | D200: 34.48 | E200: 33.67 | F200: 33.18 | G200: 32.37 | H200: 34.97 | I200: 35.78 | J200: 36.27 | K200: 35.3 | L200: 34 | M200: 135.20039
A201: 192 | B201: TIINDIA | C201: 2689.65 | D201: 2712.22 | E201: 2649.43 | F201: 2609.22 | G201: 2546.43 | H201: 2752.43 | I201: 2815.22 | J201: 2855.43 | K201: 2775 | L201: 2672 | M201: 1.15599
A202: 193 | B202: UPL | C202: 673.35 | D202: 675.77 | E202: 669.73 | F202: 666.12 | G202: 660.08 | H202: 679.38 | I202: 685.42 | J202: 689.03 | K202: 681.8 | L202: 672.15 | M202: 14.08554
A203: 194 | B203: ULTRACEMCO | C203: 7604.15 | D203: 7652.83 | E203: 7537.82 | F203: 7471.48 | G203: 7356.47 | H203: 7719.17 | I203: 7834.18 | J203: 7900.52 | K203: 7767.85 | L203: 7586.5 | M203: 1.57714
A204: 195 | B204: UNIONBANK | C204: 70.15 | D204: 70.57 | E204: 69.43 | F204: 68.72 | G204: 67.58 | H204: 71.28 | I204: 72.42 | J204: 73.13 | K204: 71.7 | L204: 69.85 | M204: 52.39576
A205: 196 | B205: UBL | C205: 1424.45 | D205: 1429.85 | E205: 1414.70 | F205: 1404.95 | G205: 1389.80 | H205: 1439.60 | I205: 1454.75 | J205: 1464.50 | K205: 1445 | L205: 1420.1 | M205: 0.98647
... 29 more rows

Sheet MidCap Intra
L5: Back To Main Page
A6: FOR INTRA DAY TRADING | K6: =Main!B10 -> 2023-05-19
A9: Sr.no | B9: Scrip | C9: CLOSE RATE | D9: Pivot Point | E9: Supports | H9: Resistances
E10: S1 | F10: S2 | G10: S3 | H10: R1 | I10: R2 | J10: R3 | K10: HIGH | L10: LOW | M10: Total Trade Quanity in Lakhs
A11: 1 | B11: 360ONE | C11: 402.2 | D11: 403.37 | E11: 397.98 | F11: 393.77 | G11: 388.38 | H11: 407.58 | I11: 412.97 | J11: 417.18 | K11: 408.75 | L11: 399.15 | M11: 11.59692
A12: 2 | B12: 3MINDIA | C12: 23363.35 | D12: 23392.03 | E12: 23284.07 | F12: 23204.78 | G12: 23096.82 | H12: 23471.32 | I12: 23579.28 | J12: 23658.57 | K12: 23500 | L12: 23312.75 | M12: 0.0062
A13: 3 | B13: ABB | C13: 3897.5 | D13: 3907.68 | E13: 3880.37 | F13: 3863.23 | G13: 3835.92 | H13: 3924.82 | I13: 3952.13 | J13: 3969.27 | K13: 3935 | L13: 3890.55 | M13: 1.41795
A14: 4 | B14: ACC | C14: 1712.45 | D14: 1731.95 | E14: 1684.95 | F14: 1657.45 | G14: 1610.45 | H14: 1759.45 | I14: 1806.45 | J14: 1833.95 | K14: 1778.95 | L14: 1704.45 | M14: 6.47641
A15: 5 | B15: AIAENG | C15: 2855.8 | D15: 2852.30 | E15: 2804.60 | F15: 2753.40 | G15: 2705.70 | H15: 2903.50 | I15: 2951.20 | J15: 3002.40 | K15: 2900 | L15: 2801.1 | M15: 1.24624
A16: 6 | B16: APLAPOLLO | C16: 1114.45 | D16: 1127.03 | E16: 1090.72 | F16: 1066.98 | G16: 1030.67 | H16: 1150.77 | I16: 1187.08 | J16: 1210.82 | K16: 1163.35 | L16: 1103.3 | M16: 5.12932
A17: 7 | B17: AUBANK | C17: 747.6 | D17: 743.65 | E17: 732.40 | F17: 717.20 | G17: 705.95 | H17: 758.85 | I17: 770.10 | J17: 785.30 | K17: 754.9 | L17: 728.45 | M17: 34.22021
A18: 8 | B18: AARTIDRUGS | C18: 466.9 | D18: 466.55 | E18: 459.60 | F18: 452.30 | G18: 445.35 | H18: 473.85 | I18: 480.80 | J18: 488.10 | K18: 473.5 | L18: 459.25 | M18: 1.98147
A19: 9 | B19: AAVAS | C19: 1396.6 | D19: 1403.48 | E19: 1384.57 | F19: 1372.53 | G19: 1353.62 | H19: 1415.52 | I19: 1434.43 | J19: 1446.47 | K19: 1422.4 | L19: 1391.45 | M19: 1.94712
A20: 10 | B20: ABBOTINDIA | C20: 20970.55 | D20: 21085.50 | E20: 20817.05 | F20: 20663.55 | G20: 20395.10 | H20: 21239.00 | I20: 21507.45 | J20: 21660.95 | K20: 21353.95 | L20: 20932 | M20: 0.07346
A21: 11 | B21: ADANIENT | C21: 1890 | D21: 1897.07 | E21: 1870.13 | F21: 1850.27 | G21: 1823.33 | H21: 1916.93 | I21: 1943.87 | J21: 1963.73 | K21: 1924 | L21: 1877.2 | M21: 24.37396
A22: 12 | B22: ADANIGREEN | C22: 860.55 | D22: 865.98 | E22: 844.57 | F22: 828.58 | G22: 807.17 | H22: 881.97 | I22: 903.38 | J22: 919.37 | K22: 887.4 | L22: 850 | M22: 6.46071
A23: 13 | B23: ADANIPORTS | C23: 664.95 | D23: 671.98 | E23: 654.27 | F23: 643.58 | G23: 625.87 | H23: 682.67 | I23: 700.38 | J23: 711.07 | K23: 689.7 | L23: 661.3 | M23: 44.0541
A24: 14 | B24: ATGL | C24: 666.65 | D24: 672.00 | E24: 661.30 | F24: 655.95 | G24: 645.25 | H24: 677.35 | I24: 688.05 | J24: 693.40 | K24: 682.7 | L24: 666.65 | M24: 29.68685
A25: 15 | B25: ADANITRANS | C25: 751.6 | D25: 765.62 | E25: 736.48 | F25: 721.37 | G25: 692.23 | H25: 780.73 | I25: 809.87 | J25: 824.98 | K25: 794.75 | L25: 750.5 | M25: 23.61332
A26: 16 | B26: AWL | C26: 378 | D26: 381.07 | E26: 373.93 | F26: 369.87 | G26: 362.73 | H26: 385.13 | I26: 392.27 | J26: 396.33 | K26: 388.2 | L26: 377 | M26: 8.37536
A27: 17 | B27: ABCAPITAL | C27: 164.8 | D27: 165.63 | E27: 163.52 | F27: 162.23 | G27: 160.12 | H27: 166.92 | I27: 169.03 | J27: 170.32 | K27: 167.75 | L27: 164.35 | M27: 25.80037
A28: 18 | B28: ABFRL | C28: 193.7 | D28: 194.40 | E28: 191.30 | F28: 188.90 | G28: 185.80 | H28: 196.80 | I28: 199.90 | J28: 202.30 | K28: 197.5 | L28: 192 | M28: 38.52667
A29: 19 | B29: ABSLAMC | C29: 354.25 | D29: 355.87 | E29: 351.88 | F29: 349.52 | G29: 345.53 | H29: 358.23 | I29: 362.22 | J29: 364.58 | K29: 359.85 | L29: 353.5 | M29: 0.24999
A30: 20 | B30: AEGISCHEM | C30: 367.9 | D30: 368.53 | E30: 365.47 | F30: 363.03 | G30: 359.97 | H30: 370.97 | I30: 374.03 | J30: 376.47 | K30: 371.6 | L30: 366.1 | M30: 1.15714
A31: 21 | B31: AETHER | C31: 916.05 | D31: 918.28 | E31: 911.97 | F31: 907.88 | G31: 901.57 | H31: 922.37 | I31: 928.68 | J31: 932.77 | K31: 924.6 | L31: 914.2 | M31: 0.12873
A32: 22 | B32: AFFLE | C32: 911.2 | D32: 914.05 | E32: 903.10 | F32: 895.00 | G32: 884.05 | H32: 922.15 | I32: 933.10 | J32: 941.20 | K32: 925 | L32: 905.95 | M32: 1.79812
A33: 23 | B33: AJANTPHARM | C33: 1272.75 | D33: 1279.13 | E33: 1254.97 | F33: 1237.18 | G33: 1213.02 | H33: 1296.92 | I33: 1321.08 | J33: 1338.87 | K33: 1303.3 | L33: 1261.35 | M33: 0.89015
A34: 24 | B34: APLLTD | C34: 559.35 | D34: 565.43 | E34: 548.92 | F34: 538.48 | G34: 521.97 | H34: 575.87 | I34: 592.38 | J34: 602.82 | K34: 581.95 | L34: 555 | M34: 1.45182
A35: 25 | B35: ALKEM | C35: 3326.3 | D35: 3343.83 | E35: 3295.62 | F35: 3264.93 | G35: 3216.72 | H35: 3374.52 | I35: 3422.73 | J35: 3453.42 | K35: 3392.05 | L35: 3313.15 | M35: 3.73242
A36: 26 | B36: ALKYLAMINE | C36: 2539.65 | D36: 2545.55 | E36: 2526.10 | F36: 2512.55 | G36: 2493.10 | H36: 2559.10 | I36: 2578.55 | J36: 2592.10 | K36: 2565 | L36: 2532 | M36: 0.14141
A37: 27 | B37: ALOKINDS | C37: 13.4 | D37: 13.38 | E37: 13.12 | F37: 12.83 | G37: 12.57 | H37: 13.67 | I37: 13.93 | J37: 14.22 | K37: 13.65 | L37: 13.1 | M37: 119.38735
A38: 28 | B38: AMARAJABAT | C38: 646.05 | D38: 645.18 | E38: 636.87 | F38: 627.68 | G38: 619.37 | H38: 654.37 | I38: 662.68 | J38: 671.87 | K38: 653.5 | L38: 636 | M38: 5.36649
A39: 29 | B39: AMBER | C39: 2117.4 | D39: 2139.63 | E39: 2069.27 | F39: 2021.13 | G39: 1950.77 | H39: 2187.77 | I39: 2258.13 | J39: 2306.27 | K39: 2210 | L39: 2091.5 | M39: 9.32315
A40: 30 | B40: AMBUJACEM | C40: 399.05 | D40: 401.12 | E40: 393.43 | F40: 387.82 | G40: 380.13 | H40: 406.73 | I40: 414.42 | J40: 420.03 | K40: 408.8 | L40: 395.5 | M40: 42.66534
A41: 31 | B41: ANGELONE | C41: 1232.75 | D41: 1243.28 | E41: 1217.57 | F41: 1202.38 | G41: 1176.67 | H41: 1258.47 | I41: 1284.18 | J41: 1299.37 | K41: 1269 | L41: 1228.1 | M41: 3.7537
A42: 32 | B42: ANURAS | C42: 1168.6 | D42: 1167.38 | E42: 1156.77 | F42: 1144.93 | G42: 1134.32 | H42: 1179.22 | I42: 1189.83 | J42: 1201.67 | K42: 1178 | L42: 1155.55 | M42: 0.42071
A43: 33 | B43: APOLLOHOSP | C43: 4442 | D43: 4468.30 | E43: 4406.70 | F43: 4371.40 | G43: 4309.80 | H43: 4503.60 | I43: 4565.20 | J43: 4600.50 | K43: 4529.9 | L43: 4433 | M43: 1.67057
A44: 34 | B44: APOLLOTYRE | C44: 369.1 | D44: 369.82 | E44: 366.28 | F44: 363.47 | G44: 359.93 | H44: 372.63 | I44: 376.17 | J44: 378.98 | K44: 373.35 | L44: 367 | M44: 32.93186
A45: 35 | B45: APTUS | C45: 264.7 | D45: 265.77 | E45: 262.98 | F45: 261.27 | G45: 258.48 | H45: 267.48 | I45: 270.27 | J45: 271.98 | K45: 268.55 | L45: 264.05 | M45: 1.39436
A46: 36 | B46: ASAHIINDIA | C46: 461.1 | D46: 464.47 | E46: 455.93 | F46: 450.77 | G46: 442.23 | H46: 469.63 | I46: 478.17 | J46: 483.33 | K46: 473 | L46: 459.3 | M46: 0.93642
A47: 37 | B47: ASHOKLEY | C47: 152.7 | D47: 153.10 | E47: 151.70 | F47: 150.70 | G47: 149.30 | H47: 154.10 | I47: 155.50 | J47: 156.50 | K47: 154.5 | L47: 152.1 | M47: 50.6549
A48: 38 | B48: ASIANPAINT | C48: 3109.05 | D48: 3109.10 | E48: 3093.20 | F48: 3077.35 | G48: 3061.45 | H48: 3124.95 | I48: 3140.85 | J48: 3156.70 | K48: 3125 | L48: 3093.25 | M48: 4.98067
A49: 39 | B49: ASTERDM | C49: 259.45 | D49: 260.18 | E49: 254.37 | F49: 249.28 | G49: 243.47 | H49: 265.27 | I49: 271.08 | J49: 276.17 | K49: 266 | L49: 255.1 | M49: 3.92939
A50: 40 | B50: ASTRAZEN | C50: 3228.5 | D50: 3250.62 | E50: 3186.23 | F50: 3143.97 | G50: 3079.58 | H50: 3292.88 | I50: 3357.27 | J50: 3399.53 | K50: 3315 | L50: 3208.35 | M50: 0.03979
A51: 41 | B51: ASTRAL | C51: 1684.2 | D51: 1693.92 | E51: 1659.03 | F51: 1633.87 | G51: 1598.98 | H51: 1719.08 | I51: 1753.97 | J51: 1779.13 | K51: 1728.8 | L51: 1668.75 | M51: 7.29612
A52: 42 | B52: ATUL | C52: 6677.55 | D52: 6698.18 | E52: 6629.37 | F52: 6581.18 | G52: 6512.37 | H52: 6746.37 | I52: 6815.18 | J52: 6863.37 | K52: 6767 | L52: 6650 | M52: 0.34896
A53: 43 | B53: AUROPHARMA | C53: 599.8 | D53: 605.57 | E53: 590.58 | F53: 581.37 | G53: 566.38 | H53: 614.78 | I53: 629.77 | J53: 638.98 | K53: 620.55 | L53: 596.35 | M53: 11.71793
A54: 44 | B54: AVANTIFEED | C54: 367.6 | D54: 368.42 | E54: 364.18 | F54: 360.77 | G54: 356.53 | H54: 371.83 | I54: 376.07 | J54: 379.48 | K54: 372.65 | L54: 365 | M54: 0.82961
A55: 45 | B55: DMART | C55: 3368.55 | D55: 3390.55 | E55: 3330.00 | F55: 3291.45 | G55: 3230.90 | H55: 3429.10 | I55: 3489.65 | J55: 3528.20 | K55: 3451.1 | L55: 3352 | M55: 2.89248
A56: 46 | B56: AXISBANK | C56: 914.7 | D56: 918.93 | E56: 908.37 | F56: 902.03 | G56: 891.47 | H56: 925.27 | I56: 935.83 | J56: 942.17 | K56: 929.5 | L56: 912.6 | M56: 136.14127
A57: 47 | B57: BASF | C57: 2477.5 | D57: 2487.97 | E57: 2451.53 | F57: 2425.57 | G57: 2389.13 | H57: 2513.93 | I57: 2550.37 | J57: 2576.33 | K57: 2524.4 | L57: 2462 | M57: 0.09784
A58: 48 | B58: BEML | C58: 1446.1 | D58: 1440.53 | E58: 1421.07 | F58: 1396.03 | G58: 1376.57 | H58: 1465.57 | I58: 1485.03 | J58: 1510.07 | K58: 1460 | L58: 1415.5 | M58: 2.97139
A59: 49 | B59: BSE | C59: 529.9 | D59: 532.63 | E59: 523.27 | F59: 516.63 | G59: 507.27 | H59: 539.27 | I59: 548.63 | J59: 555.27 | K59: 542 | L59: 526 | M59: 5.08285
A60: 50 | B60: BAJAJ-AUTO | C60: 4518.65 | D60: 4534.78 | E60: 4497.12 | F60: 4475.58 | G60: 4437.92 | H60: 4556.32 | I60: 4593.98 | J60: 4615.52 | K60: 4572.45 | L60: 4513.25 | M60: 1.94233
A61: 51 | B61: BAJAJELEC | C61: 1186.1 | D61: 1192.95 | E61: 1167.15 | F61: 1148.20 | G61: 1122.40 | H61: 1211.90 | I61: 1237.70 | J61: 1256.65 | K61: 1218.75 | L61: 1174 | M61: 1.16162
A62: 52 | B62: BAJFINANCE | C62: 6789.4 | D62: 6788.40 | E62: 6746.15 | F62: 6702.90 | G62: 6660.65 | H62: 6831.65 | I62: 6873.90 | J62: 6917.15 | K62: 6830.65 | L62: 6745.15 | M62: 11.06718
A63: 53 | B63: BAJAJFINSV | C63: 1415.45 | D63: 1419.17 | E63: 1408.33 | F63: 1401.22 | G63: 1390.38 | H63: 1426.28 | I63: 1437.12 | J63: 1444.23 | K63: 1430 | L63: 1412.05 | M63: 7.39262
A64: 54 | B64: BAJAJHLDNG | C64: 6328.75 | D64: 6375.00 | E64: 6240.05 | F64: 6151.35 | G64: 6016.40 | H64: 6463.70 | I64: 6598.65 | J64: 6687.35 | K64: 6509.95 | L64: 6286.3 | M64: 0.20865
A65: 55 | B65: BALAMINES | C65: 2377.7 | D65: 2382.88 | E65: 2359.82 | F65: 2341.93 | G65: 2318.87 | H65: 2400.77 | I65: 2423.83 | J65: 2441.72 | K65: 2405.95 | L65: 2365 | M65: 0.32895
A66: 56 | B66: BALKRISIND | C66: 2190.05 | D66: 2197.68 | E66: 2175.37 | F66: 2160.68 | G66: 2138.37 | H66: 2212.37 | I66: 2234.68 | J66: 2249.37 | K66: 2220 | L66: 2183 | M66: 0.84498
A67: 57 | B67: BALRAMCHIN | C67: 384.6 | D67: 383.45 | E67: 380.90 | F67: 377.20 | G67: 374.65 | H67: 387.15 | I67: 389.70 | J67: 393.40 | K67: 386 | L67: 379.75 | M67: 9.73323
A68: 58 | B68: BANDHANBNK | C68: 244 | D68: 245.17 | E68: 242.03 | F68: 240.07 | G68: 236.93 | H68: 247.13 | I68: 250.27 | J68: 252.23 | K68: 248.3 | L68: 243.2 | M68: 72.80219
A69: 59 | B69: BANKBARODA | C69: 180.35 | D69: 182.58 | E69: 177.57 | F69: 174.78 | G69: 169.77 | H69: 185.37 | I69: 190.38 | J69: 193.17 | K69: 187.6 | L69: 179.8 | M69: 317.27394
A70: 60 | B70: BANKINDIA | C70: 76.35 | D70: 76.73 | E70: 75.62 | F70: 74.88 | G70: 73.77 | H70: 77.47 | I70: 78.58 | J70: 79.32 | K70: 77.85 | L70: 76 | M70: 44.64221
A71: 61 | B71: MAHABANK | C71: 31.15 | D71: 31.20 | E71: 30.85 | F71: 30.55 | G71: 30.20 | H71: 31.50 | I71: 31.85 | J71: 32.15 | K71: 31.55 | L71: 30.9 | M71: 106.85632
A72: 62 | B72: BATAINDIA | C72: 1525.55 | D72: 1529.18 | E72: 1513.92 | F72: 1502.28 | G72: 1487.02 | H72: 1540.82 | I72: 1556.08 | J72: 1567.72 | K72: 1544.45 | L72: 1517.55 | M72: 1.5732
A73: 63 | B73: BAYERCROP | C73: 4137.55 | D73: 4154.52 | E73: 4115.03 | F73: 4092.52 | G73: 4053.03 | H73: 4177.03 | I73: 4216.52 | J73: 4239.03 | K73: 4194 | L73: 4132 | M73: 0.03998
A74: 64 | B74: BERGEPAINT | C74: 622.75 | D74: 622.27 | E74: 618.23 | F74: 613.72 | G74: 609.68 | H74: 626.78 | I74: 630.82 | J74: 635.33 | K74: 626.3 | L74: 617.75 | M74: 6.45528
A75: 65 | B75: BDL | C75: 1073.5 | D75: 1073.67 | E75: 1060.48 | F75: 1047.47 | G75: 1034.28 | H75: 1086.68 | I75: 1099.87 | J75: 1112.88 | K75: 1086.85 | L75: 1060.65 | M75: 3.69893
A76: 66 | B76: BEL | C76: 107.8 | D76: 108.10 | E76: 106.95 | F76: 106.10 | G76: 104.95 | H76: 108.95 | I76: 110.10 | J76: 110.95 | K76: 109.25 | L76: 107.25 | M76: 72.20608
A77: 67 | B77: BHARATFORG | C77: 765.45 | D77: 770.60 | E77: 757.20 | F77: 748.95 | G77: 735.55 | H77: 778.85 | I77: 792.25 | J77: 800.50 | K77: 784 | L77: 762.35 | M77: 7.96524
A78: 68 | B78: BHEL | C78: 81.65 | D78: 82.25 | E78: 80.90 | F78: 80.15 | G78: 78.80 | H78: 83.00 | I78: 84.35 | J78: 85.10 | K78: 83.6 | L78: 81.5 | M78: 152.42495
A79: 69 | B79: BPCL | C79: 360.7 | D79: 362.27 | E79: 358.53 | F79: 356.37 | G79: 352.63 | H79: 364.43 | I79: 368.17 | J79: 370.33 | K79: 366 | L79: 360.1 | M79: 17.13445
A80: 70 | B80: BHARATRAS | C80: 9937.85 | D80: 9986.27 | E80: 9878.58 | F80: 9819.32 | G80: 9711.63 | H80: 10045.53 | I80: 10153.22 | J80: 10212.48 | K80: 10093.95 | L80: 9927 | M80: 0.00245
A81: 71 | B81: BHARTIARTL | C81: 799.35 | D81: 799.00 | E81: 795.00 | F81: 790.65 | G81: 786.65 | H81: 803.35 | I81: 807.35 | J81: 811.70 | K81: 803 | L81: 794.65 | M81: 113.83252
A82: 72 | B82: BIOCON | C82: 245.05 | D82: 245.98 | E82: 243.47 | F82: 241.88 | G82: 239.37 | H82: 247.57 | I82: 250.08 | J82: 251.67 | K82: 248.5 | L82: 244.4 | M82: 19.11242
A83: 73 | B83: BIRLACORPN | C83: 997.15 | D83: 999.23 | E83: 987.67 | F83: 978.18 | G83: 966.62 | H83: 1008.72 | I83: 1020.28 | J83: 1029.77 | K83: 1010.8 | L83: 989.75 | M83: 0.4991
A84: 74 | B84: BSOFT | C84: 319 | D84: 322.17 | E84: 314.73 | F84: 310.47 | G84: 303.03 | H84: 326.43 | I84: 333.87 | J84: 338.13 | K84: 329.6 | L84: 317.9 | M84: 28.25454
A85: 75 | B85: BLUEDART | C85: 6061.85 | D85: 6043.95 | E85: 6017.90 | F85: 5973.95 | G85: 5947.90 | H85: 6087.90 | I85: 6113.95 | J85: 6157.90 | K85: 6070 | L85: 6000 | M85: 0.16576
A86: 76 | B86: BLUESTARCO | C86: 1431.05 | D86: 1430.33 | E86: 1411.67 | F86: 1392.28 | G86: 1373.62 | H86: 1449.72 | I86: 1468.38 | J86: 1487.77 | K86: 1449 | L86: 1410.95 | M86: 0.79944
A87: 77 | B87: BBTC | C87: 937.85 | D87: 941.07 | E87: 929.13 | F87: 920.42 | G87: 908.48 | H87: 949.78 | I87: 961.72 | J87: 970.43 | K87: 953 | L87: 932.35 | M87: 0.18783
A88: 78 | B88: BORORENEW | C88: 508.2 | D88: 510.63 | E88: 503.57 | F88: 498.93 | G88: 491.87 | H88: 515.27 | I88: 522.33 | J88: 526.97 | K88: 517.7 | L88: 506 | M88: 1.0513
A89: 79 | B89: BOSCHLTD | C89: 19014.55 | D89: 19101.37 | E89: 18883.88 | F89: 18753.22 | G89: 18535.73 | H89: 19232.03 | I89: 19449.52 | J89: 19580.18 | K89: 19318.85 | L89: 18970.7 | M89: 0.13824
A90: 80 | B90: BRIGADE | C90: 523.25 | D90: 529.68 | E90: 514.57 | F90: 505.88 | G90: 490.77 | H90: 538.37 | I90: 553.48 | J90: 562.17 | K90: 544.8 | L90: 521 | M90: 1.24386
A91: 81 | B91: BCG | C91: 15.55 | D91: 16.08 | E91: 15.02 | F91: 14.48 | G91: 13.42 | H91: 16.62 | I91: 17.68 | J91: 18.22 | K91: 17.15 | L91: 15.55 | M91: 658.41496
A92: 82 | B92: BRITANNIA | C92: 4564.35 | D92: 4592.62 | E92: 4529.73 | F92: 4495.12 | G92: 4432.23 | H92: 4627.23 | I92: 4690.12 | J92: 4724.73 | K92: 4655.5 | L92: 4558 | M92: 1.55214
A93: 83 | B93: MAPMYINDIA | C93: 1066.8 | D93: 1071.78 | E93: 1057.27 | F93: 1047.73 | G93: 1033.22 | H93: 1081.32 | I93: 1095.83 | J93: 1105.37 | K93: 1086.3 | L93: 1062.25 | M93: 0.5106
A94: 84 | B94: CCL | C94: 609.45 | D94: 613.20 | E94: 603.40 | F94: 597.35 | G94: 587.55 | H94: 619.25 | I94: 629.05 | J94: 635.10 | K94: 623 | L94: 607.15 | M94: 2.28096
A95: 85 | B95: CESC | C95: 71.85 | D95: 71.77 | E95: 69.88 | F95: 67.92 | G95: 66.03 | H95: 73.73 | I95: 75.62 | J95: 77.58 | K95: 73.65 | L95: 69.8 | M95: 113.03088
A96: 86 | B96: CGPOWER | C96: 336.65 | D96: 337.03 | E96: 334.27 | F96: 331.88 | G96: 329.12 | H96: 339.42 | I96: 342.18 | J96: 344.57 | K96: 339.8 | L96: 334.65 | M96: 7.78622
A97: 87 | B97: CRISIL | C97: 3568.4 | D97: 3581.60 | E97: 3543.20 | F97: 3518.00 | G97: 3479.60 | H97: 3606.80 | I97: 3645.20 | J97: 3670.40 | K97: 3620 | L97: 3556.4 | M97: 0.08498
A98: 88 | B98: CSBBANK | C98: 290.4 | D98: 291.08 | E98: 287.47 | F98: 284.53 | G98: 280.92 | H98: 294.02 | I98: 297.63 | J98: 300.57 | K98: 294.7 | L98: 288.15 | M98: 1.56571
A99: 89 | B99: CAMPUS | C99: 350 | D99: 351.92 | E99: 347.18 | F99: 344.37 | G99: 339.63 | H99: 354.73 | I99: 359.47 | J99: 362.28 | K99: 356.65 | L99: 349.1 | M99: 2.59609
A100: 90 | B100: CANFINHOME | C100: 675.45 | D100: 681.83 | E100: 665.12 | F100: 654.78 | G100: 638.07 | H100: 692.17 | I100: 708.88 | J100: 719.22 | K100: 698.55 | L100: 671.5 | M100: 25.62867
A101: 91 | B101: CANBK | C101: 295.15 | D101: 298.22 | E101: 290.93 | F101: 286.72 | G101: 279.43 | H101: 302.43 | I101: 309.72 | J101: 313.93 | K101: 305.5 | L101: 294 | M101: 81.79149
A102: 92 | B102: CAPLIPOINT | C102: 705.3 | D102: 709.13 | E102: 699.27 | F102: 693.23 | G102: 683.37 | H102: 715.17 | I102: 725.03 | J102: 731.07 | K102: 719 | L102: 703.1 | M102: 0.39545
A103: 93 | B103: CGCL | C103: 676.15 | D103: 682.45 | E103: 668.90 | F103: 661.65 | G103: 648.10 | H103: 689.70 | I103: 703.25 | J103: 710.50 | K103: 696 | L103: 675.2 | M103: 3.59572
A104: 94 | B104: CARBORUNIV | C104: 1163.15 | D104: 1165.82 | E104: 1153.48 | F104: 1143.82 | G104: 1131.48 | H104: 1175.48 | I104: 1187.82 | J104: 1197.48 | K104: 1178.15 | L104: 1156.15 | M104: 0.74563
A105: 95 | B105: CASTROLIND | C105: 112.95 | D105: 113.35 | E105: 112.10 | F105: 111.25 | G105: 110.00 | H105: 114.20 | I105: 115.45 | J105: 116.30 | K105: 114.6 | L105: 112.5 | M105: 5.45153
A106: 96 | B106: CEATLTD | C106: 1881.55 | D106: 1879.55 | E106: 1847.05 | F106: 1812.55 | G106: 1780.05 | H106: 1914.05 | I106: 1946.55 | J106: 1981.05 | K106: 1912.05 | L106: 1845.05 | M106: 6.39613
A107: 97 | B107: CENTRALBK | C107: 26.9 | D107: 27.02 | E107: 26.68 | F107: 26.47 | G107: 26.13 | H107: 27.23 | I107: 27.57 | J107: 27.78 | K107: 27.35 | L107: 26.8 | M107: 35.54741
A108: 98 | B108: CDSL | C108: 990.05 | D108: 986.98 | E108: 982.07 | F108: 974.08 | G108: 969.17 | H108: 994.97 | I108: 999.88 | J108: 1007.87 | K108: 991.9 | L108: 979 | M108: 2.68623
A109: 99 | B109: CENTURYPLY | C109: 574.8 | D109: 577.32 | E109: 570.73 | F109: 566.67 | G109: 560.08 | H109: 581.38 | I109: 587.97 | J109: 592.03 | K109: 583.9 | L109: 573.25 | M109: 0.8429
A110: 100 | B110: CENTURYTEX | C110: 822.85 | D110: 820.53 | E110: 812.32 | F110: 801.78 | G110: 793.57 | H110: 831.07 | I110: 839.28 | J110: 849.82 | K110: 828.75 | L110: 810 | M110: 5.20828
A111: 101 | B111: CERA | C111: 7409.9 | D111: 7427.77 | E111: 7327.08 | F111: 7244.27 | G111: 7143.58 | H111: 7510.58 | I111: 7611.27 | J111: 7694.08 | K111: 7528.45 | L111: 7344.95 | M111: 0.30345
A112: 102 | B112: CHALET | C112: 430.75 | D112: 431.43 | E112: 424.87 | F112: 418.98 | G112: 412.42 | H112: 437.32 | I112: 443.88 | J112: 449.77 | K112: 438 | L112: 425.55 | M112: 2.82702
A113: 103 | B113: CHAMBLFERT | C113: 294.85 | D113: 300.40 | E113: 288.00 | F113: 281.15 | G113: 268.75 | H113: 307.25 | I113: 319.65 | J113: 326.50 | K113: 312.8 | L113: 293.55 | M113: 52.05599
A114: 104 | B114: CHEMPLASTS | C114: 454.85 | D114: 450.45 | E114: 442.40 | F114: 429.95 | G114: 421.90 | H114: 462.90 | I114: 470.95 | J114: 483.40 | K114: 458.5 | L114: 438 | M114: 3.05181
A115: 105 | B115: CHOLAHLDNG | C115: 825.95 | D115: 819.57 | E115: 802.28 | F115: 778.62 | G115: 761.33 | H115: 843.23 | I115: 860.52 | J115: 884.18 | K115: 836.85 | L115: 795.9 | M115: 2.75123
A116: 106 | B116: CHOLAFIN | C116: 1042.3 | D116: 1034.45 | E116: 1018.95 | F116: 995.60 | G116: 980.10 | H116: 1057.80 | I116: 1073.30 | J116: 1096.65 | K116: 1049.95 | L116: 1011.1 | M116: 33.47392
A117: 107 | B117: CIPLA | C117: 914.5 | D117: 918.57 | E117: 907.48 | F117: 900.47 | G117: 889.38 | H117: 925.58 | I117: 936.67 | J117: 943.68 | K117: 929.65 | L117: 911.55 | M117: 18.81606
A118: 108 | B118: CUB | C118: 139.05 | D118: 140.17 | E118: 137.63 | F118: 136.22 | G118: 133.68 | H118: 141.58 | I118: 144.12 | J118: 145.53 | K118: 142.7 | L118: 138.75 | M118: 30.11836
A119: 109 | B119: CLEAN | C119: 1506.35 | D119: 1525.75 | E119: 1477.10 | F119: 1447.85 | G119: 1399.20 | H119: 1555.00 | I119: 1603.65 | J119: 1632.90 | K119: 1574.4 | L119: 1496.5 | M119: 2.896
A120: 110 | B120: COALINDIA | C120: 239.6 | D120: 240.48 | E120: 238.07 | F120: 236.53 | G120: 234.12 | H120: 242.02 | I120: 244.43 | J120: 245.97 | K120: 242.9 | L120: 238.95 | M120: 35.12113
A121: 111 | B121: COCHINSHIP | C121: 546.25 | D121: 549.40 | E121: 539.90 | F121: 533.55 | G121: 524.05 | H121: 555.75 | I121: 565.25 | J121: 571.60 | K121: 558.9 | L121: 543.05 | M121: 3.45602
A122: 112 | B122: COFORGE | C122: 4206.15 | D122: 4212.22 | E122: 4169.43 | F122: 4132.72 | G122: 4089.93 | H122: 4248.93 | I122: 4291.72 | J122: 4328.43 | K122: 4255 | L122: 4175.5 | M122: 2.04276
A123: 113 | B123: COLPAL | C123: 1635.6 | D123: 1651.22 | E123: 1615.43 | F123: 1595.27 | G123: 1559.48 | H123: 1671.38 | I123: 1707.17 | J123: 1727.33 | K123: 1687 | L123: 1631.05 | M123: 3.88799
A124: 114 | B124: CAMS | C124: 2069.7 | D124: 2071.23 | E124: 2062.52 | F124: 2055.33 | G124: 2046.62 | H124: 2078.42 | I124: 2087.13 | J124: 2094.32 | K124: 2079.95 | L124: 2064.05 | M124: 0.30685
A125: 115 | B125: CONCOR | C125: 631.4 | D125: 634.32 | E125: 625.28 | F125: 619.17 | G125: 610.13 | H125: 640.43 | I125: 649.47 | J125: 655.58 | K125: 643.35 | L125: 628.2 | M125: 16.77962
A126: 116 | B126: COROMANDEL | C126: 943 | D126: 950.92 | E126: 912.83 | F126: 882.67 | G126: 844.58 | H126: 981.08 | I126: 1019.17 | J126: 1049.33 | K126: 989 | L126: 920.75 | M126: 13.85832
A127: 117 | B127: CREDITACC | C127: 1183.5 | D127: 1185.23 | E127: 1170.47 | F127: 1157.43 | G127: 1142.67 | H127: 1198.27 | I127: 1213.03 | J127: 1226.07 | K127: 1200 | L127: 1172.2 | M127: 5.96881
A128: 118 | B128: CROMPTON | C128: 253.85 | D128: 254.38 | E128: 252.77 | F128: 251.68 | G128: 250.07 | H128: 255.47 | I128: 257.08 | J128: 258.17 | K128: 256 | L128: 253.3 | M128: 12.78307
A129: 119 | B129: CUMMINSIND | C129: 1644.05 | D129: 1654.68 | E129: 1629.37 | F129: 1614.68 | G129: 1589.37 | H129: 1669.37 | I129: 1694.68 | J129: 1709.37 | K129: 1680 | L129: 1640 | M129: 5.94239
A130: 120 | B130: CYIENT | C130: 1287.45 | D130: 1282.20 | E130: 1265.40 | F130: 1243.35 | G130: 1226.55 | H130: 1304.25 | I130: 1321.05 | J130: 1343.10 | K130: 1299 | L130: 1260.15 | M130: 8.22724
A131: 121 | B131: DCMSHRIRAM | C131: 822.1 | D131: 824.75 | E131: 814.35 | F131: 806.60 | G131: 796.20 | H131: 832.50 | I131: 842.90 | J131: 850.65 | K131: 835.15 | L131: 817 | M131: 0.27796
A132: 122 | B132: DLF | C132: 459.95 | D132: 464.77 | E132: 453.53 | F132: 447.12 | G132: 435.88 | H132: 471.18 | I132: 482.42 | J132: 488.83 | K132: 476 | L132: 458.35 | M132: 58.52119
A133: 123 | B133: DABUR | C133: 523.45 | D133: 524.30 | E133: 521.15 | F133: 518.85 | G133: 515.70 | H133: 526.60 | I133: 529.75 | J133: 532.05 | K133: 527.45 | L133: 522 | M133: 15.79098
A134: 124 | B134: DALBHARAT | C134: 2062.6 | D134: 2076.35 | E134: 2039.25 | F134: 2015.90 | G134: 1978.80 | H134: 2099.70 | I134: 2136.80 | J134: 2160.15 | K134: 2113.45 | L134: 2053 | M134: 2.24608
A135: 125 | B135: DEEPAKFERT | C135: 567.2 | D135: 576.03 | E135: 553.17 | F135: 539.13 | G135: 516.27 | H135: 590.07 | I135: 612.93 | J135: 626.97 | K135: 598.9 | L135: 562 | M135: 9.24297
A136: 126 | B136: DEEPAKNTR | C136: 1966.5 | D136: 1977.70 | E136: 1949.25 | F136: 1932.00 | G136: 1903.55 | H136: 1994.95 | I136: 2023.40 | J136: 2040.65 | K136: 2006.15 | L136: 1960.45 | M136: 6.18375
A137: 127 | B137: DELHIVERY | C137: 365.6 | D137: 366.33 | E137: 361.62 | F137: 357.63 | G137: 352.92 | H137: 370.32 | I137: 375.03 | J137: 379.02 | K137: 371.05 | L137: 362.35 | M137: 3.60174
A138: 128 | B138: DELTACORP | C138: 222.05 | D138: 223.00 | E138: 218.50 | F138: 214.95 | G138: 210.45 | H138: 226.55 | I138: 231.05 | J138: 234.60 | K138: 227.5 | L138: 219.45 | M138: 16.78665
A139: 129 | B139: DEVYANI | C139: 184.15 | D139: 181.02 | E139: 177.03 | F139: 169.92 | G139: 165.93 | H139: 188.13 | I139: 192.12 | J139: 199.23 | K139: 185 | L139: 173.9 | M139: 64.74442
A140: 130 | B140: DHANI | C140: 36.6 | D140: 36.80 | E140: 36.30 | F140: 36.00 | G140: 35.50 | H140: 37.10 | I140: 37.60 | J140: 37.90 | K140: 37.3 | L140: 36.5 | M140: 6.7845
A141: 131 | B141: DBL | C141: 171.3 | D141: 172.18 | E141: 170.12 | F141: 168.93 | G141: 166.87 | H141: 173.37 | I141: 175.43 | J141: 176.62 | K141: 174.25 | L141: 171 | M141: 2.7934
A142: 132 | B142: DIVISLAB | C142: 3153.5 | D142: 3194.15 | E142: 3103.35 | F142: 3053.20 | G142: 2962.40 | H142: 3244.30 | I142: 3335.10 | J142: 3385.25 | K142: 3284.95 | L142: 3144 | M142: 7.66236
A143: 133 | B143: DIXON | C143: 2983.7 | D143: 2996.58 | E143: 2953.17 | F143: 2922.63 | G143: 2879.22 | H143: 3027.12 | I143: 3070.53 | J143: 3101.07 | K143: 3040 | L143: 2966.05 | M143: 9.12471
A144: 134 | B144: LALPATHLAB | C144: 1976.15 | D144: 1990.50 | E144: 1956.00 | F144: 1935.85 | G144: 1901.35 | H144: 2010.65 | I144: 2045.15 | J144: 2065.30 | K144: 2025 | L144: 1970.35 | M144: 1.10558
A145: 135 | B145: DRREDDY | C145: 4423.1 | D145: 4443.40 | E145: 4384.60 | F145: 4346.10 | G145: 4287.30 | H145: 4481.90 | I145: 4540.70 | J145: 4579.20 | K145: 4502.2 | L145: 4404.9 | M145: 4.25447
A146: 136 | B146: EIDPARRY | C146: 499.55 | D146: 500.97 | E146: 496.18 | F146: 492.82 | G146: 488.03 | H146: 504.33 | I146: 509.12 | J146: 512.48 | K146: 505.75 | L146: 497.6 | M146: 0.63644
A147: 137 | B147: EIHOTEL | C147: 207.65 | D147: 207.05 | E147: 195.60 | F147: 183.55 | G147: 172.10 | H147: 219.10 | I147: 230.55 | J147: 242.60 | K147: 218.5 | L147: 195 | M147: 137.0955
A148: 138 | B148: EPL | C148: 191.4 | D148: 193.47 | E148: 188.48 | F148: 185.57 | G148: 180.58 | H148: 196.38 | I148: 201.37 | J148: 204.28 | K148: 198.45 | L148: 190.55 | M148: 9.15939
A149: 139 | B149: EASEMYTRIP | C149: 46.1 | D149: 46.27 | E149: 45.83 | F149: 45.57 | G149: 45.13 | H149: 46.53 | I149: 46.97 | J149: 47.23 | K149: 46.7 | L149: 46 | M149: 13.38613
A150: 140 | B150: EDELWEISS | C150: 62.6 | D150: 62.30 | E150: 61.60 | F150: 60.60 | G150: 59.90 | H150: 63.30 | I150: 64.00 | J150: 65.00 | K150: 63 | L150: 61.3 | M150: 47.14663
A151: 141 | B151: EICHERMOT | C151: 3576.15 | D151: 3598.85 | E151: 3547.75 | F151: 3519.35 | G151: 3468.25 | H151: 3627.25 | I151: 3678.35 | J151: 3706.75 | K151: 3649.95 | L151: 3570.45 | M151: 12.35091
A152: 142 | B152: ELGIEQUIP | C152: 469.2 | D152: 471.72 | E152: 462.28 | F152: 455.37 | G152: 445.93 | H152: 478.63 | I152: 488.07 | J152: 494.98 | K152: 481.15 | L152: 464.8 | M152: 3.99501
A153: 143 | B153: EMAMILTD | C153: 390 | D153: 389.88 | E153: 387.12 | F153: 384.23 | G153: 381.47 | H153: 392.77 | I153: 395.53 | J153: 398.42 | K153: 392.65 | L153: 387 | M153: 1.14274
A154: 144 | B154: ENDURANCE | C154: 1389.05 | D154: 1418.32 | E154: 1336.83 | F154: 1284.62 | G154: 1203.13 | H154: 1470.53 | I154: 1552.02 | J154: 1604.23 | K154: 1499.8 | L154: 1366.1 | M154: 2.29085
A155: 145 | B155: ENGINERSIN | C155: 96.9 | D155: 97.73 | E155: 95.67 | F155: 94.43 | G155: 92.37 | H155: 98.97 | I155: 101.03 | J155: 102.27 | K155: 99.8 | L155: 96.5 | M155: 62.78033
A156: 146 | B156: EQUITASBNK | C156: 82.8 | D156: 82.67 | E156: 81.48 | F156: 80.17 | G156: 78.98 | H156: 83.98 | I156: 85.17 | J156: 86.48 | K156: 83.85 | L156: 81.35 | M156: 105.8763
A157: 147 | B157: ESCORTS | C157: 2084.05 | D157: 2098.47 | E157: 2060.63 | F157: 2037.22 | G157: 1999.38 | H157: 2121.88 | I157: 2159.72 | J157: 2183.13 | K157: 2136.3 | L157: 2075.05 | M157: 1.89723
A158: 148 | B158: EXIDEIND | C158: 205.75 | D158: 206.53 | E158: 204.42 | F158: 203.08 | G158: 200.97 | H158: 207.87 | I158: 209.98 | J158: 211.32 | K158: 208.65 | L158: 205.2 | M158: 86.97541
A159: 149 | B159: FDC | C159: 289.7 | D159: 289.08 | E159: 282.67 | F159: 275.63 | G159: 269.22 | H159: 296.12 | I159: 302.53 | J159: 309.57 | K159: 295.5 | L159: 282.05 | M159: 1.9663
A160: 150 | B160: NYKAA | C160: 125.75 | D160: 126.47 | E160: 124.33 | F160: 122.92 | G160: 120.78 | H160: 127.88 | I160: 130.02 | J160: 131.43 | K160: 128.6 | L160: 125.05 | M160: 26.34053
A161: 151 | B161: FEDERALBNK | C161: 126.75 | D161: 127.32 | E161: 125.88 | F161: 125.02 | G161: 123.58 | H161: 128.18 | I161: 129.62 | J161: 130.48 | K161: 128.75 | L161: 126.45 | M161: 110.1888
A162: 152 | B162: FACT | C162: 315.7 | D162: 316.38 | E162: 311.82 | F162: 307.93 | G162: 303.37 | H162: 320.27 | I162: 324.83 | J162: 328.72 | K162: 320.95 | L162: 312.5 | M162: 4.65803
A163: 153 | B163: FINEORG | C163: 4446.95 | D163: 4458.98 | E163: 4417.97 | F163: 4388.98 | G163: 4347.97 | H163: 4487.97 | I163: 4528.98 | J163: 4557.97 | K163: 4500 | L163: 4430 | M163: 0.21215
A164: 154 | B164: FINCABLES | C164: 890.65 | D164: 895.62 | E164: 881.23 | F164: 871.82 | G164: 857.43 | H164: 905.03 | I164: 919.42 | J164: 928.83 | K164: 910 | L164: 886.2 | M164: 1.18667
A165: 155 | B165: FINPIPE | C165: 187.35 | D165: 188.78 | E165: 185.07 | F165: 182.78 | G165: 179.07 | H165: 191.07 | I165: 194.78 | J165: 197.07 | K165: 192.5 | L165: 186.5 | M165: 6.32111
A166: 156 | B166: FSL | C166: 133.1 | D166: 133.05 | E166: 131.60 | F166: 130.10 | G166: 128.65 | H166: 134.55 | I166: 136.00 | J166: 137.50 | K166: 134.5 | L166: 131.55 | M166: 21.20377
A167: 157 | B167: FORTIS | C167: 283.65 | D167: 282.88 | E167: 280.77 | F167: 277.88 | G167: 275.77 | H167: 285.77 | I167: 287.88 | J167: 290.77 | K167: 285 | L167: 280 | M167: 6.59087
A168: 158 | B168: GRINFRA | C168: 1081.95 | D168: 1082.32 | E168: 1059.73 | F168: 1037.52 | G168: 1014.93 | H168: 1104.53 | I168: 1127.12 | J168: 1149.33 | K168: 1104.9 | L168: 1060.1 | M168: 0.34129
A169: 159 | B169: GAIL | C169: 106.2 | D169: 107.28 | E169: 103.72 | F169: 101.23 | G169: 97.67 | H169: 109.77 | I169: 113.33 | J169: 115.82 | K169: 110.85 | L169: 104.8 | M169: 247.15468
A170: 160 | B170: GMMPFAUDLR | C170: 1474.85 | D170: 1479.43 | E170: 1460.87 | F170: 1446.88 | G170: 1428.32 | H170: 1493.42 | I170: 1511.98 | J170: 1525.97 | K170: 1498 | L170: 1465.45 | M170: 0.49695
A171: 161 | B171: GMRINFRA | C171: 45 | D171: 45.25 | E171: 44.65 | F171: 44.30 | G171: 43.70 | H171: 45.60 | I171: 46.20 | J171: 46.55 | K171: 45.85 | L171: 44.9 | M171: 47.68281
A172: 162 | B172: GALAXYSURF | C172: 2657.15 | D172: 2665.68 | E172: 2632.37 | F172: 2607.58 | G172: 2574.27 | H172: 2690.47 | I172: 2723.78 | J172: 2748.57 | K172: 2699 | L172: 2640.9 | M172: 0.17355
A173: 163 | B173: GARFIBRES | C173: 2980.05 | D173: 2986.47 | E173: 2954.58 | F173: 2929.12 | G173: 2897.23 | H173: 3011.93 | I173: 3043.82 | J173: 3069.28 | K173: 3018.35 | L173: 2961 | M173: 0.40465
A174: 164 | B174: GICRE | C174: 176 | D174: 176.20 | E174: 172.80 | F174: 169.60 | G174: 166.20 | H174: 179.40 | I174: 182.80 | J174: 186.00 | K174: 179.6 | L174: 173 | M174: 11.50131
A175: 165 | B175: GLAND | C175: 1331.95 | D175: 1342.30 | E175: 1304.70 | F175: 1277.45 | G175: 1239.85 | H175: 1369.55 | I175: 1407.15 | J175: 1434.40 | K175: 1379.9 | L175: 1315.05 | M175: 2.37928
A176: 166 | B176: GLAXO | C176: 1281.5 | D176: 1282.10 | E176: 1264.30 | F176: 1247.10 | G176: 1229.30 | H176: 1299.30 | I176: 1317.10 | J176: 1334.30 | K176: 1299.9 | L176: 1264.9 | M176: 1.24231
A177: 167 | B177: GLENMARK | C177: 604.1 | D177: 605.47 | E177: 598.03 | F177: 591.97 | G177: 584.53 | H177: 611.53 | I177: 618.97 | J177: 625.03 | K177: 612.9 | L177: 599.4 | M177: 10.43069
A178: 168 | B178: GOCOLORS | C178: 1116.75 | D178: 1119.20 | E178: 1108.75 | F178: 1100.75 | G178: 1090.30 | H178: 1127.20 | I178: 1137.65 | J178: 1145.65 | K178: 1129.65 | L178: 1111.2 | M178: 0.13641
A179: 169 | B179: GODFRYPHLP | C179: 1735.3 | D179: 1748.17 | E179: 1717.08 | F179: 1698.87 | G179: 1667.78 | H179: 1766.38 | I179: 1797.47 | J179: 1815.68 | K179: 1779.25 | L179: 1729.95 | M179: 0.77496
A180: 170 | B180: GODREJAGRO | C180: 423.85 | D180: 425.58 | E180: 421.42 | F180: 418.98 | G180: 414.82 | H180: 428.02 | I180: 432.18 | J180: 434.62 | K180: 429.75 | L180: 423.15 | M180: 0.39435
A181: 171 | B181: GODREJCP | C181: 1008.8 | D181: 1012.43 | E181: 1002.37 | F181: 995.93 | G181: 985.87 | H181: 1018.87 | I181: 1028.93 | J181: 1035.37 | K181: 1022.5 | L181: 1006 | M181: 6.91877
A182: 172 | B182: GODREJIND | C182: 459.7 | D182: 463.05 | E182: 454.65 | F182: 449.60 | G182: 441.20 | H182: 468.10 | I182: 476.50 | J182: 481.55 | K182: 471.45 | L182: 458 | M182: 0.9581
A183: 173 | B183: GODREJPROP | C183: 1309.15 | D183: 1336.07 | E183: 1274.48 | F183: 1239.82 | G183: 1178.23 | H183: 1370.73 | I183: 1432.32 | J183: 1466.98 | K183: 1397.65 | L183: 1301.4 | M183: 13.36663
A184: 174 | B184: GRANULES | C184: 277.75 | D184: 281.27 | E184: 272.68 | F184: 267.62 | G184: 259.03 | H184: 286.33 | I184: 294.92 | J184: 299.98 | K184: 289.85 | L184: 276.2 | M184: 22.73957
A185: 175 | B185: GRAPHITE | C185: 348.05 | D185: 350.17 | E185: 340.43 | F185: 332.82 | G185: 323.08 | H185: 357.78 | I185: 367.52 | J185: 375.13 | K185: 359.9 | L185: 342.55 | M185: 22.94823
A186: 176 | B186: GRASIM | C186: 1705.7 | D186: 1711.82 | E186: 1690.63 | F186: 1675.57 | G186: 1654.38 | H186: 1726.88 | I186: 1748.07 | J186: 1763.13 | K186: 1733 | L186: 1696.75 | M186: 2.3175
A187: 177 | B187: GESHIP | C187: 682.9 | D187: 692.82 | E187: 671.63 | F187: 660.37 | G187: 639.18 | H187: 704.08 | I187: 725.27 | J187: 736.53 | K187: 714 | L187: 681.55 | M187: 2.56131
A188: 178 | B188: GREENPANEL | C188: 328.9 | D188: 329.67 | E188: 324.33 | F188: 319.77 | G188: 314.43 | H188: 334.23 | I188: 339.57 | J188: 344.13 | K188: 335 | L188: 325.1 | M188: 1.95537
A189: 179 | B189: GRINDWELL | C189: 2056.8 | D189: 2062.27 | E189: 2044.53 | F189: 2032.27 | G189: 2014.53 | H189: 2074.53 | I189: 2092.27 | J189: 2104.53 | K189: 2080 | L189: 2050 | M189: 0.21392
A190: 180 | B190: GUJALKALI | C190: 693.75 | D190: 697.93 | E190: 684.17 | F190: 674.58 | G190: 660.82 | H190: 707.52 | I190: 721.28 | J190: 730.87 | K190: 711.7 | L190: 688.35 | M190: 1.94743
A191: 181 | B191: GAEL | C191: 238 | D191: 237.82 | E191: 234.28 | F191: 230.57 | G191: 227.03 | H191: 241.53 | I191: 245.07 | J191: 248.78 | K191: 241.35 | L191: 234.1 | M191: 5.32196
A192: 182 | B192: FLUOROCHEM | C192: 3317.85 | D192: 3313.08 | E192: 3301.07 | F192: 3284.28 | G192: 3272.27 | H192: 3329.87 | I192: 3341.88 | J192: 3358.67 | K192: 3325.1 | L192: 3296.3 | M192: 1.38218
A193: 183 | B193: GUJGASLTD | C193: 487 | D193: 488.75 | E193: 480.05 | F193: 473.10 | G193: 464.40 | H193: 495.70 | I193: 504.40 | J193: 511.35 | K193: 497.45 | L193: 481.8 | M193: 9.77594
A194: 184 | B194: GNFC | C194: 602.35 | D194: 619.42 | E194: 572.23 | F194: 542.12 | G194: 494.93 | H194: 649.53 | I194: 696.72 | J194: 726.83 | K194: 666.6 | L194: 589.3 | M194: 67.17914
A195: 185 | B195: GPPL | C195: 115.7 | D195: 116.20 | E195: 114.40 | F195: 113.10 | G195: 111.30 | H195: 117.50 | I195: 119.30 | J195: 120.60 | K195: 118 | L195: 114.9 | M195: 6.04109
A196: 186 | B196: GSFC | C196: 172.6 | D196: 175.60 | E196: 167.80 | F196: 163.00 | G196: 155.20 | H196: 180.40 | I196: 188.20 | J196: 193.00 | K196: 183.4 | L196: 170.8 | M196: 66.50082
A197: 187 | B197: GSPL | C197: 277.85 | D197: 280.83 | E197: 273.22 | F197: 268.58 | G197: 260.97 | H197: 285.47 | I197: 293.08 | J197: 297.72 | K197: 288.45 | L197: 276.2 | M197: 4.04875
A198: 188 | B198: HEG | C198: 1241.55 | D198: 1246.42 | E198: 1222.83 | F198: 1204.12 | G198: 1180.53 | H198: 1265.13 | I198: 1288.72 | J198: 1307.43 | K198: 1270 | L198: 1227.7 | M198: 3.75774
A199: 189 | B199: HCLTECH | C199: 1079.9 | D199: 1079.30 | E199: 1073.60 | F199: 1067.30 | G199: 1061.60 | H199: 1085.60 | I199: 1091.30 | J199: 1097.60 | K199: 1085 | L199: 1073 | M199: 15.15743
A200: 190 | B200: HDFCAMC | C200: 1813.6 | D200: 1817.40 | E200: 1800.45 | F200: 1787.30 | G200: 1770.35 | H200: 1830.55 | I200: 1847.50 | J200: 1860.65 | K200: 1834.35 | L200: 1804.25 | M200: 1.63499
A201: 191 | B201: HDFCBANK | C201: 1645 | D201: 1646.32 | E201: 1638.68 | F201: 1632.37 | G201: 1624.73 | H201: 1652.63 | I201: 1660.27 | J201: 1666.58 | K201: 1653.95 | L201: 1640 | M201: 248.23471
A202: 192 | B202: HDFCLIFE | C202: 561.55 | D202: 563.22 | E202: 557.63 | F202: 553.72 | G202: 548.13 | H202: 567.13 | I202: 572.72 | J202: 576.63 | K202: 568.8 | L202: 559.3 | M202: 17.45334
A203: 193 | B203: HFCL | C203: 65.55 | D203: 65.90 | E203: 65.00 | F203: 64.45 | G203: 63.55 | H203: 66.45 | I203: 67.35 | J203: 67.90 | K203: 66.8 | L203: 65.35 | M203: 22.46103
A204: 194 | B204: HLEGLAS | C204: 619.35 | D204: 622.77 | E204: 612.23 | F204: 605.12 | G204: 594.58 | H204: 629.88 | I204: 640.42 | J204: 647.53 | K204: 633.3 | L204: 615.65 | M204: 0.27844
A205: 195 | B205: HAPPSTMNDS | C205: 875.85 | D205: 874.17 | E205: 870.38 | F205: 864.92 | G205: 861.13 | H205: 879.63 | I205: 883.42 | J205: 888.88 | K205: 877.95 | L205: 868.7 | M205: 2.17364
A206: 196 | B206: HATSUN | C206: 885.25 | D206: 883.77 | E206: 869.58 | F206: 853.92 | G206: 839.73 | H206: 899.43 | I206: 913.62 | J206: 929.28 | K206: 897.95 | L206: 868.1 | M206: 0.12625
... 320 more rows

Sheet Bulk Deals
E6: Back To Main Page
A7: Subject : | B7: BULK DEAL | D7: =Main!B10 -> 2023-05-19
A9: Date | B9: Scrip code | C9: Scrip Name | D9: Client Name | E9: Buy / Sell | F9: Quantity Traded | G9: Trade Price / Wt.Avg.trade price | H9: Exchange
A10: 2023-05-18 | B10: 530233 | C10: AUROLAB | D10: AMIT DHANYAKUMAR CHORDIA | E10: BUY | F10: 50,000 | G10: 97.64 | H10: BSE
A11: 2023-05-18 | B11: 531671 | C11: BISIL | D11: ALGOQUANT FINTECH LIMITED . | E11: SELL | F11: 781,907 | G11: 3.63 | H11: BSE
A12: 2023-05-18 | B12: 532123 | C12: BSELINFRA | D12: MULTIPLIER SHARE & STOCK ADVISORS PRIVATE LIMITED | E12: SELL | F12: 497,254 | G12: 6.7 | H12: BSE
A13: 2023-05-18 | B13: 532123 | C13: BSELINFRA | D13: MULTIPLIER SHARE & STOCK ADVISORS PRIVATE LIMITED | E13: BUY | F13: 291,160 | G13: 6.65 | H13: BSE
A14: 2023-05-18 | B14: 531283 | C14: CINDRELL | D14: RAJAT SINGH | E14: SELL | F14: 30,105 | G14: 7.75 | H14: BSE
A15: 2023-05-18 | B15: 531364 | C15: EKANSH | D15: CHARTERED CAPITAL RESEARCH PRIVATE LIMITED | E15: SELL | F15: 109,500 | G15: 68.01 | H15: BSE
A16: 2023-05-18 | B16: 543895 | C16: EXHICON | D16: YUGA STOCKS AND COMMODITIES PRIVATE LIMITED . | E16: BUY | F16: 34,000 | G16: 150.04 | H16: BSE
A17: 2023-05-18 | B17: 543895 | C17: EXHICON | D17: YUGA STOCKS AND COMMODITIES PRIVATE LIMITED . | E17: SELL | F17: 150,000 | G17: 153.27 | H17: BSE
A18: 2023-05-18 | B18: 543895 | C18: EXHICON | D18: EPITOME TRADING AND INVESTMENTS | E18: BUY | F18: 100,000 | G18: 154 | H18: BSE
A19: 2023-05-18 | B19: 543895 | C19: EXHICON | D19: EPITOME TRADING AND INVESTMENTS | E19: SELL | F19: 26,000 | G19: 153.94 | H19: BSE
A20: 2023-05-18 | B20: 533048 | C20: GISOLUTION | D20: AG DYNAMIC FUNDS LIMITED | E20: BUY | F20: 200,000 | G20: 36.35 | H20: BSE
A21: 2023-05-18 | B21: 533048 | C21: GISOLUTION | D21: ABHISHEK STERLING HOLDING PROPRIETOR ABHISHEK JINDAL | E21: BUY | F21: 420,000 | G21: 37.58 | H21: BSE
A22: 2023-05-18 | B22: 533048 | C22: GISOLUTION | D22: SAROJ GUPTA | E22: BUY | F22: 300,000 | G22: 36.47 | H22: BSE
A23: 2023-05-18 | B23: 540377 | C23: IFL | D23: BANKE TRADELINK PRIVATE LIMITED | E23: BUY | F23: 1,639,744 | G23: 12.14 | H23: BSE
A24: 2023-05-18 | B24: 531109 | C24: ISHANCH | D24: SERAPHIM VENTURES PRIVATE LIMITED | E24: SELL | F24: 300,000 | G24: 63 | H24: BSE
A25: 2023-05-18 | B25: 531109 | C25: ISHANCH | D25: ARHAA HOLDINGS PRIVATE LIMITED | E25: SELL | F25: 8 | G25: 64.75 | H25: BSE
A26: 2023-05-18 | B26: 531109 | C26: ISHANCH | D26: ARHAA HOLDINGS PRIVATE LIMITED | E26: BUY | F26: 117,508 | G26: 62.1 | H26: BSE
A27: 2023-05-18 | B27: 531109 | C27: ISHANCH | D27: KINJAL KAPIL VYAS | E27: BUY | F27: 100,000 | G27: 63.5 | H27: BSE
A28: 2023-05-18 | B28: 534623 | C28: JUPITERIN | D28: SUMANCHEPURI | E28: BUY | F28: 14 | G28: 19.96 | H28: BSE
A29: 2023-05-18 | B29: 534623 | C29: JUPITERIN | D29: SUMANCHEPURI | E29: SELL | F29: 133,921 | G29: 21.33 | H29: BSE
A30: 2023-05-18 | B30: 543830 | C30: LABELKRAFT | D30: BONANZA PORTFOLIO LIMITED | E30: SELL | F30: 18,000 | G30: 81.97 | H30: BSE
A31: 2023-05-18 | B31: 543830 | C31: LABELKRAFT | D31: BONANZA PORTFOLIO LIMITED | E31: BUY | F31: 32,000 | G31: 83.05 | H31: BSE
A32: 2023-05-18 | B32: 543830 | C32: LABELKRAFT | D32: SIDDHISANJAY | E32: SELL | F32: 18,000 | G32: 83.1 | H32: BSE
A33: 2023-05-18 | B33: 543874 | C33: MAIDEN | D33: SHARE INDIA SECURITIES LIMITED | E33: SELL | F33: 180,000 | G33: 63.66 | H33: BSE
A34: 2023-05-18 | B34: 543902 | C34: RETINA | D34: NIKUNJ KAUSHIK SHAH | E34: SELL | F34: 72,000 | G34: 50.59 | H34: BSE
A35: 2023-05-18 | B35: 543902 | C35: RETINA | D35: NIKUNJ KAUSHIK SHAH | E35: BUY | F35: 72,000 | G35: 51.76 | H35: BSE
A36: 2023-05-18 | B36: 539584 | C36: SIPTL | D36: SANJAYKUMAR JITENDRAKUMAR BHALANI | E36: BUY | F36: 300,000 | G36: 1.11 | H36: BSE
A37: 2023-05-18 | B37: 540914 | C37: SRUSTEELS | D37: MULTIPLIER SHARE & STOCK ADVISORS PRIVATE LIMITED | E37: SELL | F37: 75,000 | G37: 20.84 | H37: BSE
A38: 2023-05-18 | B38: 543799 | C38: SVJ | D38: BP COMTRADE PRIVATE LIMITED | E38: BUY | F38: 33,000 | G38: 50.72 | H38: BSE
A39: 2023-05-18 | B39: 543799 | C39: SVJ | D39: BP EQUITIES PVT. LTD. | E39: BUY | F39: 24,000 | G39: 51.79 | H39: BSE
A40: 2023-05-18 | B40: 543799 | C40: SVJ | D40: BP EQUITIES PVT. LTD. | E40: SELL | F40: 60,000 | G40: 52.76 | H40: BSE
A41: 2023-05-18 | B41: 543799 | C41: SVJ | D41: MADHUDEVI SANJAY BUCHA | E41: SELL | F41: 105,000 | G41: 48.26 | H41: BSE
A42: 2023-05-18 | B42: 543799 | C42: SVJ | D42: MOUNTAIN VENTURES | E42: BUY | F42: 30,000 | G42: 53.01 | H42: BSE
A43: 2023-05-18 | B43: 543799 | C43: SVJ | D43: SRESTHA FINVEST LIMITED | E43: BUY | F43: 114,000 | G43: 47.97 | H43: BSE
A44: 2023-05-18 | B44: 543799 | C44: SVJ | D44: SPRING VENTURES | E44: BUY | F44: 39,000 | G44: 53.01 | H44: BSE
A45: 2023-05-18 | B45: 543799 | C45: SVJ | D45: SRESTHA FINVEST LIMITED | E45: SELL | F45: 162,000 | G45: 49.61 | H45: BSE
A46: 2023-05-18 | B46: 543799 | C46: SVJ | D46: MANSI SHARE & STOCK ADVISORS PRIVATE LIMITED | E46: BUY | F46: 30,000 | G46: 47.97 | H46: BSE
A47: 2023-05-18 | B47: 543799 | C47: SVJ | D47: MULTIPLIER SHARE & STOCK ADVISORS PRIVATE LIMITED | E47: SELL | F47: 51,000 | G47: 51.82 | H47: BSE
A48: 2023-05-18 | B48: 543799 | C48: SVJ | D48: SETU SECURITIES PVT. LTD. | E48: SELL | F48: 12,000 | G48: 47.97 | H48: BSE
A49: 2023-05-18 | B49: 543799 | C49: SVJ | D49: MULTIPLIER SHARE & STOCK ADVISORS PRIVATE LIMITED | E49: BUY | F49: 129,000 | G49: 48.97 | H49: BSE
A50: 2023-05-18 | B50: 543799 | C50: SVJ | D50: SETU SECURITIES PVT. LTD. | E50: BUY | F50: 30,000 | G50: 47.98 | H50: BSE
A51: 2023-05-18 | B51: 539041 | C51: SVPHOUSING | D51: BP EQUITIES PVT. LTD. | E51: BUY | F51: 77,500 | G51: 77.37 | H51: BSE
A52: 2023-05-18 | B52: 539041 | C52: SVPHOUSING | D52: BP EQUITIES PVT. LTD. | E52: SELL | F52: 105,000 | G52: 77.56 | H52: BSE
A53: 2023-05-18 | B53: 539041 | C53: SVPHOUSING | D53: RAJESH JOSEPH | E53: BUY | F53: 135,000 | G53: 77.88 | H53: BSE
A54: 2023-05-18 | B54: 539041 | C54: SVPHOUSING | D54: SIGI JOSE | E54: SELL | F54: 100,000 | G54: 78.29 | H54: BSE
A55: 2023-05-18 | B55: 539041 | C55: SVPHOUSING | D55: ARHAM SHARE PRIVATE LIMITED | E55: BUY | F55: 112,500 | G55: 78.29 | H55: BSE
A56: 2023-05-18 | B56: 539041 | C56: SVPHOUSING | D56: ARHAM SHARE PRIVATE LIMITED | E56: SELL | F56: 112,500 | G56: 77.96 | H56: BSE
A57: 2023-05-18 | B57: 539041 | C57: SVPHOUSING | D57: MULTIPLIER SHARE & STOCK ADVISORS PRIVATE LIMITED | E57: SELL | F57: 115,000 | G57: 78.29 | H57: BSE
A58: 2023-05-18 | B58: 539041 | C58: SVPHOUSING | D58: MULTIPLIER SHARE & STOCK ADVISORS PRIVATE LIMITED | E58: BUY | F58: 95,000 | G58: 78.29 | H58: BSE
A59: 2023-05-18 | B59: 542765 | C59: TRANSPACT | D59: JAGRUTIBEN JAYANTILAL VYAS | E59: SELL | F59: 3,000 | G59: 154.4 | H59: BSE
A60: 2023-05-18 | B60: 543754 | C60: TRANSVOY | D60: YUGA STOCKS AND COMMODITIES PRIVATE LIMITED . | E60: BUY | F60: 17,600 | G60: 106.16 | H60: BSE
A61: 2023-05-18 | B61: 543754 | C61: TRANSVOY | D61: YUGA STOCKS AND COMMODITIES PRIVATE LIMITED . | E61: SELL | F61: 12,800 | G61: 107.9 | H61: BSE
A62: 2023-05-18 | B62: 511742 | C62: UGROCAP | D62: SURYA VANSHI COMMOTRADE PVT LTD | E62: BUY | F62: 626,174 | G62: 187 | H62: BSE
A63: 2023-05-18 | B63: 543545 | C63: VEERKRUPA | D63: ANKIT MAHENDRABHAI PARLESHA | E63: BUY | F63: 24,000 | G63: 58.55 | H63: BSE
A64: 2023-05-18 | B64: 543545 | C64: VEERKRUPA | D64: ANKIT MAHENDRABHAI PARLESHA | E64: SELL | F64: 67,000 | G64: 58.49 | H64: BSE
A65: 2023-05-18 | B65: 543545 | C65: VEERKRUPA | D65: MULTIPLIER SHARE & STOCK ADVISORS PRIVATE LIMITED | E65: BUY | F65: 65,000 | G65: 58.35 | H65: BSE
A66: 2023-05-18 | B66: ANUP | C66: The Anup Engineering Ltd | D66: GRAVITON RESEARCH CAPITAL LLP | E66: BUY | F66: 56,899 | G66: 1442.1 | H66: NSE
A67: 2023-05-18 | B67: APOLLOPIPE | C67: Apollo Pipes Limited | D67: HOMEDGE INFRACON PRIVATE LIMITED | E67: BUY | F67: 484,200 | G67: 625.01 | H67: NSE
A68: 2023-05-18 | B68: AXITA | C68: Axita Cotton Limited | D68: MULTIPLIER SHARE & STOCK ADVISORS PRIVATE LIMITED | E68: BUY | F68: 1,015,619 | G68: 26.06 | H68: NSE
A69: 2023-05-18 | B69: BIRLACABLE | C69: Birla Cable Limited | D69: GRAVITON RESEARCH CAPITAL LLP | E69: BUY | F69: 169,698 | G69: 164.6 | H69: NSE
A70: 2023-05-18 | B70: FOODSIN | C70: Foods & Inns Limited | D70: GRAVITON RESEARCH CAPITAL LLP | E70: BUY | F70: 314,957 | G70: 156.77 | H70: NSE
A71: 2023-05-18 | B71: LRRPL | C71: Lead Rec And Rub Prod Ltd | D71: ARHAM SHARE PRIVATE LIMITED | E71: BUY | F71: 30,000 | G71: 60.95 | H71: NSE
A72: 2023-05-18 | B72: SECURCRED | C72: SecUR Credentials Limited | D72: PALAK INTERMEDIATES PRIVATE LIMITED | E72: BUY | F72: 40,451 | G72: 24.85 | H72: NSE
A73: 2023-05-18 | B73: SECURCRED | C73: SecUR Credentials Limited | D73: JAINAM BROKING LIMITED | E73: BUY | F73: 500,000 | G73: 25 | H73: NSE
A74: 2023-05-18 | B74: SHAKTIPUMP | C74: Shakti Pumps (I) Ltd | D74: GRAVITON RESEARCH CAPITAL LLP | E74: BUY | F74: 94,566 | G74: 566.03 | H74: NSE
A75: 2023-05-18 | B75: SHANTI | C75: Shanti Overseas (Ind) Ltd | D75: AMIT KUMAR JAIN HUF | E75: BUY | F75: 70,075 | G75: 18.3 | H75: NSE
A76: 2023-05-18 | B76: SHANTI | C76: Shanti Overseas (Ind) Ltd | D76: ARPIT JAIN HUF | E76: BUY | F76: 137,952 | G76: 18.24 | H76: NSE
A77: 2023-05-18 | B77: UGROCAP | C77: Ugro Capital Limited | D77: SURYA VANSHI COMMOTRADE PVT. LTD. | E77: BUY | F77: 819,762 | G77: 187 | H77: NSE
A78: 2023-05-18 | B78: VIVO | C78: Vivo Collab Solutions Ltd | D78: MULTIPLIER SHARE & STOCK ADVISORS PRIVATE LIMITED | E78: BUY | F78: 16,000 | G78: 114.85 | H78: NSE
A79: 2023-05-18 | B79: ANUP | C79: The Anup Engineering Ltd | D79: GRAVITON RESEARCH CAPITAL LLP | E79: SELL | F79: 56,899 | G79: 1442.83 | H79: NSE
A80: 2023-05-18 | B80: APOLLOPIPE | C80: Apollo Pipes Limited | D80: SANJAY GUPTA | E80: SELL | F80: 484,200 | G80: 625 | H80: NSE
A81: 2023-05-18 | B81: AXITA | C81: Axita Cotton Limited | D81: MULTIPLIER SHARE & STOCK ADVISORS PRIVATE LIMITED | E81: SELL | F81: 221,337 | G81: 26.05 | H81: NSE
A82: 2023-05-18 | B82: BIRLACABLE | C82: Birla Cable Limited | D82: GRAVITON RESEARCH CAPITAL LLP | E82: SELL | F82: 169,698 | G82: 164.65 | H82: NSE
A83: 2023-05-18 | B83: BLS | C83: BLS Intl Servs Ltd | D83: DIWAKAR AGGARWAL | E83: SELL | F83: 11,200,000 | G83: 175.24 | H83: NSE
A84: 2023-05-18 | B84: FOODSIN | C84: Foods & Inns Limited | D84: GRAVITON RESEARCH CAPITAL LLP | E84: SELL | F84: 314,957 | G84: 156.93 | H84: NSE
A85: 2023-05-18 | B85: FOODSIN | C85: Foods & Inns Limited | D85: DHUPELIA PALLAVI UTSAV | E85: SELL | F85: 529,699 | G85: 153.25 | H85: NSE
A86: 2023-05-18 | B86: GICL | C86: Globe Intl Carriers Ltd | D86: NAVRATRI SHARE TRADING PRIVATE LIMITED . | E86: SELL | F86: 120,000 | G86: 42.03 | H86: NSE
A87: 2023-05-18 | B87: JKTYRE | C87: JK Tyre & Industries Ltd | D87: NAVODYA ENTERPRISES | E87: SELL | F87: 1,622,494 | G87: 186.8 | H87: NSE
A88: 2023-05-18 | B88: LRRPL | C88: Lead Rec And Rub Prod Ltd | D88: ARHAM SHARE PRIVATE LIMITED | E88: SELL | F88: 42,000 | G88: 60.26 | H88: NSE
A89: 2023-05-18 | B89: QFIL | C89: Quality Foils (India) Ltd | D89: SATISH SINGHAL HUF | E89: SELL | F89: 20,000 | G89: 133.44 | H89: NSE
A90: 2023-05-18 | B90: SECURCRED | C90: SecUR Credentials Limited | D90: PALAK INTERMEDIATES PRIVATE LIMITED | E90: SELL | F90: 500,000 | G90: 25 | H90: NSE
A91: 2023-05-18 | B91: SHAKTIPUMP | C91: Shakti Pumps (I) Ltd | D91: GRAVITON RESEARCH CAPITAL LLP | E91: SELL | F91: 94,566 | G91: 566.33 | H91: NSE
A92: 2023-05-18 | B92: SHANTI | C92: Shanti Overseas (Ind) Ltd | D92: ARPIT JAIN HUF | E92: SELL | F92: 132,642 | G92: 18.18 | H92: NSE
A93: 2023-05-18 | B93: SHANTI | C93: Shanti Overseas (Ind) Ltd | D93: AMIT KUMAR JAIN HUF | E93: SELL | F93: 70,075 | G93: 18.3 | H93: NSE
A94: 2023-05-18 | B94: VASCONEQ | C94: Vascon Engineers Ltd | D94: CREST VENTURES LIMITED | E94: SELL | F94: 1,100,000 | G94: 36.19 | H94: NSE
A95: 2023-05-18 | B95: VIVO | C95: Vivo Collab Solutions Ltd | D95: MULTIPLIER SHARE & STOCK ADVISORS PRIVATE LIMITED | E95: SELL | F95: 16,000 | G95: 115.01 | H95: NSE

Sheet Call Tracker (Equity & F&O)
M5: Back To Main Page
A6: Retail Research Technical Calls & Fundamental Performance Report for the month of May-2023
M7: =Main!B10 -> 2023-05-19
B8: Positional Call
A9: Sr.no | B9: Date | D9: Company | E9: Rec | F9: Rec Price | G9: Stop Loss*** | H9: Call Closed At | I9: Target | J9: Remark | K9: Profit / Loss per Share | L9: All charges | M9: Net Gain / Loss % | N9: Status | O9: Closed Date | P9: Market Closing Price
A10: 1 | B10: 2023-04-11 | D10: SHARDACROP | E10: Accu | F10: 460 | G10: 425 | H10: 489 | I10: 500-530 | J10: Profit of Rs.29/- | K10: =H10-F10 -> 29 | L10: =(F10*-0.7)/100 -> -3.22 | M10: =(K10+L10)/F10 -> 5.60% | N10: Successful | O10: 2023-05-11 | R10: H
A11: 2 | B11: 2023-04-12 | D11: SUDARSCHEM | E11: Accu | F11: 390-410 | G11: 377 | I11: 440-460 | J11: Open | P11: =VLOOKUP(D11,'MidCap Intra'!B28:C528,2,0) -> 394.25 | R11: H
A12: 3 | B12: 2023-04-17 | D12: REDINGTON | E12: Accu | F12: 167.5 | G12: 158 | H12: 177.5 | I12: 180-190 | J12: Profit of Rs.10/- | K12: =H12-F12 -> 10 | L12: =(F12*-0.7)/100 -> -1.17 | M12: =(K12+L12)/F12 -> 5.27% | N12: Successful | O12: 2023-05-12 | R12: H
A13: 4 | B13: 2023-04-17 | D13: HCLTECH | E13: Accu | F13: 1035 | G13: 945 | H13: 1092.5 | I13: 1150-1200 | J13: Profit of Rs.29/- | K13: =H13-F13 -> 57.5 | L13: =(F13*-0.7)/100 -> -7.25 | M13: =(K13+L13)/F13 -> 4.86% | N13: Successful | O13: 2023-05-11 | R13: H
A14: 5 | B14: 2023-04-17 | D14: KOLTEPATIL | E14: Accu | F14: 248.5 | G14: 233 | H14: 265.5 | I14: 280-290 | J14: Profit of Rs.17/- | K14: =H14-F14 -> 17 | L14: =(F14*-0.7)/100 -> -1.74 | M14: =(K14+L14)/F14 -> 6.14% | N14: Successful | O14: 2023-05-03 | R14: N
A15: 6 | B15: 2023-04-24 | D15: BHARTIARTL | E15: Accu | F15: 755-790 | G15: 735 | I15: 850-900 | J15: Open | P15: =VLOOKUP(D15,'MidCap Intra'!B33:C533,2,0) -> 799.35 | R15: H
A16: 7 | B16: 2023-04-25 | D16: MASTEK | E16: Accu | F16: 1715 | G16: 1550 | H16: 1817.5 | I16: 1900-2000 | J16: Profit of Rs.102.5/- | K16: =H16-F16 -> 102.5 | L16: =(F16*-0.7)/100 -> -12.01 | M16: =(K16+L16)/F16 -> 5.28% | N16: Successful | O16: 2023-05-17 | R16: H
A17: 8 | B17: 2023-04-28 | D17: GNFC | E17: Accu | F17: 580 | G17: 530 | H17: 614 | I17: 640-680 | J17: Profit of Rs.34/- | K17: =H17-F17 -> 34 | L17: =(F17*-0.7)/100 -> -4.06 | M17: =(K17+L17)/F17 -> 5.16% | N17: Successful | O17: 2023-05-11 | R17: H
A18: 9 | B18: 2023-05-03 | D18: TATAELXSI | E18: Accu | F18: 6575 | G18: 6150 | H18: 6970 | I18: 7000-7300 | J18: Profit of Rs.395/- | K18: =H18-F18 -> 395 | L18: =(F18*-0.7)/100 -> -46.03 | M18: =(K18+L18)/F18 -> 5.31% | N18: Successful | O18: 2023-05-09 | R18: H
A19: 10 | B19: 2023-05-09 | D19: KANSAINER | E19: Accu | F19: 400-410 | G19: 379 | I19: 450-470 | J19: Open | P19: =VLOOKUP(D19,'MidCap Intra'!B37:C537,2,0) -> 415.40 | R19: H
A20: 11 | B20: 2023-05-12 | D20: RECLTD | E20: Accu | F20: 126-130.5 | G20: 119 | I20: 140-150 | J20: Open | P20: =VLOOKUP(D20,'MidCap Intra'!B38:C538,2,0) -> 129.50
A21: 12 | B21: 2023-05-12 | D21: SBIN | E21: Accu | F21: 562-574 | G21: 538 | I21: 600-630 | J21: Open | P21: =VLOOKUP(D21,'MidCap Intra'!B39:C539,2,0) -> 574.20
A24: CLBS = Closing Basis ***
A25: Dividend adjusted <> | F25: Reinitiated $
A26: Part book {} | D26: s | F26: Revised stoploss #
B28: Momentum Call
A29: Sr.no | B29: Date | D29: Company | E29: Rec | F29: Rec Price | G29: Stop Loss | H29: Call Closed At | I29: Target | J29: Remark | K29: Profit / Loss per Share/Lot | L29: All charges | M29: Net Gain / Loss % | N29: Status | O29: Closed Date
A30: 1 | B30: 2023-04-24 | D30: KNRCON | E30: Buy | F30: 239.5 | G30: 232 | H30: 246.5 | I30: 248-252 | J30: Profit of Rs.7/- | K30: =H30-F30 -> 7 | L30: =(F30*-0.7)/100 -> -1.68 | M30: =(K30+L30)/F30 -> 2.22% | N30: Successful | O30: 2023-05-09 | R30: H
A31: 2 | B31: 2023-04-25 | D31: KANSAINER | E31: Buy | F31: 378 | G31: 367 | H31: 390 | I31: 390-400 | J31: Profit of Rs.12/- | K31: =H31-F31 -> 12 | L31: =(F31*-0.7)/100 -> -2.65 | M31: =(K31+L31)/F31 -> 2.47% | N31: Successful | O31: 2023-05-03 | R31: H
A32: 3 | B32: 2023-04-28 | D32: GSPL | E32: Buy | F32: 284 | G32: 274 | H32: 274 | I32: 300 | J32: Loss of Rs.10/- | K32: =H32-F32 -> -10 | L32: =(F32*-0.7)/100 -> -1.99 | M32: =(K32+L32)/F32 -> -4.22% | N32: Unsuccessful | O32: 2023-05-09 | R32: H
A33: 4 | B33: 2023-05-04 | D33: SUNPHARMA | E33: Buy | F33: 970 | G33: 945 | H33: 945 | I33: 1000-1020 | J33: Loss of Rs.25/- | K33: =H33-F33 -> -25 | L33: =(F33*-0.7)/100 -> -6.79 | M33: =(K33+L33)/F33 -> -3.28% | N33: Unsuccessful | O33: 2023-05-16 | R33: H
A34: 5 | B34: 2023-05-11 | D34: FLUOROCHEM | E34: Buy | F34: 3225 | G34: 3130 | H34: 3300 | I34: 3400-3450 | J34: Profit of Rs.75/- | K34: =H34-F34 -> 75 | L34: =(F34*-0.7)/100 -> -22.58 | M34: =(K34+L34)/F34 -> 1.63% | N34: Successful | O34: 2023-05-15 | R34: H
A35: 6 | B35: 2023-05-12 | D35: TATAELXSI | E35: Buy | F35: 7050-7100 | G35: 6890 | I35: 7400-7500 | J35: Open
A36: 7 | B36: 2023-05-12 | D36: KNRCON | E36: Buy | F36: 239.5 | G36: 232 | H36: 246.5 | I36: 248-252 | J36: Profit of Rs.7/- | K36: =H36-F36 -> 7 | L36: =(F36*-0.7)/100 -> -1.68 | M36: =(K36+L36)/F36 -> 2.22% | N36: Successful | O36: 2023-05-15
A41: CLBS = Closing Basis *** | H41: *
A42: Dividend adjusted <> | F42: Reinitiated $
F43: Revised stoploss #
A45: Master Trade High Risk
A46: Sr.no | B46: Date | D46: Company | E46: Rec | F46: Rec Price | G46: Stop Loss | H46: Call Closed At | I46: Target | J46: Remark | K46: Profit / Loss per share | L46: All charges | M46: Gain / Loss per Lot | N46: Lot | O46: Status | P46: Closed Date
A47: 1 | B47: 2023-04-28 | D47: PIDILITIND MAY FUT | E47: Buy | F47: 2419 | G47: 2370 | H47: 2457.5 | I47: 2470-2500 | J47: Profit of Rs.38.5/- | K47: =H47-F47 -> 38.5 | L47: =(H47*N47)*0.07% -> 430.06 | M47: =(K47*N47)-L47 -> 9194.9 | N47: 250 | O47: Successful | P47: 2023-05-03 | R47: H
A48: 2 | B48: 2023-05-03 | D48: BHARTIARTL MAY FUT | E48: Buy | F48: 790 | G48: 776 | H48: 798.5 | I48: 810-820 | J48: Profit of Rs.8.5/- | K48: 8.5 | L48: 531.00 | M48: 7544.0 | N48: 950 | O48: Successful | P48: 2023-05-09 | R48: H
A49: 3 | B49: 2023-05-08 | D49: COLPAL MAY FUT | E49: Buy | F49: 1557 | G49: 1520 | H49: 1580 | I49: 1600-1630 | J49: Profit of Rs.23/- | K49: =H49-F49 -> 23 | L49: =(H49*N49)*0.07% -> 387.10 | M49: 7662.9 | N49: 350 | O49: Successful | P49: 2023-05-10 | R49: N
A50: 4 | B50: 2023-05-08 | D50: GUJGASLTD MAY FUT | E50: Buy | F50: 460 | G50: 449 | H50: 467 | I50: 472-482 | J50: Profit of Rs.7/- | K50: =H50-F50 -> 7 | L50: =(H50*N50)*0.07% -> 408.63 | M50: 8341.4 | N50: 1250 | O50: Successful | P50: 2023-05-09 | R50: N
A51: 5 | B51: 2023-05-10 | D51: GUJGASLTD MAY FUT | E51: Buy | F51: 459 | G51: 448 | H51: 482 | I51: 472-482 | J51: Profit of Rs.23/- | K51: =H51-F51 -> 23 | L51: =(H51*N51)*0.07% -> 421.75 | M51: 28328.3 | N51: 1250 | O51: Successful | P51: 2023-05-11 | R51: N
A52: 6 | B52: 2023-05-10 | D52: SBIN MAY FUT | E52: Buy | F52: 569 | G52: 559 | H52: 576.5 | I52: 580-590 | J52: Profit of Rs.7.5/- | K52: 7.5 | L52: 605.33 | M52: 10644.7 | N52: 1500 | O52: Successful | P52: 2023-05-11 | R52: H
A53: 7 | B53: 2023-05-16 | D53: AMBUJACEM MAY FUT | E53: Buy | F53: 404.5-405.5 | G53: 398.5 | I53: 415-420 | J53: Open
A57: Master Trade Medium Risk
A58: Sr.no | B58: Date | D58: Company | E58: Rec | F58: Rec Price | G58: Stop Loss | H58: Call Closed At | I58: Target | J58: Remark | K58: Profit/ Loss per lot | L58: All charges | M58: Gain / Loss per Lot | N58: Lot | O58: Status | P58: Closed Date
A59: 1 | B59: 2023-04-27 | D59: HDFC 2800 CE MAY | E59: Buy | F59: 35 | G59: 19 | H59: 42 | I59: 60-70 | J59: Profit of Rs.7/- | K59: =H59-F59 -> 7 | L59: 100.00 | M59: =(K59*N59)-100 -> 2000.0 | N59: 300 | O59: Successful | P59: 2023-05-02 | R59: N
A60: 2 | B60: 2023-04-28 | D60: MARUTI 8700 CE MAY | E60: Buy | F60: 127 | G60: 78 | H60: 147 | I60: 180-220 | J60: Profit of Rs.20/- | K60: =H60-F60 -> 20 | L60: 100.00 | M60: =(K60*N60)-100 -> 1900.0 | N60: 100 | O60: Successful | P60: 2023-05-02 | R60: N
A61: 3 | B61: 2023-04-28 | D61: PVR 1460 PE MAY | E61: Buy | F61: 39 | G61: 25 | H61: 45.5 | I61: 60-75 | J61: Profit of Rs.6.5/- | K61: =H61-F61 -> 6.5 | L61: 100.00 | M61: =(K61*N61)-100 -> 2545.5 | N61: 407 | O61: Successful | P61: 2023-05-02 | R61: N
A62: 4 | B62: 2023-04-28 | D62: FINNIFTY 19150 PE 2-MAY | E62: Buy | F62: 38 | H62: 11 | I62: 70-100 | J62: Loss of Rs.27/- | K62: =H62-F62 -> -27 | L62: 100.00 | M62: =(K62*N62)-100 -> -1180.0 | N62: 40 | O62: Unsuccessful | P62: 2023-05-02 | R62: N
A63: 5 | B63: 2023-05-02 | D63: NIFTY 18500 CE 25-MAY | E63: Sell | F63: 66 | G63: 115 | H63: 42.5 | I63: 20.0-5 | J63: Profit of Rs.23.5/- | K63: =F63-H63 -> 23.5 | L63: 100.00 | M63: 1075.0 | N63: 50 | O63: Successful | P63: 2023-05-03 | R63: H
A64: 6 | B64: 2023-05-02 | D64: NIFTY 18100 PE 4-MAY | E64: Buy | F64: 42 | H64: 64 | I64: 80-120 | J64: Profit of Rs.22/- | K64: =H64-F64 -> 22 | L64: 100.00 | M64: 1000.0 | N64: 50 | O64: Successful | P64: 2023-05-03 | R64: H
A65: 7 | B65: 2023-05-02 | D65: BANKNIFTY 43200 PE 4-MAY | E65: Buy | F65: 110 | H65: 180 | I65: 250-300 | J65: Profit of Rs.70/- | K65: 70 | L65: 100.00 | M65: 1650.0 | N65: 25 | O65: Successful | P65: 2023-05-03 | R65: H
A66: 8 | B66: 2023-05-02 | D66: PVR 1460 PE MAY | E66: Buy | F66: 36 | G66: 22 | H66: 42 | I66: 60-75 | J66: Profit of Rs.6/- | K66: =H66-F66 -> 6 | L66: 100.00 | M66: =(K66*N66)-100 -> 2342.0 | N66: 407 | O66: Successful | P66: 2023-05-05 | R66: N
A67: 9 | B67: 2023-05-03 | D67: NIFTY 18100 PE 4-MAY | E67: Buy | F67: 47.5 | H67: 64 | I67: 90-120 | J67: Profit of Rs.16.5/- | K67: =H67-F67 -> 16.5 | L67: 100.00 | M67: =(K67*N67)-100 -> 725.0 | N67: 50 | O67: Successful | P67: 2023-05-03 | R67: H
A68: 10 | B68: 2023-05-04 | D68: NIFTY 18500 CE 25-MAY | E68: Sell | F68: 68 | G68: 105 | H68: 42 | I68: 20.0-5 | J68: Profit of Rs.26/- | K68: =F68-H68 -> 26 | L68: 100.00 | M68: 1200.0 | N68: 50 | O68: Successful | P68: 2023-05-05 | R68: H
A69: 11 | B69: 2023-05-04 | D69: BANKNIFTY 43400 PE 4-MAY | E69: Buy | F69: 75 | H69: 30 | I69: 200-250 | J69: Loss of Rs.45/- | K69: =H69-F69 -> -45 | L69: 100.00 | M69: =(K69*N69)-100 -> -1225.0 | N69: 25 | O69: Unsuccessful | P69: 2023-05-04 | R69: H
A70: 12 | B70: 2023-05-04 | D70: RELIANCE 2440 CE MAY | E70: Buy | F70: 45 | G70: 30 | H70: 53.5 | I70: 65-75 | J70: Profit of Rs.8.5/- | K70: 8.5 | L70: 100.00 | M70: 2025.0 | N70: 250 | O70: Successful | P70: 2023-05-03 | R70: H
A71: 13 | B71: 2023-05-04 | D71: HDFCBANK 1720 CE MAY | E71: Buy | F71: 22.5 | G71: 14 | H71: 5.5 | I71: 33-37 | J71: Loss of Rs.17/- | K71: =H71-F71 -> -17 | L71: 100.00 | M71: =(K71*N71)-100 -> -9450.0 | N71: 550 | O71: Unsuccessful | P71: 2023-05-05 | R71: H
A72: 14 | B72: 2023-05-05 | D72: BHARTIARTL 800 CE MAY | E72: Buy | F72: 6.5 | G72: 1.8 | H72: 9 | I72: 12.0-15.0 | J72: Profit of Rs.2.5/- | K72: 2.5 | L72: 100.00 | M72: 2275.0 | N72: 950 | O72: Successful | P72: 2023-05-08 | R72: H
A73: 15 | B73: 2023-05-05 | D73: MARUTI 9000 CE MAY | E73: Buy | F73: 122.5 | G73: 75 | H73: 142.5 | I73: 180-220 | J73: Profit of Rs.20/- | K73: =H73-F73 -> 20 | L73: 100.00 | M73: =(K73*N73)-100 -> 1900.0 | N73: 100 | O73: Successful | P73: 2023-05-08 | R73: H
A74: 16 | B74: 2023-05-05 | D74: RELIANCE 2440 CE MAY | E74: Buy | F74: 43.5 | G74: 29 | H74: 51.5 | I74: 65-75 | J74: Profit of Rs.8/- | K74: =H74-F74 -> 8 | L74: 100.00 | M74: =(K74*N74)-100 -> 1900.0 | N74: 250 | O74: Successful | P74: 2023-05-08 | R74: H
A75: 17 | B75: 2023-05-08 | D75: NIFTY 18500 CE 25-MAY | E75: Sell | F75: 72.5 | G75: 110 | H75: 48.5 | I75: 20.0-5 | J75: Profit of Rs.24/- | K75: =F75-H75 -> 24 | L75: 100.00 | M75: 1100.0 | N75: 50 | O75: Successful | P75: 2023-05-12 | R75: H
A76: 18 | B76: 2023-05-08 | D76: PVR 1460 PE MAY | E76: Buy | F76: 40 | G76: 26 | H76: 46 | I76: 60-75 | J76: Profit of Rs.6/- | K76: =H76-F76 -> 6 | L76: 100.00 | M76: =(K76*N76)-100 -> 2342.0 | N76: 407 | O76: Successful | P76: 2023-05-08 | R76: N
A77: 19 | B77: 2023-05-08 | D77: FINNIFTY 19250 PE 9-MAY | E77: Buy | F77: 34.5 | H77: 0 | I77: 70-90 | J77: Loss of Rs.34.5/- | K77: -34.5 | L77: 100.00 | M77: -1480.0 | N77: 40 | O77: Unsuccessful | P77: 2023-05-09 | R77: N
A78: 20 | B78: 2023-05-09 | D78: NIFTY 18250 PE 11-MAY | E78: Buy | F78: 38.5 | H78: 62 | I78: 80-120 | J78: Profit of Rs.23.5/- | K78: =H78-F78 -> 23.5 | L78: 100.00 | M78: =(K78*N78)-100 -> 1075.0 | N78: 50 | O78: Successful | P78: 2023-05-09 | R78: H
A79: 21 | B79: 2023-05-09 | D79: PVR 1460 PE MAY | E79: Buy | F79: 39 | G79: 25 | H79: 45.5 | I79: 60-75 | J79: Profit of Rs.6.5/- | K79: 6.5 | L79: 100.00 | M79: 2545.5 | N79: 407 | O79: Successful | P79: 2023-05-09 | R79: N
A80: 22 | B80: 2023-05-09 | D80: ICICIBANK 930 PE MAY | E80: Buy | F80: 8.5-9.5 | G80: 2 | I80: 15-20 | J80: Open | R80: H
A81: 23 | B81: 2023-05-09 | D81: NIFTY 18250 PE 11-MAY | E81: Buy | F81: 46.5 | G81: 9 | H81: 65 | I81: 90-130 | J81: Profit of Rs.18.5/- | K81: =H81-F81 -> 18.5 | L81: 100.00 | M81: =(K81*N81)-100 -> 825.0 | N81: 50 | O81: Successful | P81: 2023-05-10 | R81: H
A82: 24 | B82: 2023-05-10 | D82: MARUTI 9000 CE MAY | E82: Buy | F82: 182.5 | G82: 135 | H82: 200 | I82: 230-260 | J82: Profit of Rs.16.5/- | K82: =H82-F82 -> 17.5 | L82: 100.00 | M82: =(K82*N82)-100 -> 1650.0 | N82: 100 | O82: Successful | P82: 2023-05-10 | R82: N
A83: 25 | B83: 2023-05-10 | D83: NIFTY 18250 PE 11-MAY | E83: Buy | F83: 38 | H83: 0 | I83: 90-130 | J83: Loss of Rs.38/- | K83: -38 | L83: 100.00 | M83: -2000.0 | N83: 50 | O83: Unsuccessful | P83: 2023-05-11 | R83: N
A84: 26 | B84: 2023-05-11 | D84: BHARTIARTL 800 CE MAY | E84: Buy | F84: 6.5 | G84: 1.8 | H84: 9 | I84: 12.0-15 | J84: Profit of Rs.2.5/- | K84: 2.5 | L84: 100.00 | M84: 2275.0 | N84: 950 | O84: Successful | P84: 2023-05-15 | R84: N
A85: 27 | B85: 2023-05-11 | D85: PVR 1460 PE MAY | E85: Buy | F85: 37 | G85: 23 | H85: 43 | I85: 60-70 | J85: Profit of Rs.6/- | K85: =H85-F85 -> 6 | L85: 100.00 | M85: =(K85*N85)-100 -> 2342.0 | N85: 407 | O85: Successful | P85: 2023-05-12 | R85: N
A86: 28 | B86: 2023-05-11 | D86: TCS 3300 CE MAY | E86: Buy | F86: 37 | G86: 15 | H86: 15 | I86: 60-80 | J86: Loss of Rs.22/- | K86: -22 | L86: 100.00 | M86: -3400.0 | N86: 150 | O86: Unsuccessful | P86: 2023-05-17 | R86: H
A87: 29 | B87: 2023-05-12 | D87: MARUTI 9300 CE MAY | E87: Buy | F87: 125 | G87: 76 | H87: 76 | I87: 175-200 | J87: Loss of Rs.49/- | K87: =H87-F87 -> -49 | L87: 100.00 | M87: =(K87*N87)-100 -> -5000.0 | N87: 100 | O87: Unsuccessful | P87: 2023-05-16
A88: 30 | B88: 2023-05-12 | D88: BANKNIFTY 43100 PE 25-MAY | E88: Buy | F88: 260-270 | J88: Open
D89: BANKNIFTY 43000 PE 18-MAY | E89: Sell | F89: 120-130
A90: 31 | B90: 2023-05-12 | D90: NIFTY 18500 CE 25-MAY | E90: Sell | F90: 68 | G90: 110 | H90: 55 | I90: 10.0-5 | J90: Profit of Rs.13/- | K90: =F90-H90 -> 13 | L90: 100.00 | M90: =(K90*N90)-100 -> 550.0 | N90: 50 | O90: Successful | P90: 2023-05-16
A91: 32 | B91: 2023-05-12 | D91: BANKNIFTY 44000 CE 18-MAY | E91: Sell | F91: 130 | G91: 210 | H91: 195 | I91: 10.0-5 | J91: Loss of Rs.65/- | K91: =F91-H91 -> -65 | L91: 100.00 | M91: =(K91*N91)-100 -> -1725.0 | N91: 25 | O91: Unsuccessful | P91: 2023-05-12
A92: 33 | B92: 2023-05-15 | D92: LT 2260 CE MAY | E92: Buy | F92: 29 | G92: 12 | H92: 35 | I92: 45-60 | J92: Profit of Rs.6/- | K92: =H92-F92 -> 6 | L92: 100.00 | M92: 1700.0 | N92: 300 | O92: Successful | P92: 2023-05-15
A93: 34 | B93: 2023-05-15 | D93: FINNIFTY 19500 PE 16-MAY | E93: Buy | F93: 38 | H93: 38 | I93: 80-100 | J93: No profit no loss/- | K93: =F93-H93 -> 0 | L93: 100.00 | M93: -100.0 | N93: 50 | O93: Neutral | P93: 2023-05-16
A94: 35 | B94: 2023-05-15 | D94: NIFTY 18350 PE 25-MAY | E94: Buy | F94: 84 | H94: 147 | J94: Profit of Rs.32/- | K94: =H94-F94 -> 63 | L94: 100.00 | M94: =(32*50)-200 -> 1400.0 | N94: 50 | O94: Successful | P94: 2023-05-17
D95: NIFTY 18200 PE 25-MAY | E95: Sell | F95: 49 | H95: 80 | K95: =49-80 -> -31 | L95: 100.00 | N95: 50
A96: 36 | B96: 2023-05-16 | D96: SRF 2560 CE MAY | E96: Buy | F96: 33 | G96: 16 | H96: 16 | I96: 50-70 | J96: Loss of Rs.17/- | K96: =H96-F96 -> -17 | L96: 100.00 | M96: =(K96*N96)-100 -> -6050.0 | N96: 350 | O96: Unsuccessful | P96: 2023-05-17
A97: 37 | B97: 2023-05-16 | D97: PVR 1440 PE MAY | E97: Buy | F97: 32 | G97: 19 | H97: 37 | I97: 50-60 | J97: Profit of Rs.5/- | K97: 5 | L97: 100.00 | M97: 1935.0 | N97: 407 | O97: Successful | P97: 2023-05-17
A98: 38 | B98: 2023-05-17 | D98: SBIN 600 CE MAY | E98: Buy | F98: 6.5 | G98: 3.4 | H98: 7.9 | I98: 10.0-12 | J98: Profit of Rs.1.40/- | K98: =H98-F98 -> 1.4 | L98: 100.00 | M98: =(K98*N98)-100 -> 2000.0 | N98: 1500 | O98: Successful | P98: 2023-05-18
A99: 39 | B99: 2023-05-17 | D99: BHARTIARTL 800 CE MAY | E99: Buy | F99: 7.5 | G99: 2.8 | H99: 9.75 | I99: 15-19 | J99: Profit of Rs.2.25/- | K99: =H99-F99 -> 2.25 | L99: 100.00 | M99: =(K99*N99)-100 -> 2037.5 | N99: 950 | O99: Successful | P99: 2023-05-18
A100: 40 | B100: 2023-05-17 | D100: NIFTY 18150 CE 18 MAY | E100: Buy | F100: 48 | G100: 14 | H100: 69 | I100: 46-50 | J100: Profit of Rs.21/- | K100: =H100-F100 -> 21 | L100: 100.00 | M100: =(K100*N100)-100 -> 950.0 | N100: 50 | O100: Successful | P100: 2023-05-17
A101: 41 | B101: 2023-05-18 | D101: LT 2240 CE MAY | E101: Buy | F101: 23-24 | G101: 8 | I101: 40-50 | J101: Open
A102: 42 | B102: 2023-05-18 | D102: NIFTY 18200 CE 18-MAY | E102: Buy | F102: 21 | G102: 0 | H102: 31 | I102: 40-60 | J102: Profit of Rs.10/- | K102: =H102-F102 -> 10 | L102: 100.00 | M102: =(K102*N102)-100 -> 400.0 | N102: 50 | O102: Successful | P102: 2023-05-18
A109: Techno -Funda (positional)
A110: Sr.no | B110: Date | D110: Company | E110: Rec | F110: Rec Price | G110: Stop Loss*** | H110: Call Closed At | I110: Target | J110: Remark | K110: Profit / Loss per Share/Lot | L110: All charges | M110: Net Gain / Loss % | N110: Status | O110: Closed Date | P110: Market Closing Price
A111: 1 | B111: 2022-10-06 | D111: AMBIKCO | E111: Buy | F111: 1420-1620 | G111: 1220 | I111: 2000-2300 | J111: Open | P111: =VLOOKUP(D111,'MidCap Intra'!B98:C598,2,0) ->  | R111: H
A112: 2 | B112: 2023-04-03 | D112: BEL | E112: Buy | F112: 96.5 | G112: 88 | H112: 104.5 | I112: 105-110 | J112: Profit of Rs.8/- | K112: =H112-F112 -> 8 | L112: =(F112*-0.7)/100 -> -0.68 | M112: =(K112+L112)/F112 -> 7.59% | N112: Successful | O112: 2023-05-02 | R112: H
A113: 3 | B113: 2023-05-04 | D113: IOC | E113: Buy | F113: 80-84 | G113: 74.9 | I113: 95-100 | J113: Open | P113: =VLOOKUP(D113,'MidCap Intra'!B100:C600,2,0) -> 86.00 | R113: H
A115: CLBS = Closing Basis *** | F115: Reinitiated $
A116: Dividend adjusted <> | F116: Revised stoploss # | H116: .................
A119: Master Trade High Risk (Advisory Calls)
A120: Sr.no | B120: Date | D120: Company | E120: Rec | F120: Rec Price | G120: Stop Loss | H120: Call Closed At | I120: Target | J120: Remark | K120: Profit / Loss per share | L120: All charges | M120: Gain / Loss per Lot | N120: Lot | O120: Status | P120: Closed Date
A121: 1 | B121: 2023-05-18 | D121: BANKNIFTY | E121: Sell | F121: 43980 | G121: 44089 | H121: 43800 | I121: 43860-43750 | J121: Profit of Rs.180/- | K121: =F121-H121 -> 180 | L121: =(H121*N121)*0.07% -> 766.50 | M121: =(K121*N121)-L121 -> 3733.5 | N121: 25 | O121: Successful | P121: 2023-05-18 | R121: H
B136: Investment Idea
A137: Sr.no | B137: Date | D137: Company | E137: Rec | F137: Rec Price | G137: Point of Review | H137: Close Rate | I137: Target | J137: Remark | K137: Profit / Loss per Share | L137: Gain / Loss % | M137: Status | N137: Closed Date
A138: 1 | B138: 2013-11-01 | D138: L&T Finance Holding | E138: Accu | F138: 82.00 | G138: - | H138: 100 | I138: 100.00 | J138: Target Achieved | K138: =H138-F138 -> 18.00 | L138: =K138/F138 -> 21.95% | M138: Successful | N138: 2016-10-14
A139: 2 | B139: 2014-06-04 | D139: Finolex Inds | E139: Buy | F139: 257.00 | G139: - | H139: 300 | I139: 300.00 | J139: Target Achieved | K139: 43.00 | L139: 16.73% | M139: Successful | N139: 2014-07-02
A140: 3 | B140: 2014-07-08 | D140: JK Cement | E140: Buy | F140: 393.00 | G140: - | H140: 468 | I140: 468.00 | J140: Target Achieved | K140: 75.00 | L140: 19.08% | M140: Successful | N140: 2014-08-12
A141: 4 | B141: 2014-08-06 | D141: Finolex Cables | E141: Buy | F141: 205.00 | G141: - | H141: 275 | I141: 250.00 | J141: Target Achieved | K141: 70.00 | L141: 34.15% | M141: Successful | N141: 2014-11-19
A142: 5 | B142: 2014-09-04 | D142: Exide Inds | E142: Buy | F142: 162.00 | G142: - | H142: 190 | I142: 190.00 | J142: Target Achieved | K142: 28.00 | L142: 17.28% | M142: Successful | N142: 2015-01-02
A143: 6 | B143: 2014-09-04 | D143: Deepak Nitrite | E143: Buy | F143: 75.00 | G143: - | H143: 91.5 | I143: 95-100 | J143: Profit of Rs.16.50/- | K143: 16.50 | L143: 22.00% | M143: Successful | N143: 2014-11-11
A144: 7 | B144: 2014-10-01 | D144: Mercks | E144: Buy | F144: 850.00 | G144: - | H144: 982.5 | I144: 1050.00 | J144: Profit of Rs.132.50/- | K144: 132.50 | L144: 15.59% | M144: Successful | N144: 2015-02-04
A145: 8 | B145: 2014-10-01 | D145: Grindwell Norton | E145: Buy | F145: 475.00 | G145: - | H145: 515 | I145: 600.00 | J145: Profit of Rs.40/- | K145: 40.00 | L145: 8.42% | M145: Successful | N145: 2014-10-27
A146: 9 | B146: 2014-10-01 | D146: Snowman Logistics | E146: Buy | F146: 86.00 | G146: - | H146: 99 | I146: 140.00 | J146: Profit of Rs.13.00/- | K146: 13.00 | L146: 15.12% | M146: Successful | N146: 2014-10-27
A147: 10 | B147: 2014-10-14 | D147: Birla Corp | E147: Buy | F147: 496.60 | G147: - | H147: 621 | I147: 580.00 | J147: Target Achieved | K147: 124.40 | L147: 25.05% | M147: Successful | N147: 2016-08-23
A148: 11 | B148: 2014-10-14 | D148: Ultratech Cem | E148: Buy | F148: 2481.90 | G148: - | H148: 2840 | I148: 2870.00 | J148: Profit of Rs.358.10/- | K148: 358.10 | L148: 14.43% | M148: Successful | N148: 2015-01-13
A149: 12 | B149: 2014-10-16 | D149: Sintex Inds | E149: Buy | F149: 84.50 | G149: - | H149: 93 | I149: 110.00 | J149: Profit of Rs.8.50/- | K149: 8.50 | L149: 10.06% | M149: Successful | N149: 2014-10-27
A150: 13 | B150: 2014-10-16 | D150: HSIL | E150: Buy | F150: 401.00 | G150: - | H150: 428 | I150: 450.00 | J150: Profit of Rs.27.00/- | K150: 27.00 | L150: 6.73% | M150: Successful | N150: 2015-01-16
A151: 14 | B151: 2014-10-16 | D151: Eveready Inds | E151: Buy | F151: 101.00 | G151: - | H151: 112 | I151: 120.00 | J151: Profit of Rs.11.00/- | K151: 11.00 | L151: 10.89% | M151: Successful | N151: 2014-10-27
A152: 15 | B152: 2014-11-11 | D152: Pennar Inds | E152: Buy | F152: 59.00 | G152: - | H152: 76 | I152: 76.00 | J152: Target Achieved | K152: 17.00 | L152: 28.81% | M152: Successful | N152: 2017-10-24
A153: 16 | B153: 2014-11-11 | D153: Snowman Logistics | E153: Buy | F153: 99.00 | G153: - | H153: 120 | I153: 120.00 | J153: Profit of Rs.21/- | K153: 21.00 | L153: 21.21% | M153: Successful | N153: 2014-11-17
A154: 17 | B154: 2014-11-13 | D154: Dharamsi Morarji Chem | E154: Buy | F154: 22.00 | G154: - | H154: 33.55 | I154: 32.00 | J154: Profit of Rs 11.55/- | K154: 11.55 | L154: 52.50% | M154: Successful | N154: 2015-07-03
A155: 18 | B155: 2014-12-03 | D155: Tatachem | E155: Buy | F155: 440.00 | G155: - | H155: 520 | I155: 520.00 | J155: Profit of Rs 80.00/- | K155: 80.00 | L155: 18.18% | M155: Successful | N155: 2015-07-23
A156: 19 | B156: 2014-12-03 | D156: Advanta | E156: Buy | F156: 360.00 | G156: - | H156: 427 | I156: 425.00 | J156: Profit of Rs.67.00/- | K156: 67.00 | L156: 18.61% | M156: Successful | N156: 2015-02-23
A157: 20 | B157: 2015-01-08 | D157: GDL | E157: Buy | F157: 360.00 | G157: - | H157: 455 | I157: 420.00 | J157: Profit of Rs.95.00/- | K157: 95.00 | L157: 26.39% | M157: Successful | N157: 2015-01-20
A158: 21 | B158: 2015-01-08 | D158: NRB Bearing | E158: Buy | F158: 130.00 | H158: 175.5 | I158: 165.00 | J158: Profit of Rs 45.50/- | K158: 45.50 | L158: 35.00% | M158: Successful | N158: 2017-12-19
A159: 22 | B159: 2015-02-05 | D159: GSFC | E159: Accu | F159: 98.00 | H159: 120 | I159: 120.00 | J159: Target Achieved | K159: 22.00 | L159: 22.45% | M159: Successful | N159: 2017-01-18
A160: 23 | B160: 2015-02-05 | D160: Sundrmfast | E160: Accu | F160: 196.00 | H160: 262 | I160: 255.00 | J160: Target Achieved | K160: 66.00 | L160: 33.67% | M160: Successful | N160: 2016-08-17
A161: 24 | B161: 2015-03-04 | D161: GPPL | E161: Accu | F161: 235 | H161: 77.00 | I161: 280-285 | J161: Loss of Rs.158/- | K161: -158.00 | L161: -67.23% | M161: Unsuccessful | N161: 2019-02-26
A162: 25 | B162: 2015-03-04 | D162: ORIENTCEM | E162: Accu | F162: 185.00 | H162: 224 | I162: 220-225 | J162: Target Achieved | K162: 39.00 | L162: 21.08% | M162: Successful | N162: 2016-10-04
A163: 26 | B163: 2015-03-27 | D163: PFS | E163: Accu | F163: 49.5 | H163: 15.85 | I163: 67.00 | J163: Loss of Rs.33.65/- | K163: -33.65 | L163: -68% | M163: Unsuccessful | N163: 2019-06-11
A164: 27 | B164: 2015-03-30 | D164: Walchandnagar Ind Ltd | E164: Accu | F164: 183.50 | H164: 219 | I164: 218.00 | J164: Profit of Rs.35.50/- | K164: 35.50 | L164: 19.35% | M164: Successful | N164: 2015-04-09
A165: 28 | B165: 2015-04-20 | D165: Kalpataru Power Transmission Ltd | E165: Accu | F165: =(227+237)/2 -> 232.00 | H165: 298 | I165: 298.00 | J165: Target Achieved | K165: 66.00 | L165: 28.45% | M165: Successful | N165: 2017-03-29
A166: 29 | B166: 2015-05-04 | D166: Mastek Ltd | E166: Buy | F166: 385.00 | H166: =212.5+331 -> 543.5 | I166: 510.00 | J166: Profit of Rs 158.50/- | K166: 158.50 | L166: 41.17% | M166: Successful | N166: 2015-08-19
A167: 30 | B167: 2015-05-04 | D167: Suprajit Eng | E167: Buy | F167: 115.50 | H167: 146 | I167: 142.00 | J167: Profit of Rs 30.50/- | K167: 30.50 | L167: 26.41% | M167: Successful | N167: 2015-07-17
A168: 31 | B168: 2015-05-27 | D168: TCI | E168: Buy | F168: 237.50 | H168: 279.5 | I168: 278.00 | J168: Target Achieved | K168: 42.00 | L168: 17.68% | M168: Successful | N168: 2015-08-06
A169: 32 | B169: 2015-06-19 | D169: HSIL | E169: Accu | F169: 340.00 | H169: 448 | I169: 448.00 | J169: Target Achieved | K169: 108.00 | L169: 31.76% | M169: Successful | N169: 2017-10-10
A170: 33 | B170: 2015-07-06 | D170: Capital First | E170: Accu | F170: 390.00 | H170: 460 | I170: 460.00 | J170: Target Achieved | K170: =H170-F170 -> 70.00 | L170: =K170/F170 -> 17.95% | M170: Successful | N170: 2016-04-18
A171: 34 | B171: 2015-07-10 | D171: Dolphin OffShore | E171: Accu | F171: 122.5 | H171: 61.00 | I171: 172.00 | J171: Loss of Rs.61.50/- | K171: -61.50 | L171: -50.20% | M171: Unsuccessful | N171: 2018-08-21
A172: 35 | B172: 2015-08-03 | D172: Allcargo logistics | E172: Accu | F172: 297.50 | H172: 350 | I172: 360.00 | J172: Profit of Rs 52.50/- | K172: 52.50 | L172: 17.65% | M172: Successful | N172: 2015-08-16
A173: 36 | B173: 2015-08-03 | D173: Camline Fine | E173: Accu | F173: 115.50 | H173: 149 | I173: 140.00 | J173: Profit of Rs 33.50/- | K173: 33.50 | L173: 29.00% | M173: Successful | N173: 2017-01-05
A174: 37 | B174: 2015-09-04 | D174: TCI | E174: Accu | F174: 226.00 | H174: 292 | I174: 292.00 | J174: Target Achieved | K174: 66.00 | L174: 29.20% | M174: Successful | N174: 2015-10-09
A175: 38 | B175: 2015-09-07 | D175: Kalpataru Power Transmission Ltd | E175: Accu | F175: 232.50 | H175: 312.5 | I175: 310.00 | J175: Target Achieved | K175: 80.00 | L175: 34.41% | M175: Successful | N175: 2017-03-29
A176: 39 | B176: 2015-09-21 | D176: LLOYD ELECTRIC & ENG LTD | E176: Accu | F176: 196.50 | H176: 238 | I176: 238.00 | J176: Target Achieved | K176: 41.50 | L176: 21.12% | M176: Successful | N176: 2015-10-14
A177: 40 | B177: 2015-09-24 | D177: L&T Finance Holding | E177: Accu | F177: 65.00 | H177: 82 | I177: 82.00 | J177: Target Achieved | K177: 17.00 | L177: 26.15% | M177: Successful | N177: 2016-07-27
A178: 41 | B178: 2015-10-14 | D178: KEC International ltd | E178: Accu | F178: 144.00 | H178: 182.5 | I178: 181.00 | J178: Target Achieved | K178: 38.50 | L178: 26.74% | M178: Successful | N178: 2017-03-23
A179: 42 | B179: 2015-10-14 | D179: Gruh Finance | E179: Accu | F179: 264.00 | H179: 311 | I179: 311.00 | J179: Target Achieved | K179: 47.00 | L179: 17.80% | M179: Successful | N179: 2016-08-22
A180: 43 | B180: 2015-11-10 | D180: Pidilitind | E180: Buy | F180: 549.50 | H180: 630 | I180: 630.00 | J180: Target Achieved | K180: 80.50 | L180: 14.65% | M180: Successful | N180: 2016-02-19
A181: 44 | B181: 2015-12-04 | D181: Zensar Technology | E181: Accu | F181: 1027.50 | H181: 1315 | I181: 1250.00 | J181: Target Achieved | K181: 287.50 | L181: 27.98% | M181: Successful | N181: 2018-05-24
A182: 45 | B182: 2015-12-29 | D182: Vinati Organics Ltd | E182: Accu | F182: 465.00 | H182: 540 | I182: 540.00 | J182: Target Achieved | K182: 75.00 | L182: 16.13% | M182: Successful | N182: 2016-06-09
A183: 46 | B183: 2016-01-11 | D183: GSFC | E183: Buy | F183: 81.00 | H183: 110 | I183: 110.00 | J183: Target Achieved | K183: 29.00 | L183: 35.80% | M183: Successful | N183: 2017-01-10
A184: 47 | B184: 2016-01-13 | D184: SSWL | E184: Buy | F184: 417.50 | H184: 547 | I184: 535.00 | J184: Target Achieved | K184: 129.50 | L184: 31.02% | M184: Successful | N184: 2016-07-27
A185: 48 | B185: 2016-02-08 | D185: Persistent System Ltd | E185: Accu | F185: 650.00 | H185: 800 | I185: 800.00 | J185: Target Achieved | K185: 150.00 | L185: 23.08% | M185: Successful | N185: 2018-02-23
A186: 49 | B186: 2016-03-04 | D186: UPL | E186: Accu | F186: 437.50 | H186: 504.5 | I186: 522.00 | J186: Profit of Rs.67/- | K186: 67.00 | L186: 15.31% | M186: Successful | N186: 2016-04-20
A187: 50 | B187: 2016-03-09 | D187: Ashoka Buildcon Ltd | E187: Accu | F187: 189.50 | H187: 218 | I187: 218.00 | J187: Target Achieved | K187: 28.50 | L187: 15.04% | M187: Successful | N187: 2017-10-26
A188: 51 | B188: 2016-04-11 | D188: PTC INDIA FIN SERV LTD | E188: Accu | F188: 36.5 | H188: 15.85 | I188: 60.00 | J188: Loss of Rs.20.65/- | K188: -20.65 | L188: -56.58% | M188: Unsuccessful | N188: 2019-06-11
A189: 52 | B189: 2016-04-12 | D189: CAMLINFINE $ | E189: Accu | F189: 93.00 | H189: 149 | I189: 140.00 | J189: Profit of Rs 56/- | K189: 56.00 | L189: 60.22% | M189: Successful | N189: 2017-01-05
A190: 53 | B190: 2016-04-12 | D190: Greaves Cotton Ltd. | E190: Accu | F190: 130.00 | H190: 150 | I190: 150-155 | J190: Target Achieved | K190: 20.00 | L190: 15.38% | M190: Successful | N190: 2016-07-13
A191: 54 | B191: 2016-04-13 | D191: DHFL | E191: Accu | F191: 196.00 | H191: 299 | I191: 299.00 | J191: Target Achieved | K191: 103.00 | L191: 52.55% | M191: Successful | N191: 2016-09-07
A192: 55 | B192: 2016-04-13 | D192: Magma | E192: Accu | F192: 88.00 | H192: 103 | I192: 103.00 | J192: Target Achieved | K192: 15.00 | L192: 17.05% | M192: Successful | N192: 2016-06-09
A193: 56 | B193: 2016-05-02 | D193: KEC International ltd $ | E193: Accu | F193: 127.50 | H193: 148 | I193: 148-150 | J193: Target Achieved | K193: =H193-F193 -> 20.50 | L193: =K193/F193 -> 16.08% | M193: Successful | N193: 2016-07-13
A194: 57 | B194: 2016-05-03 | D194: Mindtree | E194: Accu | F194: 675.00 | H194: 815 | I194: 790-800 | J194: Target Achieved | K194: =H194-F194 -> 140.00 | L194: =K194/F194 -> 20.74% | M194: Successful | N194: 2018-02-23
A195: 58 | B195: 2016-06-01 | D195: Atulauto | E195: Accu | F195: 500 | H195: 232.50 | I195: 565-570 | J195: Loss of Rs.267.50 /- | K195: =H195-F195 -> -267.50 | L195: =K195/F195 -> -53.50% | M195: Unsuccessful | N195: 2019-09-27
A196: 59 | B196: 2016-06-06 | D196: TRITURBINE | E196: Accu | F196: 110.00 | H196: 126.5 | I196: 125.00 | J196: Profit of Rs.16.50/- | K196: =H196-F196 -> 16.50 | L196: =K196/F196 -> 15.00% | M196: Successful | N196: 2016-07-01
A197: 60 | B197: 2016-06-17 | D197: Pennar Industries Ltd | E197: Accu | F197: 44.00 | H197: 69.5 | I197: 69.50 | J197: Profit of Rs.25.50/- | K197: =H197-F197 -> 25.50 | L197: =K197/F197 -> 57.95% | M197: Successful | N197: 2017-08-30
A198: 61 | B198: 2016-06-28 | D198: EVEREADY | E198: Accu | F198: 262.50 | H198: 340 | I198: 333.00 | J198: Profit of Rs.77.50/- | K198: 77.50 | L198: 29.52% | M198: Successful | N198: 2017-10-09
A199: 62 | B199: 2016-06-28 | D199: FIEMIND | E199: Accu | F199: 840.00 | H199: 1230 | I199: 1230.00 | J199: Target Achieved | K199: 390.00 | L199: 46.43% | M199: Successful | N199: 2016-10-06
A200: 63 | B200: 2016-07-05 | D200: Bajaj Corp Ltd | E200: Accu | F200: 395 | H200: =(468.5+342.5)/2 -> 405.50 | I200: 510.00 | J200: Profit of Rs.10.50/- | K200: =H200-F200 -> 10.50 | L200: =K200/F200 -> 3% | M200: Neutral | N200: 2019-05-21
A201: 64 | B201: 2016-08-02 | D201: GPPL $ | E201: Buy | F201: =169.5-12.8 -> 156.7 | H201: 77.00 | I201: 198-200 | J201: Loss of Rs.79.7/- | K201: -79.70 | L201: -50.86% | M201: Unsuccessful | N201: 2019-02-26
A202: 65 | B202: 2016-08-04 | D202: WONDERLA HOLIDAYS LTD | E202: Accu | F202: 400 | H202: 305.00 | I202: 475.00 | J202: Loss of Rs.95/- | K202: -95.00 | L202: -23.75% | M202: Unsuccessful | N202: 2019-05-21
A203: 66 | B203: 2016-08-11 | D203: CAMLINFINE | E203: Accu | F203: 86.50 | H203: 130 | I203: 130.00 | J203: Profit of Rs.43.50/- | K203: 43.50 | L203: 50.29% | M203: Successful | N203: 2017-12-22
A204: 67 | B204: 2016-08-18 | D204: GRANULES | E204: Accu | F204: 133.5 | H204: 126.50 | I204: 178.00 | J204: Exit | K204: -7.00 | L204: -5.24% | M204: Unsuccessful | N204: 2016-09-02
A205: 68 | B205: 2016-08-31 | D205: VA TECH WABAG | E205: Accu | F205: 560.00 | H205: 725 | I205: 725.00 | J205: Target Achieved | K205: 165.00 | L205: 29.46% | M205: Successful | N205: 2016-03-27
A206: 69 | B206: 2016-09-01 | D206: SKIPPER LIMITED | E206: Accu | F206: 160.50 | H206: 210 | I206: 210.00 | J206: Target Achieved | K206: 49.50 | L206: 30.84% | M206: Successful | N206: 2017-05-16
A207: 70 | B207: 2016-10-03 | D207: IFBIND | E207: Accu | F207: 430.00 | H207: 596 | I207: 575.00 | J207: Profit of Rs.166/- | K207: 166.00 | L207: 38.60% | M207: Successful | N207: 2017-02-03
A208: 71 | B208: 2016-10-14 | D208: ASIANTILES | E208: Accu | F208: 280.00 | H208: 345 | I208: 345.00 | J208: Target Achieved | K208: =H208-F208 -> 65.00 | L208: =K208/F208 -> 23.21% | M208: Successful | N208: 2017-03-20
A209: 72 | B209: 2016-10-14 | D209: DEEPIND | E209: Accu | F209: 245.00 | H209: 325.5 | I209: 330.00 | J209: Profit of Rs.80.5/- | K209: 80.50 | L209: =K209/F209 -> 32.86% | M209: Successful | N209: 2017-02-03
A210: 73 | B210: 2016-10-17 | D210: DCBBANK | E210: Accu | F210: 125.00 | H210: 160 | I210: 160.00 | J210: Target Achieved | K210: 35.00 | L210: 28.00% | M210: Successful | N210: 2017-03-09
A211: 74 | B211: 2016-10-17 | D211: ORIENTREF | E211: Accu | F211: 114.00 | H211: 145 | I211: 145.00 | J211: Target Achieved | K211: 31.00 | L211: =K211/F211 -> 27.19% | M211: Successful | N211: 2017-05-04
A212: 75 | B212: 2016-10-17 | D212: GANECOS | E212: Accu | F212: 212.00 | H212: 280 | I212: 276.00 | J212: Profit of Rs.68/- | K212: 68.00 | L212: =K212/F212 -> 32.08% | M212: Successful | N212: 2017-05-03
A213: 76 | B213: 2016-11-04 | D213: NBCC | E213: Accu | F213: 155.00 | H213: 210 | I213: 210.00 | J213: Profit of Rs.55/- | K213: 55.00 | L213: =K213/F213 -> 35.48% | M213: Successful | N213: 2017-07-28
A214: 77 | B214: 2016-12-06 | D214: PRECAM | E214: Accu | F214: 150.5 | H214: 72.50 | I214: 174.00 | J214: Loss of Rs.78/- | K214: -78.00 | L214: -51.83% | M214: Unsuccessful | N214: 2018-08-21
A215: 78 | B215: 2016-12-08 | D215: INFRATEL | E215: Accu | F215: 380.00 | H215: 478 | I215: 468.00 | J215: Target Achieved | K215: =H215-F215 -> 98.00 | L215: =K215/F215 -> 25.79% | M215: Successful | N215: 2017-10-17
A216: 79 | B216: 2016-12-30 | D216: GODREJPROP | E216: Accu | F216: 305.00 | H216: 375 | I216: 375.00 | J216: Target Achieved | K216: =H216-F216 -> 70.00 | L216: =K216/F216 -> 22.95% | M216: Successful | N216: 2017-02-02
A217: 80 | B217: 2017-01-04 | D217: DEEPAKNTR | E217: Accu | F217: 99.50 | H217: 158 | I217: 158.00 | J217: Target Achieved | K217: =H217-F217 -> 58.50 | L217: =K217/F217 -> 58.79% | M217: Successful | N217: 2017-06-12
A218: 81 | B218: 2017-01-04 | D218: DEEPAKNTR | E218: Accu | F218: 99.50 | H218: 158 | I218: 158.00 | J218: Target Achieved | K218: 58.50 | L218: 58.79% | M218: Successful | N218: 2017-06-12
A219: 82 | B219: 2017-02-20 | D219: RECLTD | E219: Accu | F219: 140.50 | H219: 220 | I219: 220.00 | J219: Target Achieved | K219: =H219-F219 -> 79.50 | L219: =K219/F219 -> 56.58% | M219: Successful | N219: 2017-05-09
A220: 83 | B220: 2017-02-20 | D220: SUBROS | E220: Accu | F220: 202.50 | H220: 234 | I220: 234.00 | J220: Target Achieved | K220: 31.50 | L220: 15.56% | M220: Successful | N220: 2017-04-11
A221: 84 | B221: 2017-03-24 | D221: VRLLOG | E221: Accu | F221: 300.50 | H221: 417.5 | I221: 420.00 | J221: Profit of Rs.117/- | K221: =H221-F221 -> 117.00 | L221: =K221/F221 -> 38.94% | M221: Successful | N221: 2017-12-01
A222: 85 | B222: 2017-03-24 | D222: FIEMIND | E222: Accu | F222: 850.00 | H222: 1042.5 | I222: 1023.00 | J222: Profit of Rs 192.50/- | K222: 192.50 | L222: 22.65% | M222: Successful | N222: 2017-04-05
A223: 86 | B223: 2017-04-05 | D223: RATNAMANI | E223: Accu | F223: 785.00 | H223: 930 | I223: 920.00 | J223: Profit of Rs.145/- | K223: =H223-F223 -> 145.00 | L223: =K223/F223 -> 18.47% | M223: Successful | N223: 2017-08-29
A224: 87 | B224: 2017-04-06 | D224: ZEEMEDIA | E224: Accu | F224: 40 | H224: 13.10 | I224: 60.00 | J224: Loss of Rs.26.9/- | K224: -26.90 | L224: -67.25% | M224: Unsuccessful | N224: 2018-02-07
A225: 88 | B225: 2017-04-12 | D225: DABUR | E225: Accu | F225: 289.50 | H225: 354 | I225: 360.00 | J225: Profit of Rs.64.5/- | K225: =H225-F225 -> 64.50 | L225: =K225/F225 -> 22.28% | M225: Successful | N225: 2017-11-01
A226: 89 | B226: 2017-04-20 | D226: KPRMILL | E226: Accu | F226: 700.00 | H226: 840 | I226: 840.00 | J226: Profit of Rs.140/- | K226: 140.00 | L226: 20.00% | M226: Successful | N226: 2017-06-07
A227: 90 | B227: 2017-06-01 | D227: ESSELPACK | E227: Accu | F227: 130.00 | H227: 144.25 | I227: 170.00 | J227: Profit of Rs.14.25/- | K227: 14.25 | L227: 10.96% | M227: Successful | N227: 2019-07-29
A228: 91 | B228: 2017-06-15 | D228: KEI | E228: Accu | F228: 214.50 | H228: 262 | I228: 262.00 | J228: Profit of Rs.47.5/- | K228: 47.50 | L228: 22.14% | M228: Successful | N228: 2017-08-30
A229: 92 | B229: 2017-07-17 | D229: MAYURUNIQ | E229: Accu | F229: 370.00 | H229: 447.5 | I229: 450.00 | J229: Target Achieved | K229: 77.50 | L229: 20.95% | M229: Successful | N229: 2017-10-27
A230: 93 | B230: 2017-07-27 | D230: RAMCOCEM | E230: Accu | F230: 657.50 | H230: 825 | I230: 820.00 | J230: Target Achieved | K230: 167.50 | L230: 25.48% | M230: Successful | N230: 2017-12-21
A231: 94 | B231: 2017-08-17 | D231: FINPIPE | E231: Accu | F231: 605.00 | H231: 750 | I231: 750.00 | J231: Profit of Rs.145/- | K231: 145.00 | L231: 23.97% | M231: Successful | N231: 2017-10-19
A232: 95 | B232: 2017-09-01 | D232: SHK | E232: Accu | F232: 255 | H232: 217.25 | I232: 320.00 | J232: Loss of Rs.37.75/- | K232: -37.75 | L232: -15% | M232: Unsuccessful | N232: 2019-07-15
A233: 96 | B233: 2017-09-19 | D233: SKIPPER | E233: Accu | F233: 215.00 | H233: 258 | I233: 258.00 | J233: Target Achieved | K233: 43.00 | L233: 20.00% | M233: Successful | N233: 2017-11-01
A234: 97 | B234: 2017-09-19 | D234: SKIPPER | E234: Accu | F234: 215.00 | H234: 258 | I234: 258.00 | J234: Target Achieved | K234: 43.00 | L234: 20.00% | M234: Successful | N234: 2017-11-01
A235: 98 | B235: 2017-09-20 | D235: CAMLINFINE$ | E235: Accu | F235: 75.00 | H235: 90 | I235: 90.00 | J235: Profit of Rs.15.00/- | K235: =H235-F235 -> 15.00 | L235: =K235/F235 -> 20.00% | M235: Successful | N235: 2017-10-11
A236: 99 | B236: 2017-10-03 | D236: GNA | E236: Accu | F236: 315.00 | H236: 392 | I236: 384.00 | J236: Profit of Rs.77/- | K236: 77.00 | L236: 24.44% | M236: Successful | N236: 2017-10-09
A237: 100 | B237: 2017-10-05 | D237: NOCIL | E237: Accu | F237: 145.00 | H237: 179 | I237: 180.00 | J237: Profit of Rs.34/- | K237: 34.00 | L237: 23.45% | M237: Successful | N237: 2017-10-17
A238: 101 | B238: 2017-10-06 | D238: CENTURYPLY | E238: Accu | F238: 256.00 | H238: 323 | I238: 320.00 | J238: Target Achieved | K238: 67.00 | L238: 26.17% | M238: Successful | N238: 2017-11-28
... 86 more rows
